{"text_format":"1","workbook":"xlsx","n_sheets":6,"sheets":["How to use this Tool","Product List","Budget Calculator","Pricing","Config","Sheet2"],"not_rendered":{"charts":0,"images":0,"macros":1,"external_links":0,"defined_names":2,"comments":0,"pivot_tables":0},"unopened":[],"bounds":{"document_bytes":16777216,"sheet_cells":100000,"rows_first":2000,"rows_last":500,"rows_between":2000,"halvings":0,"cell_chars":16384,"cell_head_chars":4096},"cells_cut":0,"cells_raw":0,"read":"whole","date_system":"1900"}

{"sheet":"How to use this Tool","index":0,"n_rows":18,"n_cols":4,"rows_kept":18,"cut":false,"hidden":false,"merged":[[17,2,17,19],[15,2,15,19],[14,1,14,19],[16,2,16,19],[1,2,1,9]]}
[null,"How to use the Budget Calculator Tool:"]
[null,null,"*Please Note: Only edit the light-yellow sections (cells) in this tool."]
[null,"1)","Using Tab “Product List”, search items needed and/or wanted by the Mission."]
[null,"2)","Using Tab “Product List”, select the items the Mission has confirmed for the order by selecting \"Yes\" in column E."]
[null,"3)","Using Tab “Product List” , once you have selected \"Yes\" for all items of interest, click the button titled \"Load Budget Calculator\", located at the top of the sheet."]
[null,"4)","Using Tab “Budget Calculator” add the following:"]
[null,null,null,"1) The total funding available for commodity procurement. (Cell H4)"]
[null,null,null,"1) The desired quantity of the product. (Column H)"]
[null,"5)","Using Tab “Budget Calculator” the following will be calculated:"]
[null,null,null,"1) The amount reserved for estimated freight and insurance costs. (Cell H6)"]
[null,null,null,"2) The estimated cost of the product. (Cell H5)"]
[null,null,null,"3) The proportion of the budget allocated to the product type. Please note the proportion allocated must add up to 100% or less of your commodity funding across all products. (Column L)"]
[]
[null,"Procurement Considerations"]
[null,"GHSC-PSM will compile procurement of the quantities requested from the budget calculator and source the items from international wholesalers, and suppliers. PSM will make a determination on availability and pricing that will ultimately determine the sources for each item. It should be noted that while GHSC-PSM will use existing contracts with suppliers to source the products, many of the items are in high demand globally and have not been sourced previously. The following notes on pricing, lead-times and shipping should be noted as the Mission prepares to order through GHSC-PSM:"]
[null,null,"Pricing: All listed product prices should be considered notional and for initial budgeting purposes only. Actual product prices may vary based on quotes received from international wholesalers and suppliers during sourcing."]
[null,null,"Shipping & Insurance: For estimation purposes, this tool assumes 30% of the cost of the goods for shipping and insurance. Freight estimates will depend on mode of transport, and weights and dimensions of the packaged products obtained following sourcing events. The ultimate quantity of each product procured may vary based on estimated freight and insurance costs, which may exceed the reserved 30%. The procurement team will endeavor to maintain the proportion of the budget allocated to each product type having taken into consideration freight and insurance costs."]
[null,null,"Product specifications: In order to maximize the impact of the limited central resources, products in the catalog are specifically described but based on availability substitutions may be made (e.g. for color, pack size).  Please be flexible with specifications and GHSC-PSM will ensure that where products have interdependencies related to equipment, these substitutions would only be made in consultation with the Mission."]

{"sheet":"Product List","index":1,"n_rows":337,"n_cols":5,"rows_kept":337,"cut":false,"hidden":false,"merged":[[1,1,1,3]]}
[]
[null,"COVID19 ARP Commodity Quantification & Budget Calculator"]
[null,"Version 9, Current as of June 2024"]
[]
[]
[null,"Category","PSM SKU Reference","Commodity Description","Select Product"]
[null,"Sanitation","104406XUZ09C","(COVID-19) Bag, Biohazard, Printed, Red,122 x 94 cm, Autoclavable, 2 mil, 100 Each"]
[null,"Sanitation","104407XUZ09C","(COVID-19) Bag, Biohazard, Printed, Red, 38 x 48 cm, Autoclavable, 2 mil, 100 Each"]
[null,"General Patient Care","104410XUZ01S","(COVID-19) Cardiac Monitor, Battery Backup, NIBP/NP/PR, Adult/Pediatric Modes, Attached Leads, 115 V, 1 Each"]
[null,"General Patient Care","104411XUZ01S","(COVID-19) Cardiac Monitor, Battery Backup, NIBP/NP/PR, Adult/Pediatric Modes, Attached Leads, 230 V, 1 Each"]
[null,"Respiratory Support","104412XUZ0AC","(COVID-19) Nasal Catheter, Flexible, 6-12 Lateral Eyes, Sterile, Single Use, 8 FR, 40 cm, 200 Each"]
[null,"Respiratory Support","104413XUZ01S","(COVID-19) Non-Rebreath O2 Mask w/ Reservoir, 2 m Tube, Non-Sterile, Single Use, Elastic Strap, Adult, 1 Each"]
[null,"Respiratory Support","104414XUZ01S","(COVID-19) Non-Rebreath O2 Mask w/ Reservoir, 2 m Tube, Non-Sterile, Single Use, Elastic Strap, Pediatric, 1 Each"]
[null,"Respiratory Support","104415XUZ01S","(COVID-19) Mask, Venturi, Oxygen Percentage Lock, w/ Tubing, Non-Sterile, Single Use, Adult, 1 Each"]
[null,"Respiratory Support","104416XUZ01S","(COVID-19) Mask, Venturi, Oxygen Percentage Lock, w/ Tubing, Non-Sterile, Single Use, Pediatric, 1 Each"]
[null,"Respiratory Support","104417XUZ0AC","(COVID-19) Nasal Cannula, Non-Sterile, Dual Prong, Flexible Anti-Kink Tubing, Adult , 200 Each"]
[null,"Respiratory Support","104418XUZ0AC","(COVID-19) Nasal Cannula, Non-Sterile, Dual Prong, Flexible Anti-Kink Tubing, Pediatric, 200 Each"]
[null,"Respiratory Support","104419XUZ0AC","(COVID-19) Nasal Cannula, Non-Sterile, Dual Prong, Flexible Anti-Kink Tubing, Neonatal, 200 Each"]
[null,"Respiratory Support","104420XUZ01S","(COVID-19) Nebulizer, Max 10 L/Min, Nebulisation Rate 0.1 L/min, 22 PSI, Disp. Mouthpiece, 220 V, 1 Each"]
[null,"Respiratory Support","104422XUZ01S","(COVID-19) O2 Concentrator, 1-10 L/Min Output, Adj. Flowmeter, 0.5 L/Min Interval, 6 mm Connector, 230 V, 1 Each"]
[null,"Respiratory Support","104423XUZ01S","(COVID-19) Pulse Oximeter, Finger Clip, Pediatric, Battery Powered, Resolution 1 bpm and 1% SpO2, 1 Each"]
[null,"Respiratory Support","104423XUZ09C","(COVID-19) Pulse Oximeter, Finger Clip, Pediatric, Battery Powered, Resolution 1 bpm and 1% SpO2, 100 Each"]
[null,"Respiratory Support","104424XUZ01S","(COVID-19) Pulse Oximeter, Finger Clip, Adult, Battery Powered, Resolution 1 bpm and 1% SpO2, 1 Each"]
[null,"Respiratory Support","104425XUZ01S","(COVID-19) Bag Valve Mask, Adult, 1475-2000 mL Vent. Bag, O2 Reservoir Bag, POP Valve, S/M/L Adult Mask, 1 Each"]
[null,"Respiratory Support","104426XUZ01S","(COVID-19) Bag Valve Mask, Pediatric, 500-700 mL Vent. Bag, O2 Reservoir Bag, POP Valve, Pediatric Mask, 1 Each"]
[null,"Respiratory Support","104427XUZ01S","(COVID-19) O2 Connector, Y-Type, Standard, 1 Each"]
[null,"Respiratory Support","104428XUZ01S","(COVID-19) O2 Connector, Male/Female, Standard, 1 Each"]
[null,"Respiratory Support","104429XUZ01S","(COVID-19) O2 Connector, Swivel, Standard, 1 Each"]
[null,"Respiratory Support","104431XUZ01S","(COVID-19) O2 Tubing, Standard Oxygen Connector, 2.1 m, 1 Each"]
[null,"Respiratory Support","104432XUZ01S","(COVID-19) O2 Tubing, Standard Oxygen Connector, 7.6 m, 1 Each"]
[null,"Respiratory Support","104433XUZ01S","(COVID-19) O2 Tubing, Standard Oxygen Connector, 15 m, 1 Each"]
[null,"Respiratory Support","104437XUZ01S","(COVID-19) Flowmeter, High Flow Oxygen, and Accessories for Ventilator, 1 Each"]
[null,"General Patient Care","104438XUZ0B7","(COVID-19) ECG Electrodes, Conductive, Skin-Adherent, Disposable, Snap-Type, 50 Each"]
[null,"General Patient Care","104439XUZ01S","(COVID-19) ECG Lead Wire, Snap Type, 5-Lead, AHA, 1 and 1.6 m, Reusable, 1 Each"]
[null,"General Patient Care","104584XUZ09C","(COVID-19) Alcohol Prep Pads, 70% Isopropyl Alcohol, Non-Sterile, 100 Each"]
[null,"Sanitation","104585XUZ01S","(COVID-19) Cadaver Bag, Adult, 250 x 120 cm, White, Linear Enfored PE, 300 microns, 6 Handles, 1 Each"]
[null,"Diagnostic Sample Collection","104603XUZ01S","(COVID-19) Sealing Film, 100 mm x 75 m, 1 Each"]
[null,"Personal Protective Equipment (PPE)","104605XUZ0DB","(COVID-19) Cuff Tape, White, 10 yd x 1 in, 144 Each"]
[null,"Personal Protective Equipment (PPE)","104612XUZ01S","(COVID-19) Apron, Heavy Duty, Non-Woven, Non-Medical, 1 Each"]
[null,"Personal Protective Equipment (PPE)","104613XUZ01S","(COVID-19) Apron, Plastic, 80 x 120 cm, Washable, PVC, Non-Medical, 1 Each"]
[null,"Personal Protective Equipment (PPE)","104616XUZ0L9","(COVID-19) Eyewash Solution, Sterile, Isotonic, Nozzle Applicator, 8 oz"]
[null,"Personal Protective Equipment (PPE)","104617XUZ0HN","(COVID-19) Gloves, Heavy Duty, Medium, Rubber, Non-Medical, 1 Pair"]
[null,"Personal Protective Equipment (PPE)","104618XUZ0B7","(COVID-19) Surgical Gown, Medium, Sterile, 50 Each"]
[null,"Personal Protective Equipment (PPE)","104618XUZ0HT","(COVID-19) Surgical Gown, Medium, Sterile, 56 Each"]
[null,"Personal Protective Equipment (PPE)","104618XUZ0HX","(COVID-19) Surgical Gown, Medium, Sterile, 40 Each"]
[null,"Personal Protective Equipment (PPE)","104619XUZ0AO","(COVID-19) Surgical Gown, Large, Sterile, 30 Each"]
[null,"Personal Protective Equipment (PPE)","104619XUZ0B7","(COVID-19) Surgical Gown, Large, Sterile, 50 Each"]
[null,"Personal Protective Equipment (PPE)","104619XUZ0HX","(COVID-19) Surgical Gown, Large, Sterile, 40 Each"]
[null,"Personal Protective Equipment (PPE)","104620XUZ0AO","(COVID-19) Surgical Gown, Extra Large, Sterile, 30 Each"]
[null,"Personal Protective Equipment (PPE)","104620XUZ0B7","(COVID-19) Surgical Gown, Extra Large, Sterile, 50 Each"]
[null,"Personal Protective Equipment (PPE)","104620XUZ0HX","(COVID-19) Surgical Gown, Extra Large, Sterile, 40 Each"]
[null,"Personal Protective Equipment (PPE)","104621XUZ09C","(COVID-19) Barrier Gown, Disposable, Blue, Elastic Cuffs, Neck and Waist Ties, Universal Fit, 100 Each"]
[null,"Personal Protective Equipment (PPE)","104621XUZ0AE","(COVID-19) Barrier Gown, Disposable, Blue, Elastic Cuffs, Neck and Waist Ties, Universal Fit, 10 Each"]
[null,"Personal Protective Equipment (PPE)","104621XUZ0HX","(COVID-19) Barrier Gown, Disposable, Blue, Elastic Cuffs, Neck and Waist Ties, Universal Fit, 40 Each"]
[null,"Personal Protective Equipment (PPE)","104625XUZ01S","(COVID-19) Surgical Scrub Pants, Woven, EN 13795, 1 Each"]
[null,"Personal Protective Equipment (PPE)","104625XUZ0HX","(COVID-19) Surgical Scrub Pants, Woven, EN 13795, 40 Each"]
[null,"Sanitation","104626XUZ0AL","(COVID-19) Hand Soap, Anti-Bacterial, Multi-Use, 1 L"]
[null,"Sanitation","104636XUZ0EJ","(COVID-19) Paper Towel, 2 Ply, All Purpose, 12 Each"]
[null,"Personal Protective Equipment (PPE)","104647XUZ0HN","(COVID-19) Boots, PVC, Size 42, Anti-Slip Profile, Knee-High, Black, 1 Pair"]
[null,"Personal Protective Equipment (PPE)","104648XUZ0HN","(COVID-19) Boots, PVC, Size 43, Anti-Slip Profile, Knee-High, Black, 1 Pair"]
[null,"Personal Protective Equipment (PPE)","104649XUZ0HN","(COVID-19) Boots, PVC, Size 44, Anti-Slip Profile, Knee-High, Black, 1 Pair"]
[null,"Personal Protective Equipment (PPE)","104650XUZ09C","(COVID-19) Bouffant Cap, Latex-Free, White, 100 Each"]
[null,"Personal Protective Equipment (PPE)","104650XUZ0AB","(COVID-19) Bouffant Cap, Latex-Free, White, 1000 Each"]
[null,"Personal Protective Equipment (PPE)","104651XUZ0AZ","(COVID-19) Surgical Cap, Protective, Blue, Universal Size, 500 Each"]
[null,"Personal Protective Equipment (PPE)","104652XUZ0B7","(COVID-19) Coverall, Nonwoven, Laminated Fabric Extra Large, w/ Elastic Wrists/Ankles/Hood, Hidden Zipper, Disp., 50 Each"]
[null,"Personal Protective Equipment (PPE)","104652XUZ0HU","(COVID-19) Coverall, Nonwoven, Laminated Fabric Extra Large, w/ Elastic Wrists/Ankles/Hood, Hidden Zipper, Disp., 25 Each"]
[null,"Personal Protective Equipment (PPE)","104653XUZ0B7","(COVID-19) Coverall, Nonwoven, Laminated Fabric Large, w/ Elastic Wrists/Ankles/Hood, Hidden Zipper, Disp., 50 Each"]
[null,"Personal Protective Equipment (PPE)","104653XUZ0HU","(COVID-19) Coverall, Nonwoven, Laminated Fabric Large, w/ Elastic Wrists/Ankles/Hood, Hidden Zipper, Disp., 25 Each"]
[null,"Personal Protective Equipment (PPE)","104654XUZ0B7","(COVID-19) Coverall, Nonwoven, Laminated Fabric Medium, w/ Elastic Wrists/Ankles/Hood, Hidden Zipper, Disp., 50 Each"]
[null,"Personal Protective Equipment (PPE)","104654XUZ0HU","(COVID-19) Coverall, Nonwoven, Laminated Fabric Medium, w/ Elastic Wrists/Ankles/Hood, Hidden Zipper, Disp., 25 Each"]
[null,"Personal Protective Equipment (PPE)","104655XUZ01S","(COVID-19) Protective Goggles, Clear Lens, Indirect Vent, Anti-Fog Coating, Adjustable Strap, 1 Each"]
[null,"Personal Protective Equipment (PPE)","104655XUZ0DB","(COVID-19) Protective Goggles, Clear Lens, Indirect Vent, Anti-Fog Coating, Adjustable Strap, 144 Each"]
[null,"Personal Protective Equipment (PPE)","104656XUZ0GS","(COVID-19) Surgical Hood, White, Universal Fit, Disposable, 100 Pieces"]
[null,"Personal Protective Equipment (PPE)","104657XUZ09C","(COVID-19) Protective Hood, Tyvek, Disposable, Universal Size, 100 Each"]
[null,"Personal Protective Equipment (PPE)","104658XUZ09C","(COVID-19) Shoe Cover, Latex-Free, Blue, Disposable, Universal Size, 100 Each"]
[null,"Personal Protective Equipment (PPE)","104658XUZ0AC","(COVID-19) Shoe Cover, Latex-Free, Blue, Disposable, Universal Size, 200 Each"]
[null,"Personal Protective Equipment (PPE)","104659XUZ0AZ","(COVID-19) Boot Cover, High, 33 cm, Universal, White, SMS, 500 Each"]
[null,"Personal Protective Equipment (PPE)","104659XUZ0EQ","(COVID-19) Boot Cover, High, 33 cm, Universal, White, SMS, 300 Each"]
[null,"Personal Protective Equipment (PPE)","104660XUZ0AC","(COVID-19) Sleeve Cover, Tyvek, Universal Fit, Elastic Shoulder/Wrist, 200 Each"]
[null,"Personal Protective Equipment (PPE)","104661XUZ01S","(COVID-19) Protective Suit, Tyvek, Extra Large, Front Zipper, Open Wrist/Ankle, 1 Each"]
[null,"Personal Protective Equipment (PPE)","104661XUZ09C","(COVID-19) Protective Suit, Tyvek, Extra Large, Front Zipper, Open Wrist/Ankle, 100 Each"]
[null,"Personal Protective Equipment (PPE)","104662XUZ01S","(COVID-19) Protective Suit, Tyvek, Large, Front Zipper, Open Wrist/Ankle, 1 Each"]
[null,"Personal Protective Equipment (PPE)","104662XUZ09C","(COVID-19) Protective Suit, Tyvek, Large, Front Zipper, Open Wrist/Ankle, 100 Each"]
[null,"Personal Protective Equipment (PPE)","104663XUZ01S","(COVID-19) Protective Suit, Tyvek, Medium, Front Zipper, Open Wrist/Ankle, 1 Each"]
[null,"Personal Protective Equipment (PPE)","104663XUZ09C","(COVID-19) Protective Suit, Tyvek, Medium, Front Zipper, Open Wrist/Ankle, 100 Each"]
[null,"General Patient Care","104664XUZ01S","(COVID-19) Vital Sign Monitor, Pulse/Blood Pressure/SpO2, Ped/Adult/Obese BP Cuffs, Battery, 220-240V, 1 Each"]
[null,"Respiratory Support","104679XUZ01S","(COVID-19) Flow Splitter for Oxygen Concentrator, Y Style, 50-350 kPa Input Pressure, 1 Each"]
[null,"Respiratory Support","104680XUZ01S","(COVID-19) Flow Splitter for Oxygen Concentrator, 5 Outlets and 1 Inlet, Independent Flowmeters, 1 Each"]
[null,"Respiratory Support","104681XUZ01S","(COVID-19) Bubble Humidifier, High Flow, Non-Heated, Pressure-Relief Valve, Standard O2 Connections, 1 Each"]
[null,"Respiratory Support","104688XUZ01S","(COVID-19) Laryngoscope, Adult, 28 mm Handle, Battery Operated, Integrated Light Source, Battery Operated, 1 Each"]
[null,"Respiratory Support","104689XUZ01S","(COVID-19) Laryngoscope, Video Guided, Battery Operated, Integrated LED and Screen, Adult/Pediatric Blades, 1 Each"]
[null,"Respiratory Support","104690XUZ01S","(COVID-19) Laryngoscope, Neonatal, 19 mm Handle, Integrated Light Source, Battery Operated, 1 Each"]
[null,"Respiratory Support","104702XUZ01S","(COVID-19) Oxygen Cylinder, Medical-Use, 830 Regulator, 1470 L, 1 Each"]
[null,"Respiratory Support","104703XUZ01S","(COVID-19) Oxygen Analyzer, Measures O2 Purity, Flow Rate, and Patient Outlet Pressure, Portable, 1 Each"]
[null,"Respiratory Support","104704XUZ01S","(COVID-19) Pulse Oximeter Finger Probe, Adult, 1 m Cable, 1 Each"]
[null,"Respiratory Support","104705XUZ01S","(COVID-19) Pulse Oximeter Finger Probe, Pediatric, 1 m Cable, 1 Each"]
[null,"Respiratory Support","104706XUZ01S","(COVID-19) Respirator Qualitative Fit Test Kit, 1 Each"]
[null,"Respiratory Support","104707XUZ01S","(COVID-19) Suction Bulb, Newborn, Reusable, Autoclavable, 1 Each"]
[null,"Respiratory Support","104708XUZ01S","(COVID-19) Suction Pump, Electric, Portable, with Suction Tip, Canister, and Tubing, 1 Each"]
[null,"Respiratory Support","104709XUZ01S","(COVID-19) Suction Pump, Manual, Hand-Operated, Single Use Canister, Disposable Tubing, 1 Each"]
[null,"General Patient Care","104712XUZ01S","(COVID-19) ICU Bed, Powered, Side Rails, Wheels w/ Brake, Motorized Adjustable Sections, 1 Each"]
[null,"General Patient Care","104728XUZ01S","(COVID-19) Suction Tube, Yankauer, w/ Removable Tip, Tubing Connection, Stainless Steel, 1 Each"]
[null,"Laboratory Consumables","104744XUZ0B5","(COVID-19) PCR Tube Rack, 96-Well, 0.2 mL Tubes, Assorted Colors, Snap Lid, 5 Each"]
[null,"Laboratory Consumables","104758XUZ01S","(COVID-19) Pipette, Single Channel, Manual, Adjustable Volume, 5-50 uL, 1 Each"]
[null,"Laboratory Consumables","104759XUZ01S","(COVID-19) Pipette, 8 Channel, Manual, Adjustable Volume, 30-300 uL, 1 Each"]
[null,"General Patient Care","104760XUZ01S","(COVID-19) Thermal Scan Camera, LCD Screen, -20 to 400 C Range, 0.5 C Accuracy, 1 Each"]
[null,"General Patient Care","104761XUZ01S","(COVID-19) Infrared Thermometer, Handheld, Body Temp Range, 1 Each"]
[null,"Diagnostic Sample Collection","104762XUZ0AC","(COVID-19) Specimen Bag, Biohazard, 19 x 23 cm, 200 Each"]
[null,"Diagnostic Sample Collection","104763XUZ09C","(COVID-19) Applicator Stick, Sterile, Cotton Tip Wood, 15 cm, 6 in, 100 Each"]
[null,"Diagnostic Sample Collection","104765XUZ0AB","(COVID-19) Applicator Stick, Cotton Tip Wood, 15 cm, 6 in, Plain, Sterile, Individual Peel Pouch, 1000 Each"]
[null,"Diagnostic Sample Collection","104766XUZ0EC","(COVID-19) Specimen Container, Sputum, 60 mL, Plastic, w/ Lid, 400 Each"]
[null,"Diagnostic Sample Collection","104768XUZ0B7","(COVID-19) Transport Swab, Sterile, With Transport Media, 50 Each"]
[null,"Respiratory Support","104782XUZ03C","(COVID-19) Oxygen w/ BS31#3 Valve and Collar Protector, 5 L"]
[null,"Respiratory Support","104866XUZ01S","(COVID-19) CPAP Helmet, 1 Each"]
[null,"Personal Protective Equipment (PPE)","104931XUZ09C","(COVID-19) Examination Gloves (Nitrile) Large, Powder-Free, Non-Sterile, 100 Each"]
[null,"Personal Protective Equipment (PPE)","104931XUZ0AB","(COVID-19) Examination Gloves (Nitrile) Large, Powder-Free, Non-Sterile, 1000 Each"]
[null,"Personal Protective Equipment (PPE)","104932XUZ09C","(COVID-19) Examination Gloves (Nitrile) Medium, Powder-Free, Non-Sterile, 100 Each"]
[null,"Personal Protective Equipment (PPE)","104932XUZ0AB","(COVID-19) Examination Gloves (Nitrile) Medium, Powder-Free, Non-Sterile, 1000 Each"]
[null,"Personal Protective Equipment (PPE)","104933XUZ09C","(COVID-19) Examination Gloves (Nitrile) Small, Powder-Free, Non-Sterile, 100 Each"]
[null,"Personal Protective Equipment (PPE)","104933XUZ0AB","(COVID-19) Examination Gloves (Nitrile) Small, Powder-Free, Non-Sterile, 1000 Each"]
[null,"Personal Protective Equipment (PPE)","104934XUZ01S","(COVID-19) Face Mask, Respiratory N95 Nose Mask, Adjustable Straps, Medical, Without Valve, 1 Each"]
[null,"Personal Protective Equipment (PPE)","104934XUZ0AB","(COVID-19) Face Mask, Respiratory N95 Nose Mask, Adjustable Straps, Medical, Without Valve, 1000 Each"]
[null,"Personal Protective Equipment (PPE)","104934XUZ0AE","(COVID-19) Face Mask, Respiratory N95 Nose Mask, Adjustable Straps, Medical, Without Valve, 10 Each"]
[null,"Personal Protective Equipment (PPE)","104934XUZ0BK","(COVID-19) Face Mask, Respiratory N95 Nose Mask, Adjustable Straps, Medical, Without Valve, 20 Each"]
[null,"Personal Protective Equipment (PPE)","104934XUZ0M7","(COVID-19) Face Mask, Respiratory N95 Nose Mask, Adjustable Straps, Medical, Without Valve, 240 Each"]
[null,"Personal Protective Equipment (PPE)","104935XUZ0B7","(COVID-19) Face Mask, Surgical 3-Ply, w/ Metal Nose-Clip, Fluid Resistant, 50 Each"]
[null,"Personal Protective Equipment (PPE)","104935XUZ0GD","(COVID-19) Face Mask, Surgical 3-Ply, w/ Metal Nose-Clip, Fluid Resistant, 2000 Each"]
[null,"Personal Protective Equipment (PPE)","104935XUZ0LP","(COVID-19) Face Mask, Surgical 3-Ply, w/ Metal Nose-Clip, Fluid Resistant, 1200 Each"]
[null,"Personal Protective Equipment (PPE)","104936XUZ0B7","(COVID-19) Face Mask, Surgical With Ear Loops, Fluid Resistant, 50 Each"]
[null,"Personal Protective Equipment (PPE)","104936XUZ0GD","(COVID-19) Face Mask, Surgical With Ear Loops, Fluid Resistant, 2000 Each"]
[null,"Personal Protective Equipment (PPE)","104936XUZ0LP","(COVID-19) Face Mask, Surgical With Ear Loops, Fluid Resistant, 1200 Each"]
[null,"Personal Protective Equipment (PPE)","104938XUZ01S","(COVID-19) Face Shield Plastic, Clear, Fog Resistant, Full Face Length, Disposable, Medical, 1 Each"]
[null,"Personal Protective Equipment (PPE)","104938XUZ0AC","(COVID-19) Face Shield Plastic, Clear, Fog Resistant, Full Face Length, Disposable, Medical, 200 Each"]
[null,"Personal Protective Equipment (PPE)","104938XUZ0AE","(COVID-19) Face Shield Plastic, Clear, Fog Resistant, Full Face Length, Disposable, Medical, 10 Each"]
[null,"Personal Protective Equipment (PPE)","104940XUZ09C","(COVID-19) Surgical Gloves (Latex) Size 6.5, Powder-Free, Sterile, Single Use, 100 Each"]
[null,"Personal Protective Equipment (PPE)","104941XUZ09C","(COVID-19) Surgical Gloves (Latex) Size 7, Powder-Free, Sterile, Single Use, 100 Each"]
[null,"Personal Protective Equipment (PPE)","104942XUZ09C","(COVID-19) Surgical Gloves (Latex) Size 7.5, Powder-Free, Sterile, Single Use, 100 Each"]
[null,"Personal Protective Equipment (PPE)","104943XUZ09C","(COVID-19) Surgical Gloves (Latex) Size 8, Powder-Free, Sterile, Single Use, 100 Each"]
[null,"Personal Protective Equipment (PPE)","104944XUZ09C","(COVID-19) Surgical Gloves (Latex) Size 8.5, Powder-Free, Sterile, Single Use, 100 Each"]
[null,"Personal Protective Equipment (PPE)","104945XUZ09C","(COVID-19) Surgical Gloves (Nitrile) Size 6.5, Powder-Free, Sterile, Single Use, 100 Each"]
[null,"Personal Protective Equipment (PPE)","104946XUZ09C","(COVID-19) Surgical Gloves (Nitrile) Size 7, Powder-Free, Sterile, Single Use, 100 Each"]
[null,"Personal Protective Equipment (PPE)","104947XUZ09C","(COVID-19) Surgical Gloves (Nitrile) Size 7.5, Powder-Free, Sterile, Single Use, 100 Each"]
[null,"Personal Protective Equipment (PPE)","104948XUZ09C","(COVID-19) Surgical Gloves (Nitrile) Size 8, Powder-Free, Sterile, Single Use, 100 Each"]
[null,"Sanitation","104989XUZ0AC","(COVID-19) Bag, Biohazard, Printed, Red, 31 x 66 cm, Autoclavable, 2 mil, 200 Each"]
[null,"Sanitation","104990XUZ0AC","(COVID-19) Bag, Biohazard, Printed, Red, 51 x 81 cm, Autoclavable, 2 mil, 200 Each"]
[null,"Diagnostic Sample Collection","104992XUZ0AC","(COVID-19) Specimen Bag, Biohazard, 31 x 66 cm, 200 Each"]
[null,"Personal Protective Equipment (PPE)","104995XUZ01S","(COVID-19) Face Mask, Respiratory N95 Nose Mask, Adjustable Straps, Non-Medical, 1 Each"]
[null,"Personal Protective Equipment (PPE)","104995XUZ0M7","(COVID-19) Face Mask, Respiratory N95 Nose Mask, Adjustable Straps, Non-Medical, 240 Each"]
[null,"Personal Protective Equipment (PPE)","104996XUZ0B7","(COVID-19) Face Mask, Medical With Ear Loops, 50 Each"]
[null,"Personal Protective Equipment (PPE)","104996XUZ0GD","(COVID-19) Face Mask, Medical With Ear Loops, 2000 Each"]
[null,"Personal Protective Equipment (PPE)","104997XUZ0B7","(COVID-19) Face Mask, Medical 3-Ply, w/ Metal Nose-Clip, 50 Each"]
[null,"Personal Protective Equipment (PPE)","104997XUZ0GD","(COVID-19) Face Mask, Medical 3-Ply, w/ Metal Nose-Clip, 2000 Each"]
[null,"Personal Protective Equipment (PPE)","104998XUZ01S","(COVID-19) Face Shield Plastic, Clear, Fog Resistant, Full Face Length, Disposable, Non-Medical, 1 Each"]
[null,"Personal Protective Equipment (PPE)","104998XUZ0AC","(COVID-19) Face Shield Plastic, Clear, Fog Resistant, Full Face Length, Disposable, Non-Medical, 200 Each"]
[null,"Personal Protective Equipment (PPE)","104999XUZ01S","(COVID-19) Elastometric Respirator, Half-Face, Flexible, Reusable, Small, 1 Each"]
[null,"Personal Protective Equipment (PPE)","105000XUZ01S","(COVID-19) Filters for Elastometric Respirator Disposable, P100, 1 Each"]
[null,"Personal Protective Equipment (PPE)","105000XUZ0DS","(COVID-19) Filters for Elastometric Respirator Disposable, P100, 2 Each"]
[null,"Personal Protective Equipment (PPE)","105001XUZ01S","(COVID-19) Elastometric Respirator, Half-Face, Flexible, Reusable, Medium, 1 Each"]
[null,"Personal Protective Equipment (PPE)","105002XUZ01S","(COVID-19) Elastometric Respirator, Half-Face, Flexible, Reusable, Large, 1 Each"]
[null,"Personal Protective Equipment (PPE)","105045XUZ01S","(COVID-19) Apron, 90 x 71 cm, Non-Woven, Non-Medical, 1 Each"]
[null,"Respiratory Support","105046XUZ01S","(COVID-19) Oxygen Analyzer, Measures O2 Purity, Flow Rate, and Temperature, Portable, 1 Each"]
[null,"Respiratory Support","105047XUZ01S","(COVID-19) Pulse Oximeter Finger Probe, Adult, for X10 Monitor, 1 Each"]
[null,"Respiratory Support","105048XUZ01S","(COVID-19) Pulse Oximeter Finger Probe, Pediatric, for X10 Monitor, 1 Each"]
[null,"Personal Protective Equipment (PPE)","105051XUZ0HX","(COVID-19) Apron, Heavy Duty, 130 x 90 cm, Reusable, Non-Medical, 40 Each"]
[null,"Personal Protective Equipment (PPE)","105055XUZ09C","(COVID-19) Surgical Gown, Extra Large, Non-Sterile, 100 Each"]
[null,"Personal Protective Equipment (PPE)","105056XUZ09C","(COVID-19) Surgical Gown, Large, Non-Sterile, 100 Each"]
[null,"Personal Protective Equipment (PPE)","105057XUZ09C","(COVID-19) Surgical Gown, Medium, Non-Sterile, 100 Each"]
[null,"Laboratory Consumables","105113XUZ0EJ","(COVID-19) Filter, Bottle Top, 250 mL, Sterile, PES Filter, 0.2 um pore size, 50 mm diameter, 12 Each"]
[null,"Laboratory Consumables","105124XUZ0AM","(COVID-19) Pipette Tips, Filter Tip, 10 uL, Sterile, Hinged Rack, 10 Racks of 96 Tips"]
[null,"Laboratory Consumables","105125XUZ0AM","(COVID-19) Pipette Tips, Filter Tip, 20 uL, Sterile, Hinged Rack, 10 Racks of 96 Tips"]
[null,"Laboratory Consumables","105127XUZ0BT","(COVID-19) Pipette Tips, Filter Tip, 1000 uL, Sterile, Hinged Rack, 8 Racks of 96 Tips"]
[null,"Laboratory Consumables","105128XUZ0LU","(COVID-19) Lab Wipe 2-Ply, 30 x 30 cm, 1785 Each"]
[null,"Diagnostic Tests","105132XUZ0LX","(COVID-19) TaqPath COVID-19 CE-IVD PCR Kit, 1000 Tests"]
[null,"Personal Protective Equipment (PPE)","105137XUZ01S","(COVID-19) Face Mask, Cloth 3-Ply, Muslin, 3D Stitching Pattern, Washable, 1 Each"]
[null,"Diagnostic Sample Collection","105141XUZ09C","(COVID-19) Specimen Bag, Biohazard, 15 x 23 cm, 100 Each"]
[null,"Personal Protective Equipment (PPE)","105280XUZ0AC","(COVID-19) Boot Cover, High, 42 cm, Universal, White, SMS, 200 Each"]
[null,"Personal Protective Equipment (PPE)","105281XUZ01S","(COVID-19) Surgical Scrub Pants, Unisex, Small, Green, Reusable, 1 Each"]
[null,"Personal Protective Equipment (PPE)","105282XUZ01S","(COVID-19) Surgical Scrub Pants, Unisex, Medium, Green, Reusable, 1 Each"]
[null,"Personal Protective Equipment (PPE)","105283XUZ01S","(COVID-19) Surgical Scrub Pants, Unisex, Large, Green, Reusable, 1 Each"]
[null,"Personal Protective Equipment (PPE)","105358XUZ09C","(COVID-19) Examination Gloves (Nitrile) Mixed Sizes (10% S, 40% M, 40% L, 10% XL), Non-Sterile, Powder Free, 100 Each"]
[null,"Respiratory Support","105490XUZ01S","(COVID-19) Penta Flow Flow Splitter for use with Nuvo 10 and Max 30 [6500-4616], 1 Each"]
[null,"Respiratory Support","105491XUZ02X","(COVID-19) Nuvo 10 Level 2 Spare Parts Kit, 1 Kit"]
[null,"Respiratory Support","105492XUZ02X","(COVID-19) Max 30 Level 1 Spare Parts Kit, 1 Kit"]
[null,"Respiratory Support","105493XUZ02X","(COVID-19) Max 30 Level 2 Spare Parts Kit, 1 Kit"]
[null,"Respiratory Support","105598XUZ02X","(COVID-19) Nuvo 10 Level 1 Spare Parts Kit, 1 Kit"]
[null,"Respiratory Support","105600XUZ01S","(COVID-19) Nuvo 10 Model 1005, UK Plug/G, 10 L, 230V/50 hz [1005UK], 1 Each"]
[null,"Respiratory Support","105601XUZ01S","(COVID-19) Nuvo 10 Model 1005, Euro Plug/C/F, 10 L, 230V/50 hz [1005], 1 Each"]
[null,"Respiratory Support","105602XUZ01S","(COVID-19) Nuvo 10 Model 595, 10 L, 115V/60 hz, Plug Type: A [595], 1 Each"]
[null,"Respiratory Support","105603XUZ01S","(COVID-19) Max 30 Model 3005, 30 L, 50 PSI, 230V/50hz, Plug Type: C or F [3005], 1 Each"]
[null,"Respiratory Support","105604XUZ01S","(COVID-19) Max 30 Model 3005, 30 L, 50 PSI, 230V/50hz, UK Plug/G [3005UK], 1 Each"]
[null,"Respiratory Support","105605XUZ01S","(COVID-19) Max 30 Model 3010, 30 L, 50 PSI, 115V/60hz, Plug Type: A [3010], 1 Each"]
[null,"Respiratory Support","105656XUZ01S","(COVID-19) Resuscitation Mask, Infant, Open Cuff, Latex Free, Size 2, 1 Each"]
[null,"Respiratory Support","105656XUZ0M9","(COVID-19) Resuscitation Mask, Infant, Open Cuff, Latex Free, Size 2, 20 Pieces"]
[null,"Respiratory Support","105657XUZ01S","(COVID-19) Resuscitation Mask, Infant, Open Cuff, Latex Free, Size 1, 1 Each"]
[null,"Respiratory Support","105657XUZ0M9","(COVID-19) Resuscitation Mask, Infant, Open Cuff, Latex Free, Size 1, 20 Pieces"]
[null,"Respiratory Support","105658XUZ01S","(COVID-19) Resuscitation Mask, Infant, Open Cuff, Latex Free, Size 0, 1 Each"]
[null,"Respiratory Support","105658XUZ0BK","(COVID-19) Resuscitation Mask, Infant, Open Cuff, Latex Free, Size 0, 20 Pieces"]
[null,"Respiratory Support","105659XUZ0E5","(COVID-19) Feeding Tube, Nasogastric, CH 12, 92 cm, Sterile, 150 Each"]
[null,"Respiratory Support","105660XUZ0EC","(COVID-19) Feeding Tube, Nasogastric, CH 6, 125 cm, Sterile, 400 Each"]
[null,"Respiratory Support","105661XUZ0E5","(COVID-19) Feeding Tube, Nasogastric, CH 10, 92 cm, Sterile, 150 Each"]
[null,"Respiratory Support","105662XUZ0E5","(COVID-19) Feeding Tube, Nasogastric, CH 8, 120 cm, Sterile, 150 Each"]
[null,"Respiratory Support","105663XUZ0E5","(COVID-19) Feeding Tube, Nasogastric, CH 6, 50 cm, Sterile, 150 Each"]
[null,"Respiratory Support","105664XUZ0E5","(COVID-19) Feeding Tube, Nasogastric, CH 8, 50 cm, Sterile, 150 Each"]
[null,"Respiratory Support","105665XUZ01S","(COVID-19) Nasogastric Tube Holder, Latex-free, Dual Interlocking Tabs, Universal Size, 1 Each"]
[null,"Respiratory Support","105665XUZ0AC","(COVID-19) Nasogastric Tube Holder, Latex-free, Dual Interlocking Tabs, Universal Size, 200 Each"]
[null,"Respiratory Support","105665XUZ0PA","(COVID-19) Nasogastric Tube Holder, Latex-free, Dual Interlocking Tabs, Universal Size, 20 Tubes"]
[null,"Respiratory Support","105666XUZ01S","(COVID-19) Bag Valve Mask, Pediatric, 550 mL Vent. Bag, O2 Reservoir Bag, POP Valve, Size 1 Mask, 1 Each"]
[null,"Respiratory Support","105666XUZ0B5","(COVID-19) Bag Valve Mask, Pediatric, 550 mL Vent. Bag, O2 Reservoir Bag, POP Valve, Size 1 Mask, 5 Each"]
[null,"Respiratory Support","105667XUZ01S","(COVID-19) O2 Tubing, Clear, Crush Resistant, Universal Connector, 7 ft, 1 Each"]
[null,"Respiratory Support","105667XUZ0B7","(COVID-19) O2 Tubing, Clear, Crush Resistant, Universal Connector, 7 ft, 50 Each"]
[null,"Respiratory Support","105668XUZ01S","(COVID-19) O2 Tubing, Clear, Crush Resistant, Universal Connector, 14 ft, 1 Each"]
[null,"Respiratory Support","105668XUZ0B7","(COVID-19) O2 Tubing, Clear, Crush Resistant, Universal Connector, 14 ft, 50 Each"]
[null,"Respiratory Support","105669XUZ0B5","(COVID-19) O2 Tubing, Clear, Crush Resistant, Universal Connector, 25 ft, 5 Each"]
[null,"Respiratory Support","105669XUZ0HU","(COVID-19) O2 Tubing, Clear, Crush Resistant, Universal Connector, 25 ft, 25 Each"]
[null,"Respiratory Support","105670XUZ0AE","(COVID-19) O2 Tubing, Clear, Crush Resistant, Universal Connector, 50 ft, 10 Each"]
[null,"Respiratory Support","105671XUZ01S","(COVID-19) Pulse Oximeter Finger Probe, Infant, 1 m, Soft Tip, 7-Pin Nellcor Compatible, 1 Each"]
[null,"Respiratory Support","105671XUZ0BL","(COVID-19) Pulse Oximeter Finger Probe, Infant, 1 m, Soft Tip, 7-Pin Nellcor Compatible, 24 Each"]
[null,"Respiratory Support","105673XUZ01S","(COVID-19) Oxygen Analyzer, O2 Range 21-95.6%, Flow Range 0-10 LPM, Pressure Range: 0.5-60 PSI, Batt Op, 1 Each"]
[null,"Respiratory Support","105675XUZ0BK","(COVID-19) Suction Canister Holder, 20 Each"]
[null,"Respiratory Support","105676XUZ0HX","(COVID-19) Suction Canister, Rigid, 1200 cc, 40 Each"]
[null,"Respiratory Support","105680XUZ01S","(COVID-19) Flowmeter, Low Flow Oxygen, Wall Type, No Adapter, Max 1 L/min, 1 Each"]
[null,"Respiratory Support","105683XUZ0E7","(COVID-19) O2 Tubing, Green, Crush Resistant, Universal Connector, 25 ft, 25 Pieces"]
[null,"Respiratory Support","105684XUZ01S","(COVID-19) Oxygen Connection Adaptor, Quick Connect, DISS Male x Ohemda, 1 Each"]
[null,"Respiratory Support","105685XUZ0B7","(COVID-19) Oxygen Connection Adaptor, Nut Nipple, Christmas Tree, Green, 50 Each"]
[null,"Respiratory Support","105686XUZ01S","(COVID-19) Oxygen Regulator, Diaphragm-Type, Includes Flowmeter, CGA540 Nut and Nipple Inlet, 1 Each"]
[null,"Respiratory Support","105689XUZ01S","(COVID-19) Feeding Tube, Nasogastric, CH 16, 125 cm, Sterile, 1 Each"]
[null,"Respiratory Support","105690XUZ01S","(COVID-19) Feeding Tube, Nasogastric, CH 18, 125 cm, Sterile, 1 Each"]
[null,"Respiratory Support","105691XUZ01S","(COVID-19) Feeding Tube, Nasogastric, CH 16, 40 cm, Sterile, 1 Each"]
[null,"Respiratory Support","105692XUZ01S","(COVID-19) Feeding Tube, Nasogastric, CH 18, 40 cm, Sterile, 1 Each"]
[null,"Respiratory Support","105693XUZ01S","(COVID-19) Oxygen Cylinder, Medical Use, Type H, 7079 L, 1 Each"]
[null,"Respiratory Support","105694XUZ01S","(COVID-19) Surge Protector, Combination Arrestor V50, 3-pole + NPE 280 V, 1 Each"]
[null,"Respiratory Support","105695XUZ01S","(COVID-19) Surge Protector, Fuse for surge protection xlp00, 1 Each"]
[null,"Respiratory Support","105697XUZ01S","(COVID-19) Flowmeter, Low Flow Oxygen, Direct Probe, Oxyll NF Fitting, 1 Each"]
[null,"Respiratory Support","105698XUZ01S","(COVID-19) Flowmeter, Low Flow Oxygen, Direct Probe, Oxyll Ohmeda Fitting, 1 Each"]
[null,"Respiratory Support","105699XUZ01S","(COVID-19) Flowmeter, 0-15 lpm, No Fitting, 1 Each"]
[null,"Respiratory Support","105700XUZ01S","(COVID-19) Flowmeter, Direct Probe, 0-15 lpm, NF 90-116 Fitting, 1 Each"]
[null,"Respiratory Support","105701XUZ01S","(COVID-19) Flowmeter, Direct Probe, 0-15 lpm, Ohmeda Fitting, 1 Each"]
[null,"Respiratory Support","105702XUZ0BK","(COVID-19) Resuscitation Mask, Infant, Latex Free, Size 0A, 20 Each"]
[null,"Respiratory Support","105703XUZ09C","(COVID-19) Feeding Tube, Nasogastric, CH 10, 40 cm, Sterile, 100 Each"]
[null,"Respiratory Support","105704XUZ09C","(COVID-19) Feeding Tube, Nasogastric, CH 8, 40 cm, Sterile, 100 Each"]
[null,"Respiratory Support","105710XUZ01S","(COVID-19) Flowmeter, Low Flow Oxygen, Wall Type, No Adapter, 150 mm Scale, Max 200 mL/min, 1 Each"]
[null,"Respiratory Support","105711XUZ0BL","(COVID-19) Flowmeter, Low Flow Oxygen, 150-200 mL/min, 24 Each"]
[null,"Respiratory Support","105712XUZ01S","(COVID-19) Oxygen Cylinder Cart, Fits H-Type Cylinders, 1 Each"]
[null,"Respiratory Support","105713XUZ01S","(COVID-19) Oxygen Regulator, Diaphragm Type, 0-100 lpm, Bullnose BSP 341 #3, 1 Each"]
[null,"Respiratory Support","105714XUZ01S","(COVID-19) Oxygen Regulator, Diaphragm Type, Pin Index CGA 540, 1 Each"]
[null,"Respiratory Support","105715XUZ01S","(COVID-19) Oxygen Cylinder Stand, Fits H, T and M Size Cylinders, 1 Each"]
[null,"Respiratory Support","105716XUZ01S","(COVID-19) Oxygen Cylinder Mount, Wall Mount Bracket, Fits 2 H Type Cylinders, Lock Chain, Steel, 1 Each"]
[null,"Respiratory Support","105717XUZ01S","(COVID-19) Oxygen Cylinder Wrench, Universal Fit for H and E Type Cylinders, Non-Magnetic, 1 Each"]
[null,"Respiratory Support","105718XUZ01S","(COVID-19) Surge Protector, 6 Universal Outlets, 220V/240V AC, 13A, 50Hz/60Hz, 1 Each"]
[null,"Respiratory Support","105719XUZ0M9","(COVID-19) Resuscitation Mask, Infant, Latex Free, Size 0, 20 Pieces"]
[null,"Respiratory Support","105720XUZ0M9","(COVID-19) Resuscitation Mask, Infant, Latex Free, Size 2, 20 Pieces"]
[null,"Respiratory Support","105721XUZ01S","(COVID-19) Air-Oxygen Blender, Oxygen Concentration 21-100% Continuous Adjustable, Max 18 L/min Flow Rate, 1 Each"]
[null,"Respiratory Support","105724XUZ01S","(COVID-19) Pulse Oximeter Finger Probe, SpO2 Silicone Soft-tip Sensor, Pediatric, 1m, Reusable, 1 Each"]
[null,"Respiratory Support","105725XUZ01S","(COVID-19) Pulse Oximeter Finger Probe, Neonatal, Wrap Type, 1 m, Soft Tip, 7-Pin Nellcor Compatible, 1 Each"]
[null,"Respiratory Support","105796XUZ0HX","(COVID-19) Feeding Tube, Nasogastric, CH 14, 125 cm, Sterile, 40 Each"]
[null,"Respiratory Support","105797XUZ09C","(COVID-19) Feeding Tube, Nasogastric, CH 14, 40 cm, Sterile, 100 Each"]
[null,"Respiratory Support","105799XUZ01S","(COVID-19) CPAP Harness, Universal Fit, 1 Each"]
[null,"Respiratory Support","105800XUZ01S","(COVID-19) CPAP Mask, Adult, Size 5, 1 Each"]
[null,"Respiratory Support","105801XUZ01S","(COVID-19) CPAP Mask, Child, Size 4, 1 Each"]
[null,"Respiratory Support","105811XUZ01S","(COVID-19) NewLife Intensity 10 120 V/60 Hz, American Plug, O2 MON, SINGLE [AS099-101], 1 Each"]
[null,"Respiratory Support","105812XUZ01S","(COVID-19) NewLife Intensity 10 230 V/50 Hz UK Plug, O2 MON, SINGLE [AS099-210], 1 Each"]
[null,"Respiratory Support","105813XUZ01S","(COVID-19) NewLife Intensity 10 230 V/50 Hz, EU Plug, O2 MON, SINGLE [AS099-103], 1 Each"]
[null,"Respiratory Support","105814XUZ01S","(COVID-19) NewLife Intensity 10 230 V/50 Hz, EU Plug, O2 MON, DUAL [AS099-10], 1 Each"]
[null,"Respiratory Support","105815XUZ01S","(COVID-19) NewLife Intensity 10 230 V/50 Hz UK Plug, O2 MON, DUAL [AS099-201], 1 Each"]
[null,"Respiratory Support","105816XUZ01S","(COVID-19) NewLife Intensity 10 120 V/60 Hz, American Plug, O2 MON, DUAL [AS099-4], 1 Each"]
[null,"Respiratory Support","105824XUZ0B5","(COVID-19) Feeding Tube, Nasogastric, CH 14, 120 cm, Sterile, 5 Each"]
[null,"Respiratory Support","105839XUZ01S","(COVID-19) Oxygen Regulator, Diaphragm Type, 1-15 lpm, Bullnose BSP 341 #3, 1 Each"]
[null,"Respiratory Support","105862XUZ0B7","(COVID-19) CPAP Mask, with Harness, Adult Large #6 [712-0003-50], 50 Each"]
[null,"Respiratory Support","105863XUZ0B7","(COVID-19) CPAP Mask, with Harness, Adult Regular #5 [712-0002-50], 50 Each"]
[null,"Respiratory Support","105895XUZ01S","(COVID-19) Oxygen Cylinder, Medical-Use, H-Type, 250 CF, w/ BSP341#3 Valve and Cap, 1 Each"]
[null,"Respiratory Support","105896XUZ01S","(COVID-19) Oxygen Cylinder, Medical-Use, H-Type, 250 CF, w/ CGA540 Valve and Cap, 1 Each"]
[null,"Respiratory Support","105926XUZ01S","(COVID-19) Oxygen Cylinder Wrench, Universal Fit for H and E Type Cylinders, Steel, Heavy Duty, 1 Each"]
[null,"Respiratory Support","105943XUZ01S","(COVID-19) Oxygen Cylinder, Medical-Use, 250 CF, w/ BS341 #3 Valve and Collar Protector, 1 Each"]
[null,"Diagnostic Tests","105951XUZ08D","(COVID-19) Standard Q COVID-19 Ag Test Kit, 25 Tests"]
[null,"Respiratory Support","105952XUZ0B7","(COVID-19) CPAP Mask, with Harness, Child #4 [712-0004-50], 50 Each"]
[null,"Diagnostic Tests","105954XUZ08D","(COVID-19) Panbio COVID-19 Ag Rapid Test Kit (Nasal), 25 Tests"]
[null,"Diagnostic Tests","105955XUZ08D","(COVID-19) Panbio COVID-19 Ag Rapid Test Kit (Nasopharyngeal), 25 Tests"]
[null,"Respiratory Support","105969XUZ01S","(COVID-19) Oxygen Cylinder, Medical-Use, 7.5 Cubic Meter, 1 Each"]
[null,"Respiratory Support","105982XUZ01S","(COVID-19) Oxygen Cylinder Stand, Fits H, K and M Size Cylinders, 1 Each"]
[null,"Diagnostic Tests","106119XUZ08T","(COVID-19) Cepheid Xpert Xpress SARS-CoV-2, 10 Tests"]
[null,"Respiratory Support","106258XUZ01S","(COVID-19) Oxygen Cylinder Wrench, Open End Spanner, Steel, 15 Degree Angle, 30 mm, 1 Each"]
[null,"Respiratory Support","106259XUZ01S","(COVID-19) Oxygen Regulator, With Flowmeter Adapter, 0 - 15 LPM, 3000 psi Max, CGA992 Inlet Connection, 1 Each"]
[null,"Personal Protective Equipment (PPE)","106276XUZ09C","(COVID-19) Examination Gloves (Nitrile) Extra Large, Powder-Free, Non-Sterile, 100 Each"]
[null,"Personal Protective Equipment (PPE)","106276XUZ0AB","(COVID-19) Examination Gloves (Nitrile) Extra Large, Powder-Free, Non-Sterile, 1000 Each"]
[null,"Respiratory Support","106281XUZ01S","(COVID-19) Flowmeter Adapter, AFROX to DISS Connection, G1/8M Thread, 1 Each"]
[null,"Respiratory Support","106282XUZ01S","(COVID-19) Oxygen Regulator, Diaphragm Type, Bullnose BSP 341 #3 (without flow meter), 1 Each"]
[null,"Respiratory Support","106285XUZ01S","(COVID-19) Flowmeter Adapter, DISS Male to DINN Standard Connector, 9/16-18UNF Thread, 1 Each"]
[null,"Respiratory Support","106288XUZ01S","(COVID-19) Oxygen Cylinder Wrench, BS341 Fit for H and E Type Cylinders, Non-Magnetic, 1 Each"]
[null,"Respiratory Support","106289XUZ01S","(COVID-19) Oxygen Cylinder Wrench, Adjustable, Universal Fit for H and E Type Cylinders, Non-Magnetic, 1 Each"]
[null,"Respiratory Support","106290XUZ01S","(COVID-19) Oxygen Regulator, Single-Stage, 1-15 LPM Flowmeter, w/ Humidifier and Tree Outlet, BS341 #3 Bullnose Inlet, 1 Each"]
[null,"Respiratory Support","106291XUZ01S","(COVID-19) Pulse Oximeter, Portable, Handheld with Cables, Adult Sensor and Batteries Included, 1 Each"]
[null,"General Patient Care","106292XUZ01S","(COVID-19) Blood Pressure Monitor Upper Arm, Small and Standard Adult Cuff, Carrying Case, AA Battery, 1 Each"]
[null,"Respiratory Support","106362XUZ01S","(COVID-19) Penta Flow Flow Splitter [Model 295], 1 Each"]
[null,"Diagnostic Tests","106366XUZ01S","(COVID-19) Cepheid PCK-COVMTB-120-L, 1 Each"]
[null,"Personal Protective Equipment (PPE)","106388XUZ0HX","(COVID-19) Surgical Gown, Small, Sterile, 40 Each"]
[null,"Pharmaceutical Treatment","106459ACA00T","(COVID-19) Molnupiravir, 200 mg Capsule, 40 Capsules"]
[null,"Pharmaceutical Treatment","106459ACA0OA","(COVID-19) Molnupiravir, 200 mg Capsule, 40 Blister Pack Capsules"]
[null,"Diagnostic Tests","106471XUZ08D","(COVID-19) Sure Status COVID-19 Antigen Card Test, 25 Tests"]
[null,"Pharmaceutical Treatment","106541AAZ0OE","(COVID-19) Nirmatrelvir 150 mg + Ritonavir 100 mg Combo Pack Tablets, 5 x 4 Nirmatrelvir + 2 Ritonavir Co-Blister Tablets"]
[null,"Respiratory Support","TBD1","(COVID-19) Infant CPAP - Diamedica-UK Baby CPAP-10  (NEST360 Qualified)"]
[null,"Respiratory Support","TBD2","(COVID-19) Infant CPAP - Phoenix N-300 (NEST360 Qualified)"]
[null,"Respiratory Support","TBD3","(COVID-19) Vayu CPAP "]
[null,"Respiratory Support","TBD4","(COVID-19) Infant Radiant Warmer - Phoenix NWS-101  (NEST360 Qualified)"]
[null,"Respiratory Support","TBD5","(COVID-19) Infant Radiant Warmer - MTTS Wallaby Warmer (NEST360 Qualified)"]
[null,"Respiratory Support","TBD6","(COVID-19) Bag Valve-mask for newborns (200-320 ml)"]
[null,"Respiratory Support","TBD7","(COVID-19) Reusable Suction Device (Penguin Type)"]
[null,"Respiratory Support","TBD8","(COVID-19) Pulse Oximeter - BISTOS BT-710 Oximeter (NEST360 Qualified) "]
[null,"General Patient Care","TBD9","(COVID-19) Embrace Infant Warmer-Phoenix Medical Systems"]
[null,"General Patient Care","TBD10","(COVID-19) Incublanket Series and Wipeable transport"]
[null,"General Patient Care","TBD11","(COVID-19) Dream-Warmer Solution"]
[null,"Respiratory Support","TBD12","(COVID-19) CPAP MTTS Dolphin"]
[null,"Respiratory Support","TBD13","(COVID-19) Saan Cpap"]
[null,"Respiratory Support","TBD14","(COVID-19) Vayu OBS"]
[null,"Respiratory Support","TBD15","(COVID-19) Feeding tubes 6, 8 French (Pack of 200)"]
[null,"Respiratory Support","TBD16","(COVID-19) Oxygen Cylinder, Medical Use-Type D with Valve and Cap"]
[null,"Respiratory Support","TBD17","(COVID-19) Flowmeter, Ultra Low Flow Oxygen, 1 Each. 0-3 LPM"]
[null,"General Patient Care","TBD18","(COVID-19) Multiparameter monitor; Patient vital signs monitor, 6 physiological parameters"]
[null,"General Patient Care","TBD19","(COVID-19) v1000 Backup power supply."]
[null,"General Patient Care","TBD20","(COVID-19) v1500 Backup power supply."]
[null,"General Patient Care","TBD21","(COVID-19) v2200 Backup power supply."]
[null,"Respiratory Support","TBD22","(COVID-19) Lifebox Pulse oximeter"]
[null,"General Patient Care","TBD23","(COVID 19) Voltage stabilizer, Electronic, microprocessor-controlled voltage stabilizer, solid-state tap-switching technology  (1 KvA)"]
[null,"General Patient Care","TBD24","(COVID 19) Voltage stabilizer, Electronic, microprocessor-controlled voltage stabilizer, solid-state tap-switching technology  (2 KvA)"]
[null,"General Patient Care","TBD25","(COVID 19) Voltage stabilizer, Electronic, microprocessor-controlled voltage stabilizer, solid-state tap-switching technology  (3 KvA)"]
[null,"General Patient Care","TBD26","(COVID 19) Surge suppressor; Solid-state electronic"]
[null,"Respiratory Support","TBD27","(COVID 19) Incubator, neonatal  (newborn)"]
[null,"General Patient Care","TBD28","(COVID 19) Blood Gas Machine, ABL90 FLEX"]
[null,"General Patient Care","TBD29","(COVID 19) Blood Gas Machine,  Blood gas analyzer ABL825 including AutoCheck, blood gas, electrolytes, metabolite and oximetry analyzer "]
[null,"Respiratory Support","TBD30","(COVID 19) Vayu bCPAP Consumables Pack"]
[null,"Respiratory Support","TBD31","(COVID 19) MTTS CPAP, 1 Each"]
[null,"Respiratory Support","TBD32","(COVID 19) Diamedica CPAP Baby CPAP 10, 1 Each"]
[null,"Respiratory Support","TBD33","(COVID 19) Vayu bCPAP Consumables Pack (Tubings, Interface, filter paper for Vayu CPAP), 1 Each"]
[null,"General Patient Care","TBD34","(COVID 19) Uninterrupted power supply (UPS) C400 2000VA Online Double Conversion, pure sine wave 40cm x 33cm x 19cm, weight 17kg Wide tolerance for frequency and voltage fluctuation, 1 Each"]
[null,"Respiratory Support","106791XUZ01S","(COVID-19) Bag Valve Mask, Adult, 1500 mL Vent. Bag, O2 Reservoir Bag, POP Valve, 1 Each "]
[null,"Respiratory Support","106792XUZ01S","(COVID-19) Anesthesia Mask, Infant, Open Cuff, Latex Free, Size 2, 1 Each "]
[null,"Respiratory Support","106793XUZ01S","(COVID-19) Anesthesia Mask, Infant, Open Cuff, Latex Free, Size 1, 1 Each "]
[null,"Respiratory Support","106794XUZ01S","(COVID-19) Anesthesia Mask, Infant, Open Cuff, Latex Free, Size 0, 1 Each "]

{"sheet":"Budget Calculator","index":2,"n_rows":582,"n_cols":12,"rows_kept":582,"cut":false,"hidden":false,"merged":[[1,1,1,3],[4,11,5,11],[3,3,4,3],[5,3,6,3]]}
[]
[null,"COVID19 ARP Commodity Quantification & Budget Calculator"]
[null,"Version 9, Current as of June 2024"]
[null,null,null,"***Please note that all listed prices should be considered notional and for initial budgeting purposes only. The ultimate quantity of each product procured will vary based on final pricing received during sourcing.","Total Budget"]
[null,null,null,null,"Est. Commodity Cost",null,null,{"$f":"SUM(I:I)","v":0},null,null,null,"Proportion allocated must be less than or equal to 100%"]
[null,null,null,"***Please note that the ultimate quantity of each product procured may vary based on estimated freight and insurance costs, which may exceed the reserved 30%. The procurement team will endeavor to maintain the proportion of the budget allocated to each product type having taken into consideration freight and insurance costs.","Est. Freight + Insurance",null,null,{"$f":"H5*0.3","v":0}]
[null,null,null,null,"Funding Remaining",null,null,{"$f":"H4-H5-H6","v":0},null,null,null,{"$f":"\"Current Proportion Allocated: \" & ROUND(SUM(L10:L582)*100,2) & \"%\"","v":"Current Proportion Allocated: 0%"}]
[]
[null,"Category","PSM SKU Reference","Commodity Description","Estimated Price","Intended User",null,"Desired Quantity \n(of Pack Size listed in commodity description)","Est. Cost",null,null,"What proportion of your budget are you spending on this product type?"]
[null,null,null,null,{"$f":"_xlfn.IFNA(VLOOKUP(C10,Pricing!A:D,4,FALSE), \"\")","v":""},null,null,null,{"$f":"IFERROR(IF(H10=\"\", \"\", H10*E10), \"\")","v":""},null,null,{"$f":"IFERROR(I10/($H$4-$H$6), \"\")","v":""}]
[null,null,null,null,{"$f":"_xlfn.IFNA(VLOOKUP(C11,Pricing!A:D,4,FALSE), \"\")","v":""},null,null,null,{"$f":"IFERROR(IF(H11=\"\", \"\", H11*E11), \"\")","v":""},null,null,{"$f":"IFERROR(I11/($H$4-$H$6), \"\")","v":""}]
[null,null,null,null,{"$f":"_xlfn.IFNA(VLOOKUP(C12,Pricing!A:D,4,FALSE), \"\")","v":""},null,null,null,{"$f":"IFERROR(IF(H12=\"\", \"\", H12*E12), \"\")","v":""},null,null,""]
[null,null,null,null,{"$f":"_xlfn.IFNA(VLOOKUP(C13,Pricing!A:D,4,FALSE), \"\")","v":""},null,null,null,"",null,null,""]
[null,null,null,null,{"$f":"_xlfn.IFNA(VLOOKUP(C14,Pricing!A:D,4,FALSE), \"\")","v":""},null,null,null,"",null,null,""]
[null,null,null,null,{"$f":"_xlfn.IFNA(VLOOKUP(C15,Pricing!A:D,4,FALSE), \"\")","v":""},null,null,null,"",null,null,""]
[null,null,null,null,{"$f":"_xlfn.IFNA(VLOOKUP(C16,Pricing!A:D,4,FALSE), \"\")","v":""},null,null,null,"",null,null,""]
[null,null,null,null,{"$f":"_xlfn.IFNA(VLOOKUP(C17,Pricing!A:D,4,FALSE), \"\")","v":""},null,null,null,"",null,null,""]
[null,null,null,null,{"$f":"_xlfn.IFNA(VLOOKUP(C18,Pricing!A:D,4,FALSE), \"\")","v":""},null,null,null,"",null,null,""]
[null,null,null,null,{"$f":"_xlfn.IFNA(VLOOKUP(C19,Pricing!A:D,4,FALSE), \"\")","v":""},null,null,null,"",null,null,""]
[null,null,null,null,{"$f":"_xlfn.IFNA(VLOOKUP(C20,Pricing!A:D,4,FALSE), \"\")","v":""},null,null,null,"",null,null,""]
[null,null,null,null,{"$f":"_xlfn.IFNA(VLOOKUP(C21,Pricing!A:D,4,FALSE), \"\")","v":""},null,null,null,"",null,null,""]
[null,null,null,null,{"$f":"_xlfn.IFNA(VLOOKUP(C22,Pricing!A:D,4,FALSE), \"\")","v":""},null,null,null,"",null,null,""]
[null,null,null,null,{"$f":"_xlfn.IFNA(VLOOKUP(C23,Pricing!A:D,4,FALSE), \"\")","v":""},null,null,null,"",null,null,""]
[null,null,null,null,{"$f":"_xlfn.IFNA(VLOOKUP(C24,Pricing!A:D,4,FALSE), \"\")","v":""},null,null,null,"",null,null,""]
[null,null,null,null,{"$f":"_xlfn.IFNA(VLOOKUP(C25,Pricing!A:D,4,FALSE), \"\")","v":""},null,null,null,"",null,null,""]
[null,null,null,null,{"$f":"_xlfn.IFNA(VLOOKUP(C26,Pricing!A:D,4,FALSE), \"\")","v":""},null,null,null,"",null,null,""]
[null,null,null,null,{"$f":"_xlfn.IFNA(VLOOKUP(C27,Pricing!A:D,4,FALSE), \"\")","v":""},null,null,null,"",null,null,""]
[null,null,null,null,{"$f":"_xlfn.IFNA(VLOOKUP(C28,Pricing!A:D,4,FALSE), \"\")","v":""},null,null,null,"",null,null,""]
[null,null,null,null,{"$f":"_xlfn.IFNA(VLOOKUP(C29,Pricing!A:D,4,FALSE), \"\")","v":""},null,null,null,"",null,null,""]
[null,null,null,null,{"$f":"_xlfn.IFNA(VLOOKUP(C30,Pricing!A:D,4,FALSE), \"\")","v":""},null,null,null,"",null,null,""]
[null,null,null,null,{"$f":"_xlfn.IFNA(VLOOKUP(C31,Pricing!A:D,4,FALSE), \"\")","v":""},null,null,null,"",null,null,""]
[null,null,null,null,{"$f":"_xlfn.IFNA(VLOOKUP(C32,Pricing!A:D,4,FALSE), \"\")","v":""},null,null,null,"",null,null,""]
[null,null,null,null,{"$f":"_xlfn.IFNA(VLOOKUP(C33,Pricing!A:D,4,FALSE), \"\")","v":""},null,null,null,"",null,null,""]
[null,null,null,null,{"$f":"_xlfn.IFNA(VLOOKUP(C34,Pricing!A:D,4,FALSE), \"\")","v":""},null,null,null,"",null,null,""]
[null,null,null,null,{"$f":"_xlfn.IFNA(VLOOKUP(C35,Pricing!A:D,4,FALSE), \"\")","v":""},null,null,null,"",null,null,""]
[null,null,null,null,{"$f":"_xlfn.IFNA(VLOOKUP(C36,Pricing!A:D,4,FALSE), \"\")","v":""},null,null,null,"",null,null,""]
[null,null,null,null,{"$f":"_xlfn.IFNA(VLOOKUP(C37,Pricing!A:D,4,FALSE), \"\")","v":""},null,null,null,"",null,null,""]
[null,null,null,null,{"$f":"_xlfn.IFNA(VLOOKUP(C38,Pricing!A:D,4,FALSE), \"\")","v":""},null,null,null,"",null,null,""]
[null,null,null,null,{"$f":"_xlfn.IFNA(VLOOKUP(C39,Pricing!A:D,4,FALSE), \"\")","v":""},null,null,null,"",null,null,""]
[null,null,null,null,{"$f":"_xlfn.IFNA(VLOOKUP(C40,Pricing!A:D,4,FALSE), \"\")","v":""},null,null,null,"",null,null,""]
[null,null,null,null,{"$f":"_xlfn.IFNA(VLOOKUP(C41,Pricing!A:D,4,FALSE), \"\")","v":""},null,null,null,"",null,null,""]
[null,null,null,null,{"$f":"_xlfn.IFNA(VLOOKUP(C42,Pricing!A:D,4,FALSE), \"\")","v":""},null,null,null,"",null,null,""]
[null,null,null,null,{"$f":"_xlfn.IFNA(VLOOKUP(C43,Pricing!A:D,4,FALSE), \"\")","v":""},null,null,null,"",null,null,""]
[null,null,null,null,{"$f":"_xlfn.IFNA(VLOOKUP(C44,Pricing!A:D,4,FALSE), \"\")","v":""},null,null,null,"",null,null,""]
[null,null,null,null,{"$f":"_xlfn.IFNA(VLOOKUP(C45,Pricing!A:D,4,FALSE), \"\")","v":""},null,null,null,"",null,null,""]
[null,null,null,null,{"$f":"_xlfn.IFNA(VLOOKUP(C46,Pricing!A:D,4,FALSE), \"\")","v":""},null,null,null,"",null,null,""]
[null,null,null,null,{"$f":"_xlfn.IFNA(VLOOKUP(C47,Pricing!A:D,4,FALSE), \"\")","v":""},null,null,null,"",null,null,""]
[null,null,null,null,{"$f":"_xlfn.IFNA(VLOOKUP(C48,Pricing!A:D,4,FALSE), \"\")","v":""},null,null,null,"",null,null,""]
[null,null,null,null,{"$f":"_xlfn.IFNA(VLOOKUP(C49,Pricing!A:D,4,FALSE), \"\")","v":""},null,null,null,"",null,null,""]
[null,null,null,null,{"$f":"_xlfn.IFNA(VLOOKUP(C50,Pricing!A:D,4,FALSE), \"\")","v":""},null,null,null,"",null,null,""]
[null,null,null,null,{"$f":"_xlfn.IFNA(VLOOKUP(C51,Pricing!A:D,4,FALSE), \"\")","v":""},null,null,null,"",null,null,""]
[null,null,null,null,{"$f":"_xlfn.IFNA(VLOOKUP(C52,Pricing!A:D,4,FALSE), \"\")","v":""},null,null,null,"",null,null,""]
[null,null,null,null,{"$f":"_xlfn.IFNA(VLOOKUP(C53,Pricing!A:D,4,FALSE), \"\")","v":""},null,null,null,"",null,null,""]
[null,null,null,null,{"$f":"_xlfn.IFNA(VLOOKUP(C54,Pricing!A:D,4,FALSE), \"\")","v":""},null,null,null,"",null,null,""]
[null,null,null,null,{"$f":"_xlfn.IFNA(VLOOKUP(C55,Pricing!A:D,4,FALSE), \"\")","v":""},null,null,null,"",null,null,""]
[null,null,null,null,{"$f":"_xlfn.IFNA(VLOOKUP(C56,Pricing!A:D,4,FALSE), \"\")","v":""},null,null,null,"",null,null,""]
[null,null,null,null,{"$f":"_xlfn.IFNA(VLOOKUP(C57,Pricing!A:D,4,FALSE), \"\")","v":""},null,null,null,"",null,null,""]
[null,null,null,null,{"$f":"_xlfn.IFNA(VLOOKUP(C58,Pricing!A:D,4,FALSE), \"\")","v":""},null,null,null,"",null,null,""]
[null,null,null,null,{"$f":"_xlfn.IFNA(VLOOKUP(C59,Pricing!A:D,4,FALSE), \"\")","v":""},null,null,null,"",null,null,""]
[null,null,null,null,{"$f":"_xlfn.IFNA(VLOOKUP(C60,Pricing!A:D,4,FALSE), \"\")","v":""},null,null,null,"",null,null,""]
[null,null,null,null,{"$f":"_xlfn.IFNA(VLOOKUP(C61,Pricing!A:D,4,FALSE), \"\")","v":""},null,null,null,"",null,null,""]
[null,null,null,null,{"$f":"_xlfn.IFNA(VLOOKUP(C62,Pricing!A:D,4,FALSE), \"\")","v":""},null,null,null,"",null,null,""]
[null,null,null,null,{"$f":"_xlfn.IFNA(VLOOKUP(C63,Pricing!A:D,4,FALSE), \"\")","v":""},null,null,null,"",null,null,""]
[null,null,null,null,{"$f":"_xlfn.IFNA(VLOOKUP(C64,Pricing!A:D,4,FALSE), \"\")","v":""},null,null,null,"",null,null,""]
[null,null,null,null,{"$f":"_xlfn.IFNA(VLOOKUP(C65,Pricing!A:D,4,FALSE), \"\")","v":""},null,null,null,"",null,null,""]
[null,null,null,null,{"$f":"_xlfn.IFNA(VLOOKUP(C66,Pricing!A:D,4,FALSE), \"\")","v":""},null,null,null,"",null,null,""]
[null,null,null,null,{"$f":"_xlfn.IFNA(VLOOKUP(C67,Pricing!A:D,4,FALSE), \"\")","v":""},null,null,null,"",null,null,""]
[null,null,null,null,{"$f":"_xlfn.IFNA(VLOOKUP(C68,Pricing!A:D,4,FALSE), \"\")","v":""},null,null,null,"",null,null,""]
[null,null,null,null,{"$f":"_xlfn.IFNA(VLOOKUP(C69,Pricing!A:D,4,FALSE), \"\")","v":""},null,null,null,"",null,null,""]
[null,null,null,null,{"$f":"_xlfn.IFNA(VLOOKUP(C70,Pricing!A:D,4,FALSE), \"\")","v":""},null,null,null,"",null,null,""]
[null,null,null,null,{"$f":"_xlfn.IFNA(VLOOKUP(C71,Pricing!A:D,4,FALSE), \"\")","v":""},null,null,null,"",null,null,""]
[null,null,null,null,{"$f":"_xlfn.IFNA(VLOOKUP(C72,Pricing!A:D,4,FALSE), \"\")","v":""},null,null,null,"",null,null,""]
[null,null,null,null,{"$f":"_xlfn.IFNA(VLOOKUP(C73,Pricing!A:D,4,FALSE), \"\")","v":""},null,null,null,"",null,null,""]
[null,null,null,null,{"$f":"_xlfn.IFNA(VLOOKUP(C74,Pricing!A:D,4,FALSE), \"\")","v":""},null,null,null,"",null,null,""]
[null,null,null,null,{"$f":"_xlfn.IFNA(VLOOKUP(C75,Pricing!A:D,4,FALSE), \"\")","v":""},null,null,null,{"$f":"IFERROR(IF(H75=\"\", \"\", H75*E75), \"\")","v":""},null,null,{"$f":"IFERROR(I75/($H$4-$H$6), \"\")","v":""}]
[null,null,null,null,{"$f":"_xlfn.IFNA(VLOOKUP(C76,Pricing!A:D,4,FALSE), \"\")","v":""},null,null,null,"",null,null,""]
[null,null,null,null,{"$f":"_xlfn.IFNA(VLOOKUP(C77,Pricing!A:D,4,FALSE), \"\")","v":""},null,null,null,"",null,null,""]
[null,null,null,null,{"$f":"_xlfn.IFNA(VLOOKUP(C78,Pricing!A:D,4,FALSE), \"\")","v":""},null,null,null,"",null,null,""]
[null,null,null,null,{"$f":"_xlfn.IFNA(VLOOKUP(C79,Pricing!A:D,4,FALSE), \"\")","v":""},null,null,null,"",null,null,""]
[null,null,null,null,{"$f":"_xlfn.IFNA(VLOOKUP(C80,Pricing!A:D,4,FALSE), \"\")","v":""},null,null,null,"",null,null,""]
[null,null,null,null,{"$f":"_xlfn.IFNA(VLOOKUP(C81,Pricing!A:D,4,FALSE), \"\")","v":""},null,null,null,"",null,null,""]
[null,null,null,null,{"$f":"_xlfn.IFNA(VLOOKUP(C82,Pricing!A:D,4,FALSE), \"\")","v":""},null,null,null,"",null,null,""]
[null,null,null,null,{"$f":"_xlfn.IFNA(VLOOKUP(C83,Pricing!A:D,4,FALSE), \"\")","v":""},null,null,null,"",null,null,""]
[null,null,null,null,{"$f":"_xlfn.IFNA(VLOOKUP(C84,Pricing!A:D,4,FALSE), \"\")","v":""},null,null,null,"",null,null,""]
[null,null,null,null,{"$f":"_xlfn.IFNA(VLOOKUP(C85,Pricing!A:D,4,FALSE), \"\")","v":""},null,null,null,"",null,null,""]
[null,null,null,null,{"$f":"_xlfn.IFNA(VLOOKUP(C86,Pricing!A:D,4,FALSE), \"\")","v":""},null,null,null,"",null,null,""]
[null,null,null,null,{"$f":"_xlfn.IFNA(VLOOKUP(C87,Pricing!A:D,4,FALSE), \"\")","v":""},null,null,null,"",null,null,""]
[null,null,null,null,{"$f":"_xlfn.IFNA(VLOOKUP(C88,Pricing!A:D,4,FALSE), \"\")","v":""},null,null,null,"",null,null,""]
[null,null,null,null,{"$f":"_xlfn.IFNA(VLOOKUP(C89,Pricing!A:D,4,FALSE), \"\")","v":""},null,null,null,"",null,null,""]
[null,null,null,null,{"$f":"_xlfn.IFNA(VLOOKUP(C90,Pricing!A:D,4,FALSE), \"\")","v":""},null,null,null,"",null,null,""]
[null,null,null,null,{"$f":"_xlfn.IFNA(VLOOKUP(C91,Pricing!A:D,4,FALSE), \"\")","v":""},null,null,null,"",null,null,""]
[null,null,null,null,{"$f":"_xlfn.IFNA(VLOOKUP(C92,Pricing!A:D,4,FALSE), \"\")","v":""},null,null,null,"",null,null,""]
[null,null,null,null,{"$f":"_xlfn.IFNA(VLOOKUP(C93,Pricing!A:D,4,FALSE), \"\")","v":""},null,null,null,"",null,null,""]
[null,null,null,null,{"$f":"_xlfn.IFNA(VLOOKUP(C94,Pricing!A:D,4,FALSE), \"\")","v":""},null,null,null,{"$f":"IFERROR(IF(H94=\"\", \"\", H94*E94), \"\")","v":""},null,null,{"$f":"IFERROR(I94/($H$4-$H$6), \"\")","v":""}]
[null,null,null,null,{"$f":"_xlfn.IFNA(VLOOKUP(C95,Pricing!A:D,4,FALSE), \"\")","v":""},null,null,null,"",null,null,""]
[null,null,null,null,{"$f":"_xlfn.IFNA(VLOOKUP(C96,Pricing!A:D,4,FALSE), \"\")","v":""},null,null,null,"",null,null,""]
[null,null,null,null,{"$f":"_xlfn.IFNA(VLOOKUP(C97,Pricing!A:D,4,FALSE), \"\")","v":""},null,null,null,"",null,null,""]
[null,null,null,null,{"$f":"_xlfn.IFNA(VLOOKUP(C98,Pricing!A:D,4,FALSE), \"\")","v":""},null,null,null,"",null,null,""]
[null,null,null,null,{"$f":"_xlfn.IFNA(VLOOKUP(C99,Pricing!A:D,4,FALSE), \"\")","v":""},null,null,null,"",null,null,""]
[null,null,null,null,{"$f":"_xlfn.IFNA(VLOOKUP(C100,Pricing!A:D,4,FALSE), \"\")","v":""},null,null,null,"",null,null,""]
[null,null,null,null,{"$f":"_xlfn.IFNA(VLOOKUP(C101,Pricing!A:D,4,FALSE), \"\")","v":""},null,null,null,"",null,null,""]
[null,null,null,null,{"$f":"_xlfn.IFNA(VLOOKUP(C102,Pricing!A:D,4,FALSE), \"\")","v":""},null,null,null,"",null,null,""]
[null,null,null,null,{"$f":"_xlfn.IFNA(VLOOKUP(C103,Pricing!A:D,4,FALSE), \"\")","v":""},null,null,null,"",null,null,""]
[null,null,null,null,{"$f":"_xlfn.IFNA(VLOOKUP(C104,Pricing!A:D,4,FALSE), \"\")","v":""},null,null,null,"",null,null,""]
[null,null,null,null,{"$f":"_xlfn.IFNA(VLOOKUP(C105,Pricing!A:D,4,FALSE), \"\")","v":""},null,null,null,"",null,null,""]
[null,null,null,null,{"$f":"_xlfn.IFNA(VLOOKUP(C106,Pricing!A:D,4,FALSE), \"\")","v":""},null,null,null,"",null,null,""]
[null,null,null,null,{"$f":"_xlfn.IFNA(VLOOKUP(C107,Pricing!A:D,4,FALSE), \"\")","v":""},null,null,null,"",null,null,""]
[null,null,null,null,{"$f":"_xlfn.IFNA(VLOOKUP(C108,Pricing!A:D,4,FALSE), \"\")","v":""},null,null,null,"",null,null,""]
[null,null,null,null,{"$f":"_xlfn.IFNA(VLOOKUP(C109,Pricing!A:D,4,FALSE), \"\")","v":""},null,null,null,"",null,null,""]
[null,null,null,null,{"$f":"_xlfn.IFNA(VLOOKUP(C110,Pricing!A:D,4,FALSE), \"\")","v":""},null,null,null,"",null,null,""]
[null,null,null,null,{"$f":"_xlfn.IFNA(VLOOKUP(C111,Pricing!A:D,4,FALSE), \"\")","v":""},null,null,null,"",null,null,""]
[null,null,null,null,{"$f":"_xlfn.IFNA(VLOOKUP(C112,Pricing!A:D,4,FALSE), \"\")","v":""},null,null,null,"",null,null,""]
[null,null,null,null,{"$f":"_xlfn.IFNA(VLOOKUP(C113,Pricing!A:D,4,FALSE), \"\")","v":""},null,null,null,"",null,null,""]
[null,null,null,null,{"$f":"_xlfn.IFNA(VLOOKUP(C114,Pricing!A:D,4,FALSE), \"\")","v":""},null,null,null,"",null,null,""]
[null,null,null,null,{"$f":"_xlfn.IFNA(VLOOKUP(C115,Pricing!A:D,4,FALSE), \"\")","v":""},null,null,null,"",null,null,""]
[null,null,null,null,{"$f":"_xlfn.IFNA(VLOOKUP(C116,Pricing!A:D,4,FALSE), \"\")","v":""},null,null,null,"",null,null,""]
[null,null,null,null,{"$f":"_xlfn.IFNA(VLOOKUP(C117,Pricing!A:D,4,FALSE), \"\")","v":""},null,null,null,"",null,null,""]
[null,null,null,null,{"$f":"_xlfn.IFNA(VLOOKUP(C118,Pricing!A:D,4,FALSE), \"\")","v":""},null,null,null,"",null,null,""]
[null,null,null,null,{"$f":"_xlfn.IFNA(VLOOKUP(C119,Pricing!A:D,4,FALSE), \"\")","v":""},null,null,null,"",null,null,""]
[null,null,null,null,{"$f":"_xlfn.IFNA(VLOOKUP(C120,Pricing!A:D,4,FALSE), \"\")","v":""},null,null,null,"",null,null,""]
[null,null,null,null,{"$f":"_xlfn.IFNA(VLOOKUP(C121,Pricing!A:D,4,FALSE), \"\")","v":""},null,null,null,"",null,null,""]
[null,null,null,null,{"$f":"_xlfn.IFNA(VLOOKUP(C122,Pricing!A:D,4,FALSE), \"\")","v":""},null,null,null,"",null,null,""]
[null,null,null,null,{"$f":"_xlfn.IFNA(VLOOKUP(C123,Pricing!A:D,4,FALSE), \"\")","v":""},null,null,null,"",null,null,""]
[null,null,null,null,{"$f":"_xlfn.IFNA(VLOOKUP(C124,Pricing!A:D,4,FALSE), \"\")","v":""},null,null,null,"",null,null,""]
[null,null,null,null,{"$f":"_xlfn.IFNA(VLOOKUP(C125,Pricing!A:D,4,FALSE), \"\")","v":""},null,null,null,"",null,null,""]
[null,null,null,null,{"$f":"_xlfn.IFNA(VLOOKUP(C126,Pricing!A:D,4,FALSE), \"\")","v":""},null,null,null,"",null,null,""]
[null,null,null,null,{"$f":"_xlfn.IFNA(VLOOKUP(C127,Pricing!A:D,4,FALSE), \"\")","v":""},null,null,null,"",null,null,""]
[null,null,null,null,{"$f":"_xlfn.IFNA(VLOOKUP(C128,Pricing!A:D,4,FALSE), \"\")","v":""},null,null,null,"",null,null,""]
[null,null,null,null,{"$f":"_xlfn.IFNA(VLOOKUP(C129,Pricing!A:D,4,FALSE), \"\")","v":""},null,null,null,"",null,null,""]
[null,null,null,null,{"$f":"_xlfn.IFNA(VLOOKUP(C130,Pricing!A:D,4,FALSE), \"\")","v":""},null,null,null,"",null,null,""]
[null,null,null,null,{"$f":"_xlfn.IFNA(VLOOKUP(C131,Pricing!A:D,4,FALSE), \"\")","v":""},null,null,null,"",null,null,""]
[null,null,null,null,{"$f":"_xlfn.IFNA(VLOOKUP(C132,Pricing!A:D,4,FALSE), \"\")","v":""},null,null,null,"",null,null,""]
[null,null,null,null,{"$f":"_xlfn.IFNA(VLOOKUP(C133,Pricing!A:D,4,FALSE), \"\")","v":""},null,null,null,"",null,null,""]
[null,null,null,null,{"$f":"_xlfn.IFNA(VLOOKUP(C134,Pricing!A:D,4,FALSE), \"\")","v":""},null,null,null,"",null,null,""]
[null,null,null,null,{"$f":"_xlfn.IFNA(VLOOKUP(C135,Pricing!A:D,4,FALSE), \"\")","v":""},null,null,null,"",null,null,""]
[null,null,null,null,{"$f":"_xlfn.IFNA(VLOOKUP(C136,Pricing!A:D,4,FALSE), \"\")","v":""},null,null,null,"",null,null,""]
[null,null,null,null,{"$f":"_xlfn.IFNA(VLOOKUP(C137,Pricing!A:D,4,FALSE), \"\")","v":""},null,null,null,"",null,null,""]
[null,null,null,null,{"$f":"_xlfn.IFNA(VLOOKUP(C138,Pricing!A:D,4,FALSE), \"\")","v":""},null,null,null,"",null,null,""]
[null,null,null,null,{"$f":"_xlfn.IFNA(VLOOKUP(C139,Pricing!A:D,4,FALSE), \"\")","v":""},null,null,null,"",null,null,""]
[null,null,null,null,{"$f":"_xlfn.IFNA(VLOOKUP(C140,Pricing!A:D,4,FALSE), \"\")","v":""},null,null,null,"",null,null,""]
[null,null,null,null,{"$f":"_xlfn.IFNA(VLOOKUP(C141,Pricing!A:D,4,FALSE), \"\")","v":""},null,null,null,"",null,null,""]
[null,null,null,null,{"$f":"_xlfn.IFNA(VLOOKUP(C142,Pricing!A:D,4,FALSE), \"\")","v":""},null,null,null,"",null,null,""]
[null,null,null,null,{"$f":"_xlfn.IFNA(VLOOKUP(C143,Pricing!A:D,4,FALSE), \"\")","v":""},null,null,null,"",null,null,""]
[null,null,null,null,{"$f":"_xlfn.IFNA(VLOOKUP(C144,Pricing!A:D,4,FALSE), \"\")","v":""},null,null,null,"",null,null,""]
[null,null,null,null,{"$f":"_xlfn.IFNA(VLOOKUP(C145,Pricing!A:D,4,FALSE), \"\")","v":""},null,null,null,"",null,null,""]
[null,null,null,null,{"$f":"_xlfn.IFNA(VLOOKUP(C146,Pricing!A:D,4,FALSE), \"\")","v":""},null,null,null,"",null,null,""]
[null,null,null,null,{"$f":"_xlfn.IFNA(VLOOKUP(C147,Pricing!A:D,4,FALSE), \"\")","v":""},null,null,null,"",null,null,""]
[null,null,null,null,{"$f":"_xlfn.IFNA(VLOOKUP(C148,Pricing!A:D,4,FALSE), \"\")","v":""},null,null,null,"",null,null,""]
[null,null,null,null,{"$f":"_xlfn.IFNA(VLOOKUP(C149,Pricing!A:D,4,FALSE), \"\")","v":""},null,null,null,"",null,null,""]
[null,null,null,null,{"$f":"_xlfn.IFNA(VLOOKUP(C150,Pricing!A:D,4,FALSE), \"\")","v":""},null,null,null,"",null,null,""]
[null,null,null,null,{"$f":"_xlfn.IFNA(VLOOKUP(C151,Pricing!A:D,4,FALSE), \"\")","v":""},null,null,null,"",null,null,""]
[null,null,null,null,{"$f":"_xlfn.IFNA(VLOOKUP(C152,Pricing!A:D,4,FALSE), \"\")","v":""},null,null,null,"",null,null,""]
[null,null,null,null,{"$f":"_xlfn.IFNA(VLOOKUP(C153,Pricing!A:D,4,FALSE), \"\")","v":""},null,null,null,"",null,null,""]
[null,null,null,null,{"$f":"_xlfn.IFNA(VLOOKUP(C154,Pricing!A:D,4,FALSE), \"\")","v":""},null,null,null,"",null,null,""]
[null,null,null,null,{"$f":"_xlfn.IFNA(VLOOKUP(C155,Pricing!A:D,4,FALSE), \"\")","v":""},null,null,null,"",null,null,""]
[null,null,null,null,{"$f":"_xlfn.IFNA(VLOOKUP(C156,Pricing!A:D,4,FALSE), \"\")","v":""},null,null,null,"",null,null,""]
[null,null,null,null,{"$f":"_xlfn.IFNA(VLOOKUP(C157,Pricing!A:D,4,FALSE), \"\")","v":""},null,null,null,"",null,null,""]
[null,null,null,null,{"$f":"_xlfn.IFNA(VLOOKUP(C158,Pricing!A:D,4,FALSE), \"\")","v":""},null,null,null,{"$f":"IFERROR(IF(H158=\"\", \"\", H158*E158), \"\")","v":""},null,null,{"$f":"IFERROR(I158/($H$4-$H$6), \"\")","v":""}]
[null,null,null,null,{"$f":"_xlfn.IFNA(VLOOKUP(C159,Pricing!A:D,4,FALSE), \"\")","v":""},null,null,null,"",null,null,""]
[null,null,null,null,{"$f":"_xlfn.IFNA(VLOOKUP(C160,Pricing!A:D,4,FALSE), \"\")","v":""},null,null,null,"",null,null,""]
[null,null,null,null,{"$f":"_xlfn.IFNA(VLOOKUP(C161,Pricing!A:D,4,FALSE), \"\")","v":""},null,null,null,"",null,null,""]
[null,null,null,null,{"$f":"_xlfn.IFNA(VLOOKUP(C162,Pricing!A:D,4,FALSE), \"\")","v":""},null,null,null,"",null,null,""]
[null,null,null,null,{"$f":"_xlfn.IFNA(VLOOKUP(C163,Pricing!A:D,4,FALSE), \"\")","v":""},null,null,null,"",null,null,""]
[null,null,null,null,{"$f":"_xlfn.IFNA(VLOOKUP(C164,Pricing!A:D,4,FALSE), \"\")","v":""},null,null,null,"",null,null,""]
[null,null,null,null,{"$f":"_xlfn.IFNA(VLOOKUP(C165,Pricing!A:D,4,FALSE), \"\")","v":""},null,null,null,"",null,null,""]
[null,null,null,null,{"$f":"_xlfn.IFNA(VLOOKUP(C166,Pricing!A:D,4,FALSE), \"\")","v":""},null,null,null,"",null,null,""]
[null,null,null,null,{"$f":"_xlfn.IFNA(VLOOKUP(C167,Pricing!A:D,4,FALSE), \"\")","v":""},null,null,null,"",null,null,""]
[null,null,null,null,{"$f":"_xlfn.IFNA(VLOOKUP(C168,Pricing!A:D,4,FALSE), \"\")","v":""},null,null,null,"",null,null,""]
[null,null,null,null,{"$f":"_xlfn.IFNA(VLOOKUP(C169,Pricing!A:D,4,FALSE), \"\")","v":""},null,null,null,"",null,null,""]
[null,null,null,null,{"$f":"_xlfn.IFNA(VLOOKUP(C170,Pricing!A:D,4,FALSE), \"\")","v":""},null,null,null,"",null,null,""]
[null,null,null,null,{"$f":"_xlfn.IFNA(VLOOKUP(C171,Pricing!A:D,4,FALSE), \"\")","v":""},null,null,null,"",null,null,""]
[null,null,null,null,{"$f":"_xlfn.IFNA(VLOOKUP(C172,Pricing!A:D,4,FALSE), \"\")","v":""},null,null,null,"",null,null,""]
[null,null,null,null,{"$f":"_xlfn.IFNA(VLOOKUP(C173,Pricing!A:D,4,FALSE), \"\")","v":""},null,null,null,"",null,null,""]
[null,null,null,null,{"$f":"_xlfn.IFNA(VLOOKUP(C174,Pricing!A:D,4,FALSE), \"\")","v":""},null,null,null,"",null,null,""]
[null,null,null,null,{"$f":"_xlfn.IFNA(VLOOKUP(C175,Pricing!A:D,4,FALSE), \"\")","v":""},null,null,null,"",null,null,""]
[null,null,null,null,{"$f":"_xlfn.IFNA(VLOOKUP(C176,Pricing!A:D,4,FALSE), \"\")","v":""},null,null,null,"",null,null,""]
[null,null,null,null,{"$f":"_xlfn.IFNA(VLOOKUP(C177,Pricing!A:D,4,FALSE), \"\")","v":""},null,null,null,"",null,null,""]
[null,null,null,null,{"$f":"_xlfn.IFNA(VLOOKUP(C178,Pricing!A:D,4,FALSE), \"\")","v":""},null,null,null,"",null,null,""]
[null,null,null,null,{"$f":"_xlfn.IFNA(VLOOKUP(C179,Pricing!A:D,4,FALSE), \"\")","v":""},null,null,null,"",null,null,""]
[null,null,null,null,{"$f":"_xlfn.IFNA(VLOOKUP(C180,Pricing!A:D,4,FALSE), \"\")","v":""},null,null,null,"",null,null,""]
[null,null,null,null,{"$f":"_xlfn.IFNA(VLOOKUP(C181,Pricing!A:D,4,FALSE), \"\")","v":""},null,null,null,"",null,null,""]
[null,null,null,null,{"$f":"_xlfn.IFNA(VLOOKUP(C182,Pricing!A:D,4,FALSE), \"\")","v":""},null,null,null,"",null,null,""]
[null,null,null,null,{"$f":"_xlfn.IFNA(VLOOKUP(C183,Pricing!A:D,4,FALSE), \"\")","v":""},null,null,null,"",null,null,""]
[null,null,null,null,{"$f":"_xlfn.IFNA(VLOOKUP(C184,Pricing!A:D,4,FALSE), \"\")","v":""},null,null,null,"",null,null,""]
[null,null,null,null,{"$f":"_xlfn.IFNA(VLOOKUP(C185,Pricing!A:D,4,FALSE), \"\")","v":""},null,null,null,"",null,null,""]
[null,null,null,null,{"$f":"_xlfn.IFNA(VLOOKUP(C186,Pricing!A:D,4,FALSE), \"\")","v":""},null,null,null,"",null,null,""]
[null,null,null,null,{"$f":"_xlfn.IFNA(VLOOKUP(C187,Pricing!A:D,4,FALSE), \"\")","v":""},null,null,null,"",null,null,""]
[null,null,null,null,{"$f":"_xlfn.IFNA(VLOOKUP(C188,Pricing!A:D,4,FALSE), \"\")","v":""},null,null,null,"",null,null,""]
[null,null,null,null,{"$f":"_xlfn.IFNA(VLOOKUP(C189,Pricing!A:D,4,FALSE), \"\")","v":""},null,null,null,"",null,null,""]
[null,null,null,null,{"$f":"_xlfn.IFNA(VLOOKUP(C190,Pricing!A:D,4,FALSE), \"\")","v":""},null,null,null,"",null,null,""]
[null,null,null,null,{"$f":"_xlfn.IFNA(VLOOKUP(C191,Pricing!A:D,4,FALSE), \"\")","v":""},null,null,null,"",null,null,""]
[null,null,null,null,{"$f":"_xlfn.IFNA(VLOOKUP(C192,Pricing!A:D,4,FALSE), \"\")","v":""},null,null,null,"",null,null,""]
[null,null,null,null,{"$f":"_xlfn.IFNA(VLOOKUP(C193,Pricing!A:D,4,FALSE), \"\")","v":""},null,null,null,"",null,null,""]
[null,null,null,null,{"$f":"_xlfn.IFNA(VLOOKUP(C194,Pricing!A:D,4,FALSE), \"\")","v":""},null,null,null,"",null,null,""]
[null,null,null,null,{"$f":"_xlfn.IFNA(VLOOKUP(C195,Pricing!A:D,4,FALSE), \"\")","v":""},null,null,null,"",null,null,""]
[null,null,null,null,{"$f":"_xlfn.IFNA(VLOOKUP(C196,Pricing!A:D,4,FALSE), \"\")","v":""},null,null,null,"",null,null,""]
[null,null,null,null,{"$f":"_xlfn.IFNA(VLOOKUP(C197,Pricing!A:D,4,FALSE), \"\")","v":""},null,null,null,"",null,null,""]
[null,null,null,null,{"$f":"_xlfn.IFNA(VLOOKUP(C198,Pricing!A:D,4,FALSE), \"\")","v":""},null,null,null,"",null,null,""]
[null,null,null,null,{"$f":"_xlfn.IFNA(VLOOKUP(C199,Pricing!A:D,4,FALSE), \"\")","v":""},null,null,null,"",null,null,""]
[null,null,null,null,{"$f":"_xlfn.IFNA(VLOOKUP(C200,Pricing!A:D,4,FALSE), \"\")","v":""},null,null,null,"",null,null,""]
[null,null,null,null,{"$f":"_xlfn.IFNA(VLOOKUP(C201,Pricing!A:D,4,FALSE), \"\")","v":""},null,null,null,"",null,null,""]
[null,null,null,null,{"$f":"_xlfn.IFNA(VLOOKUP(C202,Pricing!A:D,4,FALSE), \"\")","v":""},null,null,null,"",null,null,""]
[null,null,null,null,{"$f":"_xlfn.IFNA(VLOOKUP(C203,Pricing!A:D,4,FALSE), \"\")","v":""},null,null,null,"",null,null,""]
[null,null,null,null,{"$f":"_xlfn.IFNA(VLOOKUP(C204,Pricing!A:D,4,FALSE), \"\")","v":""},null,null,null,"",null,null,""]
[null,null,null,null,{"$f":"_xlfn.IFNA(VLOOKUP(C205,Pricing!A:D,4,FALSE), \"\")","v":""},null,null,null,"",null,null,""]
[null,null,null,null,{"$f":"_xlfn.IFNA(VLOOKUP(C206,Pricing!A:D,4,FALSE), \"\")","v":""},null,null,null,"",null,null,""]
[null,null,null,null,{"$f":"_xlfn.IFNA(VLOOKUP(C207,Pricing!A:D,4,FALSE), \"\")","v":""},null,null,null,"",null,null,""]
[null,null,null,null,{"$f":"_xlfn.IFNA(VLOOKUP(C208,Pricing!A:D,4,FALSE), \"\")","v":""},null,null,null,"",null,null,""]
[null,null,null,null,{"$f":"_xlfn.IFNA(VLOOKUP(C209,Pricing!A:D,4,FALSE), \"\")","v":""},null,null,null,"",null,null,""]
[null,null,null,null,{"$f":"_xlfn.IFNA(VLOOKUP(C210,Pricing!A:D,4,FALSE), \"\")","v":""},null,null,null,"",null,null,""]
[null,null,null,null,{"$f":"_xlfn.IFNA(VLOOKUP(C211,Pricing!A:D,4,FALSE), \"\")","v":""},null,null,null,"",null,null,""]
[null,null,null,null,{"$f":"_xlfn.IFNA(VLOOKUP(C212,Pricing!A:D,4,FALSE), \"\")","v":""},null,null,null,"",null,null,""]
[null,null,null,null,{"$f":"_xlfn.IFNA(VLOOKUP(C213,Pricing!A:D,4,FALSE), \"\")","v":""},null,null,null,"",null,null,""]
[null,null,null,null,{"$f":"_xlfn.IFNA(VLOOKUP(C214,Pricing!A:D,4,FALSE), \"\")","v":""},null,null,null,"",null,null,""]
[null,null,null,null,{"$f":"_xlfn.IFNA(VLOOKUP(C215,Pricing!A:D,4,FALSE), \"\")","v":""},null,null,null,"",null,null,""]
[null,null,null,null,{"$f":"_xlfn.IFNA(VLOOKUP(C216,Pricing!A:D,4,FALSE), \"\")","v":""},null,null,null,"",null,null,""]
[null,null,null,null,{"$f":"_xlfn.IFNA(VLOOKUP(C217,Pricing!A:D,4,FALSE), \"\")","v":""},null,null,null,"",null,null,""]
[null,null,null,null,{"$f":"_xlfn.IFNA(VLOOKUP(C218,Pricing!A:D,4,FALSE), \"\")","v":""},null,null,null,"",null,null,""]
[null,null,null,null,{"$f":"_xlfn.IFNA(VLOOKUP(C219,Pricing!A:D,4,FALSE), \"\")","v":""},null,null,null,"",null,null,""]
[null,null,null,null,{"$f":"_xlfn.IFNA(VLOOKUP(C220,Pricing!A:D,4,FALSE), \"\")","v":""},null,null,null,"",null,null,""]
[null,null,null,null,{"$f":"_xlfn.IFNA(VLOOKUP(C221,Pricing!A:D,4,FALSE), \"\")","v":""},null,null,null,"",null,null,""]
[null,null,null,null,{"$f":"_xlfn.IFNA(VLOOKUP(C222,Pricing!A:D,4,FALSE), \"\")","v":""},null,null,null,{"$f":"IFERROR(IF(H222=\"\", \"\", H222*E222), \"\")","v":""},null,null,{"$f":"IFERROR(I222/($H$4-$H$6), \"\")","v":""}]
[null,null,null,null,{"$f":"_xlfn.IFNA(VLOOKUP(C223,Pricing!A:D,4,FALSE), \"\")","v":""},null,null,null,"",null,null,""]
[null,null,null,null,{"$f":"_xlfn.IFNA(VLOOKUP(C224,Pricing!A:D,4,FALSE), \"\")","v":""},null,null,null,"",null,null,""]
[null,null,null,null,{"$f":"_xlfn.IFNA(VLOOKUP(C225,Pricing!A:D,4,FALSE), \"\")","v":""},null,null,null,"",null,null,""]
[null,null,null,null,{"$f":"_xlfn.IFNA(VLOOKUP(C226,Pricing!A:D,4,FALSE), \"\")","v":""},null,null,null,"",null,null,""]
[null,null,null,null,{"$f":"_xlfn.IFNA(VLOOKUP(C227,Pricing!A:D,4,FALSE), \"\")","v":""},null,null,null,"",null,null,""]
[null,null,null,null,{"$f":"_xlfn.IFNA(VLOOKUP(C228,Pricing!A:D,4,FALSE), \"\")","v":""},null,null,null,"",null,null,""]
[null,null,null,null,{"$f":"_xlfn.IFNA(VLOOKUP(C229,Pricing!A:D,4,FALSE), \"\")","v":""},null,null,null,"",null,null,""]
[null,null,null,null,{"$f":"_xlfn.IFNA(VLOOKUP(C230,Pricing!A:D,4,FALSE), \"\")","v":""},null,null,null,"",null,null,""]
[null,null,null,null,{"$f":"_xlfn.IFNA(VLOOKUP(C231,Pricing!A:D,4,FALSE), \"\")","v":""},null,null,null,"",null,null,""]
[null,null,null,null,{"$f":"_xlfn.IFNA(VLOOKUP(C232,Pricing!A:D,4,FALSE), \"\")","v":""},null,null,null,"",null,null,""]
[null,null,null,null,{"$f":"_xlfn.IFNA(VLOOKUP(C233,Pricing!A:D,4,FALSE), \"\")","v":""},null,null,null,"",null,null,""]
[null,null,null,null,{"$f":"_xlfn.IFNA(VLOOKUP(C234,Pricing!A:D,4,FALSE), \"\")","v":""},null,null,null,"",null,null,""]
[null,null,null,null,{"$f":"_xlfn.IFNA(VLOOKUP(C235,Pricing!A:D,4,FALSE), \"\")","v":""},null,null,null,"",null,null,""]
[null,null,null,null,{"$f":"_xlfn.IFNA(VLOOKUP(C236,Pricing!A:D,4,FALSE), \"\")","v":""},null,null,null,"",null,null,""]
[null,null,null,null,{"$f":"_xlfn.IFNA(VLOOKUP(C237,Pricing!A:D,4,FALSE), \"\")","v":""},null,null,null,"",null,null,""]
[null,null,null,null,{"$f":"_xlfn.IFNA(VLOOKUP(C238,Pricing!A:D,4,FALSE), \"\")","v":""},null,null,null,"",null,null,""]
[null,null,null,null,{"$f":"_xlfn.IFNA(VLOOKUP(C239,Pricing!A:D,4,FALSE), \"\")","v":""},null,null,null,"",null,null,""]
[null,null,null,null,{"$f":"_xlfn.IFNA(VLOOKUP(C240,Pricing!A:D,4,FALSE), \"\")","v":""},null,null,null,"",null,null,""]
[null,null,null,null,{"$f":"_xlfn.IFNA(VLOOKUP(C241,Pricing!A:D,4,FALSE), \"\")","v":""},null,null,null,"",null,null,""]
[null,null,null,null,{"$f":"_xlfn.IFNA(VLOOKUP(C242,Pricing!A:D,4,FALSE), \"\")","v":""},null,null,null,"",null,null,""]
[null,null,null,null,{"$f":"_xlfn.IFNA(VLOOKUP(C243,Pricing!A:D,4,FALSE), \"\")","v":""},null,null,null,"",null,null,""]
[null,null,null,null,{"$f":"_xlfn.IFNA(VLOOKUP(C244,Pricing!A:D,4,FALSE), \"\")","v":""},null,null,null,"",null,null,""]
[null,null,null,null,{"$f":"_xlfn.IFNA(VLOOKUP(C245,Pricing!A:D,4,FALSE), \"\")","v":""},null,null,null,"",null,null,""]
[null,null,null,null,{"$f":"_xlfn.IFNA(VLOOKUP(C246,Pricing!A:D,4,FALSE), \"\")","v":""},null,null,null,"",null,null,""]
[null,null,null,null,{"$f":"_xlfn.IFNA(VLOOKUP(C247,Pricing!A:D,4,FALSE), \"\")","v":""},null,null,null,"",null,null,""]
[null,null,null,null,{"$f":"_xlfn.IFNA(VLOOKUP(C248,Pricing!A:D,4,FALSE), \"\")","v":""},null,null,null,"",null,null,""]
[null,null,null,null,{"$f":"_xlfn.IFNA(VLOOKUP(C249,Pricing!A:D,4,FALSE), \"\")","v":""},null,null,null,"",null,null,""]
[null,null,null,null,{"$f":"_xlfn.IFNA(VLOOKUP(C250,Pricing!A:D,4,FALSE), \"\")","v":""},null,null,null,"",null,null,""]
[null,null,null,null,{"$f":"_xlfn.IFNA(VLOOKUP(C251,Pricing!A:D,4,FALSE), \"\")","v":""},null,null,null,"",null,null,""]
[null,null,null,null,{"$f":"_xlfn.IFNA(VLOOKUP(C252,Pricing!A:D,4,FALSE), \"\")","v":""},null,null,null,"",null,null,""]
[null,null,null,null,{"$f":"_xlfn.IFNA(VLOOKUP(C253,Pricing!A:D,4,FALSE), \"\")","v":""},null,null,null,"",null,null,""]
[null,null,null,null,{"$f":"_xlfn.IFNA(VLOOKUP(C254,Pricing!A:D,4,FALSE), \"\")","v":""},null,null,null,"",null,null,""]
[null,null,null,null,{"$f":"_xlfn.IFNA(VLOOKUP(C255,Pricing!A:D,4,FALSE), \"\")","v":""},null,null,null,"",null,null,""]
[null,null,null,null,{"$f":"_xlfn.IFNA(VLOOKUP(C256,Pricing!A:D,4,FALSE), \"\")","v":""},null,null,null,"",null,null,""]
[null,null,null,null,{"$f":"_xlfn.IFNA(VLOOKUP(C257,Pricing!A:D,4,FALSE), \"\")","v":""},null,null,null,"",null,null,""]
[null,null,null,null,{"$f":"_xlfn.IFNA(VLOOKUP(C258,Pricing!A:D,4,FALSE), \"\")","v":""},null,null,null,"",null,null,""]
[null,null,null,null,{"$f":"_xlfn.IFNA(VLOOKUP(C259,Pricing!A:D,4,FALSE), \"\")","v":""},null,null,null,"",null,null,""]
[null,null,null,null,{"$f":"_xlfn.IFNA(VLOOKUP(C260,Pricing!A:D,4,FALSE), \"\")","v":""},null,null,null,"",null,null,""]
[null,null,null,null,{"$f":"_xlfn.IFNA(VLOOKUP(C261,Pricing!A:D,4,FALSE), \"\")","v":""},null,null,null,"",null,null,""]
[null,null,null,null,{"$f":"_xlfn.IFNA(VLOOKUP(C262,Pricing!A:D,4,FALSE), \"\")","v":""},null,null,null,"",null,null,""]
[null,null,null,null,{"$f":"_xlfn.IFNA(VLOOKUP(C263,Pricing!A:D,4,FALSE), \"\")","v":""},null,null,null,"",null,null,""]
[null,null,null,null,{"$f":"_xlfn.IFNA(VLOOKUP(C264,Pricing!A:D,4,FALSE), \"\")","v":""},null,null,null,"",null,null,""]
[null,null,null,null,{"$f":"_xlfn.IFNA(VLOOKUP(C265,Pricing!A:D,4,FALSE), \"\")","v":""},null,null,null,"",null,null,""]
[null,null,null,null,{"$f":"_xlfn.IFNA(VLOOKUP(C266,Pricing!A:D,4,FALSE), \"\")","v":""},null,null,null,"",null,null,""]
[null,null,null,null,{"$f":"_xlfn.IFNA(VLOOKUP(C267,Pricing!A:D,4,FALSE), \"\")","v":""},null,null,null,"",null,null,""]
[null,null,null,null,{"$f":"_xlfn.IFNA(VLOOKUP(C268,Pricing!A:D,4,FALSE), \"\")","v":""},null,null,null,"",null,null,""]
[null,null,null,null,{"$f":"_xlfn.IFNA(VLOOKUP(C269,Pricing!A:D,4,FALSE), \"\")","v":""},null,null,null,"",null,null,""]
[null,null,null,null,{"$f":"_xlfn.IFNA(VLOOKUP(C270,Pricing!A:D,4,FALSE), \"\")","v":""},null,null,null,"",null,null,""]
[null,null,null,null,{"$f":"_xlfn.IFNA(VLOOKUP(C271,Pricing!A:D,4,FALSE), \"\")","v":""},null,null,null,"",null,null,""]
[null,null,null,null,{"$f":"_xlfn.IFNA(VLOOKUP(C272,Pricing!A:D,4,FALSE), \"\")","v":""},null,null,null,"",null,null,""]
[null,null,null,null,{"$f":"_xlfn.IFNA(VLOOKUP(C273,Pricing!A:D,4,FALSE), \"\")","v":""},null,null,null,"",null,null,""]
[null,null,null,null,{"$f":"_xlfn.IFNA(VLOOKUP(C274,Pricing!A:D,4,FALSE), \"\")","v":""},null,null,null,"",null,null,""]
[null,null,null,null,{"$f":"_xlfn.IFNA(VLOOKUP(C275,Pricing!A:D,4,FALSE), \"\")","v":""},null,null,null,"",null,null,""]
[null,null,null,null,{"$f":"_xlfn.IFNA(VLOOKUP(C276,Pricing!A:D,4,FALSE), \"\")","v":""},null,null,null,"",null,null,""]
[null,null,null,null,{"$f":"_xlfn.IFNA(VLOOKUP(C277,Pricing!A:D,4,FALSE), \"\")","v":""},null,null,null,"",null,null,""]
[null,null,null,null,{"$f":"_xlfn.IFNA(VLOOKUP(C278,Pricing!A:D,4,FALSE), \"\")","v":""},null,null,null,"",null,null,""]
[null,null,null,null,{"$f":"_xlfn.IFNA(VLOOKUP(C279,Pricing!A:D,4,FALSE), \"\")","v":""},null,null,null,"",null,null,""]
[null,null,null,null,{"$f":"_xlfn.IFNA(VLOOKUP(C280,Pricing!A:D,4,FALSE), \"\")","v":""},null,null,null,"",null,null,""]
[null,null,null,null,{"$f":"_xlfn.IFNA(VLOOKUP(C281,Pricing!A:D,4,FALSE), \"\")","v":""},null,null,null,"",null,null,""]
[null,null,null,null,{"$f":"_xlfn.IFNA(VLOOKUP(C282,Pricing!A:D,4,FALSE), \"\")","v":""},null,null,null,"",null,null,""]
[null,null,null,null,{"$f":"_xlfn.IFNA(VLOOKUP(C283,Pricing!A:D,4,FALSE), \"\")","v":""},null,null,null,"",null,null,""]
[null,null,null,null,{"$f":"_xlfn.IFNA(VLOOKUP(C284,Pricing!A:D,4,FALSE), \"\")","v":""},null,null,null,"",null,null,""]
[null,null,null,null,{"$f":"_xlfn.IFNA(VLOOKUP(C285,Pricing!A:D,4,FALSE), \"\")","v":""},null,null,null,"",null,null,""]
[null,null,null,null,{"$f":"_xlfn.IFNA(VLOOKUP(C286,Pricing!A:D,4,FALSE), \"\")","v":""},null,null,null,{"$f":"IFERROR(IF(H286=\"\", \"\", H286*E286), \"\")","v":""},null,null,{"$f":"IFERROR(I286/($H$4-$H$6), \"\")","v":""}]
[null,null,null,null,{"$f":"_xlfn.IFNA(VLOOKUP(C287,Pricing!A:D,4,FALSE), \"\")","v":""},null,null,null,"",null,null,""]
[null,null,null,null,{"$f":"_xlfn.IFNA(VLOOKUP(C288,Pricing!A:D,4,FALSE), \"\")","v":""},null,null,null,"",null,null,""]
[null,null,null,null,{"$f":"_xlfn.IFNA(VLOOKUP(C289,Pricing!A:D,4,FALSE), \"\")","v":""},null,null,null,"",null,null,""]
[null,null,null,null,{"$f":"_xlfn.IFNA(VLOOKUP(C290,Pricing!A:D,4,FALSE), \"\")","v":""},null,null,null,"",null,null,""]
[null,null,null,null,{"$f":"_xlfn.IFNA(VLOOKUP(C291,Pricing!A:D,4,FALSE), \"\")","v":""},null,null,null,"",null,null,""]
[null,null,null,null,{"$f":"_xlfn.IFNA(VLOOKUP(C292,Pricing!A:D,4,FALSE), \"\")","v":""},null,null,null,"",null,null,""]
[null,null,null,null,{"$f":"_xlfn.IFNA(VLOOKUP(C293,Pricing!A:D,4,FALSE), \"\")","v":""},null,null,null,"",null,null,""]
[null,null,null,null,{"$f":"_xlfn.IFNA(VLOOKUP(C294,Pricing!A:D,4,FALSE), \"\")","v":""},null,null,null,"",null,null,""]
[null,null,null,null,{"$f":"_xlfn.IFNA(VLOOKUP(C295,Pricing!A:D,4,FALSE), \"\")","v":""},null,null,null,"",null,null,""]
[null,null,null,null,{"$f":"_xlfn.IFNA(VLOOKUP(C296,Pricing!A:D,4,FALSE), \"\")","v":""},null,null,null,"",null,null,""]
[null,null,null,null,{"$f":"_xlfn.IFNA(VLOOKUP(C297,Pricing!A:D,4,FALSE), \"\")","v":""},null,null,null,"",null,null,""]
[null,null,null,null,{"$f":"_xlfn.IFNA(VLOOKUP(C298,Pricing!A:D,4,FALSE), \"\")","v":""},null,null,null,"",null,null,""]
[null,null,null,null,{"$f":"_xlfn.IFNA(VLOOKUP(C299,Pricing!A:D,4,FALSE), \"\")","v":""},null,null,null,"",null,null,""]
[null,null,null,null,{"$f":"_xlfn.IFNA(VLOOKUP(C300,Pricing!A:D,4,FALSE), \"\")","v":""},null,null,null,"",null,null,""]
[null,null,null,null,{"$f":"_xlfn.IFNA(VLOOKUP(C301,Pricing!A:D,4,FALSE), \"\")","v":""},null,null,null,"",null,null,""]
[null,null,null,null,{"$f":"_xlfn.IFNA(VLOOKUP(C302,Pricing!A:D,4,FALSE), \"\")","v":""},null,null,null,"",null,null,""]
[null,null,null,null,{"$f":"_xlfn.IFNA(VLOOKUP(C303,Pricing!A:D,4,FALSE), \"\")","v":""},null,null,null,"",null,null,""]
[null,null,null,null,{"$f":"_xlfn.IFNA(VLOOKUP(C304,Pricing!A:D,4,FALSE), \"\")","v":""},null,null,null,"",null,null,""]
[null,null,null,null,{"$f":"_xlfn.IFNA(VLOOKUP(C305,Pricing!A:D,4,FALSE), \"\")","v":""},null,null,null,"",null,null,""]
[null,null,null,null,{"$f":"_xlfn.IFNA(VLOOKUP(C306,Pricing!A:D,4,FALSE), \"\")","v":""},null,null,null,"",null,null,""]
[null,null,null,null,{"$f":"_xlfn.IFNA(VLOOKUP(C307,Pricing!A:D,4,FALSE), \"\")","v":""},null,null,null,"",null,null,""]
[null,null,null,null,{"$f":"_xlfn.IFNA(VLOOKUP(C308,Pricing!A:D,4,FALSE), \"\")","v":""},null,null,null,"",null,null,""]
[null,null,null,null,{"$f":"_xlfn.IFNA(VLOOKUP(C309,Pricing!A:D,4,FALSE), \"\")","v":""},null,null,null,"",null,null,""]
[null,null,null,null,{"$f":"_xlfn.IFNA(VLOOKUP(C310,Pricing!A:D,4,FALSE), \"\")","v":""},null,null,null,"",null,null,""]
[null,null,null,null,{"$f":"_xlfn.IFNA(VLOOKUP(C311,Pricing!A:D,4,FALSE), \"\")","v":""},null,null,null,"",null,null,""]
[null,null,null,null,{"$f":"_xlfn.IFNA(VLOOKUP(C312,Pricing!A:D,4,FALSE), \"\")","v":""},null,null,null,"",null,null,""]
[null,null,null,null,{"$f":"_xlfn.IFNA(VLOOKUP(C313,Pricing!A:D,4,FALSE), \"\")","v":""},null,null,null,"",null,null,""]
[null,null,null,null,{"$f":"_xlfn.IFNA(VLOOKUP(C314,Pricing!A:D,4,FALSE), \"\")","v":""},null,null,null,"",null,null,""]
[null,null,null,null,{"$f":"_xlfn.IFNA(VLOOKUP(C315,Pricing!A:D,4,FALSE), \"\")","v":""},null,null,null,"",null,null,""]
[null,null,null,null,{"$f":"_xlfn.IFNA(VLOOKUP(C316,Pricing!A:D,4,FALSE), \"\")","v":""},null,null,null,"",null,null,""]
[null,null,null,null,{"$f":"_xlfn.IFNA(VLOOKUP(C317,Pricing!A:D,4,FALSE), \"\")","v":""},null,null,null,"",null,null,""]
[null,null,null,null,{"$f":"_xlfn.IFNA(VLOOKUP(C318,Pricing!A:D,4,FALSE), \"\")","v":""},null,null,null,"",null,null,""]
[null,null,null,null,{"$f":"_xlfn.IFNA(VLOOKUP(C319,Pricing!A:D,4,FALSE), \"\")","v":""},null,null,null,"",null,null,""]
[null,null,null,null,{"$f":"_xlfn.IFNA(VLOOKUP(C320,Pricing!A:D,4,FALSE), \"\")","v":""},null,null,null,"",null,null,""]
[null,null,null,null,{"$f":"_xlfn.IFNA(VLOOKUP(C321,Pricing!A:D,4,FALSE), \"\")","v":""},null,null,null,"",null,null,""]
[null,null,null,null,{"$f":"_xlfn.IFNA(VLOOKUP(C322,Pricing!A:D,4,FALSE), \"\")","v":""},null,null,null,"",null,null,""]
[null,null,null,null,{"$f":"_xlfn.IFNA(VLOOKUP(C323,Pricing!A:D,4,FALSE), \"\")","v":""},null,null,null,"",null,null,""]
[null,null,null,null,{"$f":"_xlfn.IFNA(VLOOKUP(C324,Pricing!A:D,4,FALSE), \"\")","v":""},null,null,null,"",null,null,""]
[null,null,null,null,{"$f":"_xlfn.IFNA(VLOOKUP(C325,Pricing!A:D,4,FALSE), \"\")","v":""},null,null,null,"",null,null,""]
[null,null,null,null,{"$f":"_xlfn.IFNA(VLOOKUP(C326,Pricing!A:D,4,FALSE), \"\")","v":""},null,null,null,"",null,null,""]
[null,null,null,null,{"$f":"_xlfn.IFNA(VLOOKUP(C327,Pricing!A:D,4,FALSE), \"\")","v":""},null,null,null,"",null,null,""]
[null,null,null,null,{"$f":"_xlfn.IFNA(VLOOKUP(C328,Pricing!A:D,4,FALSE), \"\")","v":""},null,null,null,"",null,null,""]
[null,null,null,null,{"$f":"_xlfn.IFNA(VLOOKUP(C329,Pricing!A:D,4,FALSE), \"\")","v":""},null,null,null,"",null,null,""]
[null,null,null,null,{"$f":"_xlfn.IFNA(VLOOKUP(C330,Pricing!A:D,4,FALSE), \"\")","v":""},null,null,null,"",null,null,""]
[null,null,null,null,{"$f":"_xlfn.IFNA(VLOOKUP(C331,Pricing!A:D,4,FALSE), \"\")","v":""},null,null,null,"",null,null,""]
[null,null,null,null,{"$f":"_xlfn.IFNA(VLOOKUP(C332,Pricing!A:D,4,FALSE), \"\")","v":""},null,null,null,"",null,null,""]
[null,null,null,null,{"$f":"_xlfn.IFNA(VLOOKUP(C333,Pricing!A:D,4,FALSE), \"\")","v":""},null,null,null,"",null,null,""]
[null,null,null,null,{"$f":"_xlfn.IFNA(VLOOKUP(C334,Pricing!A:D,4,FALSE), \"\")","v":""},null,null,null,"",null,null,""]
[null,null,null,null,{"$f":"_xlfn.IFNA(VLOOKUP(C335,Pricing!A:D,4,FALSE), \"\")","v":""},null,null,null,"",null,null,""]
[null,null,null,null,{"$f":"_xlfn.IFNA(VLOOKUP(C336,Pricing!A:D,4,FALSE), \"\")","v":""},null,null,null,"",null,null,""]
[null,null,null,null,{"$f":"_xlfn.IFNA(VLOOKUP(C337,Pricing!A:D,4,FALSE), \"\")","v":""},null,null,null,"",null,null,""]
[null,null,null,null,{"$f":"_xlfn.IFNA(VLOOKUP(C338,Pricing!A:D,4,FALSE), \"\")","v":""},null,null,null,"",null,null,""]
[null,null,null,null,{"$f":"_xlfn.IFNA(VLOOKUP(C339,Pricing!A:D,4,FALSE), \"\")","v":""},null,null,null,"",null,null,""]
[null,null,null,null,{"$f":"_xlfn.IFNA(VLOOKUP(C340,Pricing!A:D,4,FALSE), \"\")","v":""},null,null,null,"",null,null,""]
[null,null,null,null,{"$f":"_xlfn.IFNA(VLOOKUP(C341,Pricing!A:D,4,FALSE), \"\")","v":""},null,null,null,"",null,null,""]
[null,null,null,null,{"$f":"_xlfn.IFNA(VLOOKUP(C342,Pricing!A:D,4,FALSE), \"\")","v":""},null,null,null,"",null,null,""]
[null,null,null,null,{"$f":"_xlfn.IFNA(VLOOKUP(C343,Pricing!A:D,4,FALSE), \"\")","v":""},null,null,null,"",null,null,""]
[null,null,null,null,{"$f":"_xlfn.IFNA(VLOOKUP(C344,Pricing!A:D,4,FALSE), \"\")","v":""},null,null,null,"",null,null,""]
[null,null,null,null,{"$f":"_xlfn.IFNA(VLOOKUP(C345,Pricing!A:D,4,FALSE), \"\")","v":""},null,null,null,"",null,null,""]
[null,null,null,null,{"$f":"_xlfn.IFNA(VLOOKUP(C346,Pricing!A:D,4,FALSE), \"\")","v":""},null,null,null,"",null,null,""]
[null,null,null,null,{"$f":"_xlfn.IFNA(VLOOKUP(C347,Pricing!A:D,4,FALSE), \"\")","v":""},null,null,null,"",null,null,""]
[null,null,null,null,{"$f":"_xlfn.IFNA(VLOOKUP(C348,Pricing!A:D,4,FALSE), \"\")","v":""},null,null,null,"",null,null,""]
[null,null,null,null,{"$f":"_xlfn.IFNA(VLOOKUP(C349,Pricing!A:D,4,FALSE), \"\")","v":""},null,null,null,"",null,null,""]
[null,null,null,null,{"$f":"_xlfn.IFNA(VLOOKUP(C350,Pricing!A:D,4,FALSE), \"\")","v":""},null,null,null,{"$f":"IFERROR(IF(H350=\"\", \"\", H350*E350), \"\")","v":""},null,null,{"$f":"IFERROR(I350/($H$4-$H$6), \"\")","v":""}]
[null,null,null,null,{"$f":"_xlfn.IFNA(VLOOKUP(C351,Pricing!A:D,4,FALSE), \"\")","v":""},null,null,null,"",null,null,""]
[null,null,null,null,{"$f":"_xlfn.IFNA(VLOOKUP(C352,Pricing!A:D,4,FALSE), \"\")","v":""},null,null,null,"",null,null,""]
[null,null,null,null,{"$f":"_xlfn.IFNA(VLOOKUP(C353,Pricing!A:D,4,FALSE), \"\")","v":""},null,null,null,"",null,null,""]
[null,null,null,null,{"$f":"_xlfn.IFNA(VLOOKUP(C354,Pricing!A:D,4,FALSE), \"\")","v":""},null,null,null,"",null,null,""]
[null,null,null,null,{"$f":"_xlfn.IFNA(VLOOKUP(C355,Pricing!A:D,4,FALSE), \"\")","v":""},null,null,null,"",null,null,""]
[null,null,null,null,{"$f":"_xlfn.IFNA(VLOOKUP(C356,Pricing!A:D,4,FALSE), \"\")","v":""},null,null,null,"",null,null,""]
[null,null,null,null,{"$f":"_xlfn.IFNA(VLOOKUP(C357,Pricing!A:D,4,FALSE), \"\")","v":""},null,null,null,"",null,null,""]
[null,null,null,null,{"$f":"_xlfn.IFNA(VLOOKUP(C358,Pricing!A:D,4,FALSE), \"\")","v":""},null,null,null,"",null,null,""]
[null,null,null,null,{"$f":"_xlfn.IFNA(VLOOKUP(C359,Pricing!A:D,4,FALSE), \"\")","v":""},null,null,null,"",null,null,""]
[null,null,null,null,{"$f":"_xlfn.IFNA(VLOOKUP(C360,Pricing!A:D,4,FALSE), \"\")","v":""},null,null,null,"",null,null,""]
[null,null,null,null,{"$f":"_xlfn.IFNA(VLOOKUP(C361,Pricing!A:D,4,FALSE), \"\")","v":""},null,null,null,"",null,null,""]
[null,null,null,null,{"$f":"_xlfn.IFNA(VLOOKUP(C362,Pricing!A:D,4,FALSE), \"\")","v":""},null,null,null,"",null,null,""]
[null,null,null,null,{"$f":"_xlfn.IFNA(VLOOKUP(C363,Pricing!A:D,4,FALSE), \"\")","v":""},null,null,null,"",null,null,""]
[null,null,null,null,{"$f":"_xlfn.IFNA(VLOOKUP(C364,Pricing!A:D,4,FALSE), \"\")","v":""},null,null,null,"",null,null,""]
[null,null,null,null,{"$f":"_xlfn.IFNA(VLOOKUP(C365,Pricing!A:D,4,FALSE), \"\")","v":""},null,null,null,"",null,null,""]
[null,null,null,null,{"$f":"_xlfn.IFNA(VLOOKUP(C366,Pricing!A:D,4,FALSE), \"\")","v":""},null,null,null,"",null,null,""]
[null,null,null,null,{"$f":"_xlfn.IFNA(VLOOKUP(C367,Pricing!A:D,4,FALSE), \"\")","v":""},null,null,null,"",null,null,""]
[null,null,null,null,{"$f":"_xlfn.IFNA(VLOOKUP(C368,Pricing!A:D,4,FALSE), \"\")","v":""},null,null,null,"",null,null,""]
[null,null,null,null,{"$f":"_xlfn.IFNA(VLOOKUP(C369,Pricing!A:D,4,FALSE), \"\")","v":""},null,null,null,"",null,null,""]
[null,null,null,null,{"$f":"_xlfn.IFNA(VLOOKUP(C370,Pricing!A:D,4,FALSE), \"\")","v":""},null,null,null,"",null,null,""]
[null,null,null,null,{"$f":"_xlfn.IFNA(VLOOKUP(C371,Pricing!A:D,4,FALSE), \"\")","v":""},null,null,null,"",null,null,""]
[null,null,null,null,{"$f":"_xlfn.IFNA(VLOOKUP(C372,Pricing!A:D,4,FALSE), \"\")","v":""},null,null,null,"",null,null,""]
[null,null,null,null,{"$f":"_xlfn.IFNA(VLOOKUP(C373,Pricing!A:D,4,FALSE), \"\")","v":""},null,null,null,"",null,null,""]
[null,null,null,null,{"$f":"_xlfn.IFNA(VLOOKUP(C374,Pricing!A:D,4,FALSE), \"\")","v":""},null,null,null,"",null,null,""]
[null,null,null,null,{"$f":"_xlfn.IFNA(VLOOKUP(C375,Pricing!A:D,4,FALSE), \"\")","v":""},null,null,null,"",null,null,""]
[null,null,null,null,{"$f":"_xlfn.IFNA(VLOOKUP(C376,Pricing!A:D,4,FALSE), \"\")","v":""},null,null,null,"",null,null,""]
[null,null,null,null,{"$f":"_xlfn.IFNA(VLOOKUP(C377,Pricing!A:D,4,FALSE), \"\")","v":""},null,null,null,"",null,null,""]
[null,null,null,null,{"$f":"_xlfn.IFNA(VLOOKUP(C378,Pricing!A:D,4,FALSE), \"\")","v":""},null,null,null,"",null,null,""]
[null,null,null,null,{"$f":"_xlfn.IFNA(VLOOKUP(C379,Pricing!A:D,4,FALSE), \"\")","v":""},null,null,null,"",null,null,""]
[null,null,null,null,{"$f":"_xlfn.IFNA(VLOOKUP(C380,Pricing!A:D,4,FALSE), \"\")","v":""},null,null,null,"",null,null,""]
[null,null,null,null,{"$f":"_xlfn.IFNA(VLOOKUP(C381,Pricing!A:D,4,FALSE), \"\")","v":""},null,null,null,"",null,null,""]
[null,null,null,null,{"$f":"_xlfn.IFNA(VLOOKUP(C382,Pricing!A:D,4,FALSE), \"\")","v":""},null,null,null,"",null,null,""]
[null,null,null,null,{"$f":"_xlfn.IFNA(VLOOKUP(C383,Pricing!A:D,4,FALSE), \"\")","v":""},null,null,null,"",null,null,""]
[null,null,null,null,{"$f":"_xlfn.IFNA(VLOOKUP(C384,Pricing!A:D,4,FALSE), \"\")","v":""},null,null,null,"",null,null,""]
[null,null,null,null,{"$f":"_xlfn.IFNA(VLOOKUP(C385,Pricing!A:D,4,FALSE), \"\")","v":""},null,null,null,"",null,null,""]
[null,null,null,null,{"$f":"_xlfn.IFNA(VLOOKUP(C386,Pricing!A:D,4,FALSE), \"\")","v":""},null,null,null,"",null,null,""]
[null,null,null,null,{"$f":"_xlfn.IFNA(VLOOKUP(C387,Pricing!A:D,4,FALSE), \"\")","v":""},null,null,null,"",null,null,""]
[null,null,null,null,{"$f":"_xlfn.IFNA(VLOOKUP(C388,Pricing!A:D,4,FALSE), \"\")","v":""},null,null,null,"",null,null,""]
[null,null,null,null,{"$f":"_xlfn.IFNA(VLOOKUP(C389,Pricing!A:D,4,FALSE), \"\")","v":""},null,null,null,"",null,null,""]
[null,null,null,null,{"$f":"_xlfn.IFNA(VLOOKUP(C390,Pricing!A:D,4,FALSE), \"\")","v":""},null,null,null,"",null,null,""]
[null,null,null,null,{"$f":"_xlfn.IFNA(VLOOKUP(C391,Pricing!A:D,4,FALSE), \"\")","v":""},null,null,null,"",null,null,""]
[null,null,null,null,{"$f":"_xlfn.IFNA(VLOOKUP(C392,Pricing!A:D,4,FALSE), \"\")","v":""},null,null,null,"",null,null,""]
[null,null,null,null,{"$f":"_xlfn.IFNA(VLOOKUP(C393,Pricing!A:D,4,FALSE), \"\")","v":""},null,null,null,"",null,null,""]
[null,null,null,null,{"$f":"_xlfn.IFNA(VLOOKUP(C394,Pricing!A:D,4,FALSE), \"\")","v":""},null,null,null,"",null,null,""]
[null,null,null,null,{"$f":"_xlfn.IFNA(VLOOKUP(C395,Pricing!A:D,4,FALSE), \"\")","v":""},null,null,null,"",null,null,""]
[null,null,null,null,{"$f":"_xlfn.IFNA(VLOOKUP(C396,Pricing!A:D,4,FALSE), \"\")","v":""},null,null,null,"",null,null,""]
[null,null,null,null,{"$f":"_xlfn.IFNA(VLOOKUP(C397,Pricing!A:D,4,FALSE), \"\")","v":""},null,null,null,"",null,null,""]
[null,null,null,null,{"$f":"_xlfn.IFNA(VLOOKUP(C398,Pricing!A:D,4,FALSE), \"\")","v":""},null,null,null,"",null,null,""]
[null,null,null,null,{"$f":"_xlfn.IFNA(VLOOKUP(C399,Pricing!A:D,4,FALSE), \"\")","v":""},null,null,null,"",null,null,""]
[null,null,null,null,{"$f":"_xlfn.IFNA(VLOOKUP(C400,Pricing!A:D,4,FALSE), \"\")","v":""},null,null,null,"",null,null,""]
[null,null,null,null,{"$f":"_xlfn.IFNA(VLOOKUP(C401,Pricing!A:D,4,FALSE), \"\")","v":""},null,null,null,"",null,null,""]
[null,null,null,null,{"$f":"_xlfn.IFNA(VLOOKUP(C402,Pricing!A:D,4,FALSE), \"\")","v":""},null,null,null,"",null,null,""]
[null,null,null,null,{"$f":"_xlfn.IFNA(VLOOKUP(C403,Pricing!A:D,4,FALSE), \"\")","v":""},null,null,null,"",null,null,""]
[null,null,null,null,{"$f":"_xlfn.IFNA(VLOOKUP(C404,Pricing!A:D,4,FALSE), \"\")","v":""},null,null,null,"",null,null,""]
[null,null,null,null,{"$f":"_xlfn.IFNA(VLOOKUP(C405,Pricing!A:D,4,FALSE), \"\")","v":""},null,null,null,"",null,null,""]
[null,null,null,null,{"$f":"_xlfn.IFNA(VLOOKUP(C406,Pricing!A:D,4,FALSE), \"\")","v":""},null,null,null,"",null,null,""]
[null,null,null,null,{"$f":"_xlfn.IFNA(VLOOKUP(C407,Pricing!A:D,4,FALSE), \"\")","v":""},null,null,null,"",null,null,""]
[null,null,null,null,{"$f":"_xlfn.IFNA(VLOOKUP(C408,Pricing!A:D,4,FALSE), \"\")","v":""},null,null,null,"",null,null,""]
[null,null,null,null,{"$f":"_xlfn.IFNA(VLOOKUP(C409,Pricing!A:D,4,FALSE), \"\")","v":""},null,null,null,"",null,null,""]
[null,null,null,null,{"$f":"_xlfn.IFNA(VLOOKUP(C410,Pricing!A:D,4,FALSE), \"\")","v":""},null,null,null,"",null,null,""]
[null,null,null,null,{"$f":"_xlfn.IFNA(VLOOKUP(C411,Pricing!A:D,4,FALSE), \"\")","v":""},null,null,null,"",null,null,""]
[null,null,null,null,{"$f":"_xlfn.IFNA(VLOOKUP(C412,Pricing!A:D,4,FALSE), \"\")","v":""},null,null,null,"",null,null,""]
[null,null,null,null,{"$f":"_xlfn.IFNA(VLOOKUP(C413,Pricing!A:D,4,FALSE), \"\")","v":""},null,null,null,"",null,null,""]
[null,null,null,null,{"$f":"_xlfn.IFNA(VLOOKUP(C414,Pricing!A:D,4,FALSE), \"\")","v":""},null,null,null,{"$f":"IFERROR(IF(H414=\"\", \"\", H414*E414), \"\")","v":""},null,null,{"$f":"IFERROR(I414/($H$4-$H$6), \"\")","v":""}]
[null,null,null,null,{"$f":"_xlfn.IFNA(VLOOKUP(C415,Pricing!A:D,4,FALSE), \"\")","v":""},null,null,null,"",null,null,""]
[null,null,null,null,{"$f":"_xlfn.IFNA(VLOOKUP(C416,Pricing!A:D,4,FALSE), \"\")","v":""},null,null,null,"",null,null,""]
[null,null,null,null,{"$f":"_xlfn.IFNA(VLOOKUP(C417,Pricing!A:D,4,FALSE), \"\")","v":""},null,null,null,"",null,null,""]
[null,null,null,null,{"$f":"_xlfn.IFNA(VLOOKUP(C418,Pricing!A:D,4,FALSE), \"\")","v":""},null,null,null,"",null,null,""]
[null,null,null,null,{"$f":"_xlfn.IFNA(VLOOKUP(C419,Pricing!A:D,4,FALSE), \"\")","v":""},null,null,null,"",null,null,""]
[null,null,null,null,{"$f":"_xlfn.IFNA(VLOOKUP(C420,Pricing!A:D,4,FALSE), \"\")","v":""},null,null,null,"",null,null,""]
[null,null,null,null,{"$f":"_xlfn.IFNA(VLOOKUP(C421,Pricing!A:D,4,FALSE), \"\")","v":""},null,null,null,"",null,null,""]
[null,null,null,null,{"$f":"_xlfn.IFNA(VLOOKUP(C422,Pricing!A:D,4,FALSE), \"\")","v":""},null,null,null,"",null,null,""]
[null,null,null,null,{"$f":"_xlfn.IFNA(VLOOKUP(C423,Pricing!A:D,4,FALSE), \"\")","v":""},null,null,null,"",null,null,""]
[null,null,null,null,{"$f":"_xlfn.IFNA(VLOOKUP(C424,Pricing!A:D,4,FALSE), \"\")","v":""},null,null,null,"",null,null,""]
[null,null,null,null,{"$f":"_xlfn.IFNA(VLOOKUP(C425,Pricing!A:D,4,FALSE), \"\")","v":""},null,null,null,"",null,null,""]
[null,null,null,null,{"$f":"_xlfn.IFNA(VLOOKUP(C426,Pricing!A:D,4,FALSE), \"\")","v":""},null,null,null,"",null,null,""]
[null,null,null,null,{"$f":"_xlfn.IFNA(VLOOKUP(C427,Pricing!A:D,4,FALSE), \"\")","v":""},null,null,null,"",null,null,""]
[null,null,null,null,{"$f":"_xlfn.IFNA(VLOOKUP(C428,Pricing!A:D,4,FALSE), \"\")","v":""},null,null,null,"",null,null,""]
[null,null,null,null,{"$f":"_xlfn.IFNA(VLOOKUP(C429,Pricing!A:D,4,FALSE), \"\")","v":""},null,null,null,"",null,null,""]
[null,null,null,null,{"$f":"_xlfn.IFNA(VLOOKUP(C430,Pricing!A:D,4,FALSE), \"\")","v":""},null,null,null,"",null,null,""]
[null,null,null,null,{"$f":"_xlfn.IFNA(VLOOKUP(C431,Pricing!A:D,4,FALSE), \"\")","v":""},null,null,null,"",null,null,""]
[null,null,null,null,{"$f":"_xlfn.IFNA(VLOOKUP(C432,Pricing!A:D,4,FALSE), \"\")","v":""},null,null,null,"",null,null,""]
[null,null,null,null,{"$f":"_xlfn.IFNA(VLOOKUP(C433,Pricing!A:D,4,FALSE), \"\")","v":""},null,null,null,"",null,null,""]
[null,null,null,null,{"$f":"_xlfn.IFNA(VLOOKUP(C434,Pricing!A:D,4,FALSE), \"\")","v":""},null,null,null,"",null,null,""]
[null,null,null,null,{"$f":"_xlfn.IFNA(VLOOKUP(C435,Pricing!A:D,4,FALSE), \"\")","v":""},null,null,null,"",null,null,""]
[null,null,null,null,{"$f":"_xlfn.IFNA(VLOOKUP(C436,Pricing!A:D,4,FALSE), \"\")","v":""},null,null,null,"",null,null,""]
[null,null,null,null,{"$f":"_xlfn.IFNA(VLOOKUP(C437,Pricing!A:D,4,FALSE), \"\")","v":""},null,null,null,"",null,null,""]
[null,null,null,null,{"$f":"_xlfn.IFNA(VLOOKUP(C438,Pricing!A:D,4,FALSE), \"\")","v":""},null,null,null,"",null,null,""]
[null,null,null,null,{"$f":"_xlfn.IFNA(VLOOKUP(C439,Pricing!A:D,4,FALSE), \"\")","v":""},null,null,null,"",null,null,""]
[null,null,null,null,{"$f":"_xlfn.IFNA(VLOOKUP(C440,Pricing!A:D,4,FALSE), \"\")","v":""},null,null,null,"",null,null,""]
[null,null,null,null,{"$f":"_xlfn.IFNA(VLOOKUP(C441,Pricing!A:D,4,FALSE), \"\")","v":""},null,null,null,"",null,null,""]
[null,null,null,null,{"$f":"_xlfn.IFNA(VLOOKUP(C442,Pricing!A:D,4,FALSE), \"\")","v":""},null,null,null,"",null,null,""]
[null,null,null,null,{"$f":"_xlfn.IFNA(VLOOKUP(C443,Pricing!A:D,4,FALSE), \"\")","v":""},null,null,null,"",null,null,""]
[null,null,null,null,{"$f":"_xlfn.IFNA(VLOOKUP(C444,Pricing!A:D,4,FALSE), \"\")","v":""},null,null,null,"",null,null,""]
[null,null,null,null,{"$f":"_xlfn.IFNA(VLOOKUP(C445,Pricing!A:D,4,FALSE), \"\")","v":""},null,null,null,"",null,null,""]
[null,null,null,null,{"$f":"_xlfn.IFNA(VLOOKUP(C446,Pricing!A:D,4,FALSE), \"\")","v":""},null,null,null,"",null,null,""]
[null,null,null,null,{"$f":"_xlfn.IFNA(VLOOKUP(C447,Pricing!A:D,4,FALSE), \"\")","v":""},null,null,null,"",null,null,""]
[null,null,null,null,{"$f":"_xlfn.IFNA(VLOOKUP(C448,Pricing!A:D,4,FALSE), \"\")","v":""},null,null,null,"",null,null,""]
[null,null,null,null,{"$f":"_xlfn.IFNA(VLOOKUP(C449,Pricing!A:D,4,FALSE), \"\")","v":""},null,null,null,"",null,null,""]
[null,null,null,null,{"$f":"_xlfn.IFNA(VLOOKUP(C450,Pricing!A:D,4,FALSE), \"\")","v":""},null,null,null,"",null,null,""]
[null,null,null,null,{"$f":"_xlfn.IFNA(VLOOKUP(C451,Pricing!A:D,4,FALSE), \"\")","v":""},null,null,null,"",null,null,""]
[null,null,null,null,{"$f":"_xlfn.IFNA(VLOOKUP(C452,Pricing!A:D,4,FALSE), \"\")","v":""},null,null,null,"",null,null,""]
[null,null,null,null,{"$f":"_xlfn.IFNA(VLOOKUP(C453,Pricing!A:D,4,FALSE), \"\")","v":""},null,null,null,"",null,null,""]
[null,null,null,null,{"$f":"_xlfn.IFNA(VLOOKUP(C454,Pricing!A:D,4,FALSE), \"\")","v":""},null,null,null,"",null,null,""]
[null,null,null,null,{"$f":"_xlfn.IFNA(VLOOKUP(C455,Pricing!A:D,4,FALSE), \"\")","v":""},null,null,null,"",null,null,""]
[null,null,null,null,{"$f":"_xlfn.IFNA(VLOOKUP(C456,Pricing!A:D,4,FALSE), \"\")","v":""},null,null,null,"",null,null,""]
[null,null,null,null,{"$f":"_xlfn.IFNA(VLOOKUP(C457,Pricing!A:D,4,FALSE), \"\")","v":""},null,null,null,"",null,null,""]
[null,null,null,null,{"$f":"_xlfn.IFNA(VLOOKUP(C458,Pricing!A:D,4,FALSE), \"\")","v":""},null,null,null,"",null,null,""]
[null,null,null,null,{"$f":"_xlfn.IFNA(VLOOKUP(C459,Pricing!A:D,4,FALSE), \"\")","v":""},null,null,null,"",null,null,""]
[null,null,null,null,{"$f":"_xlfn.IFNA(VLOOKUP(C460,Pricing!A:D,4,FALSE), \"\")","v":""},null,null,null,"",null,null,""]
[null,null,null,null,{"$f":"_xlfn.IFNA(VLOOKUP(C461,Pricing!A:D,4,FALSE), \"\")","v":""},null,null,null,"",null,null,""]
[null,null,null,null,{"$f":"_xlfn.IFNA(VLOOKUP(C462,Pricing!A:D,4,FALSE), \"\")","v":""},null,null,null,"",null,null,""]
[null,null,null,null,{"$f":"_xlfn.IFNA(VLOOKUP(C463,Pricing!A:D,4,FALSE), \"\")","v":""},null,null,null,"",null,null,""]
[null,null,null,null,{"$f":"_xlfn.IFNA(VLOOKUP(C464,Pricing!A:D,4,FALSE), \"\")","v":""},null,null,null,"",null,null,""]
[null,null,null,null,{"$f":"_xlfn.IFNA(VLOOKUP(C465,Pricing!A:D,4,FALSE), \"\")","v":""},null,null,null,"",null,null,""]
[null,null,null,null,{"$f":"_xlfn.IFNA(VLOOKUP(C466,Pricing!A:D,4,FALSE), \"\")","v":""},null,null,null,"",null,null,""]
[null,null,null,null,{"$f":"_xlfn.IFNA(VLOOKUP(C467,Pricing!A:D,4,FALSE), \"\")","v":""},null,null,null,"",null,null,""]
[null,null,null,null,{"$f":"_xlfn.IFNA(VLOOKUP(C468,Pricing!A:D,4,FALSE), \"\")","v":""},null,null,null,"",null,null,""]
[null,null,null,null,{"$f":"_xlfn.IFNA(VLOOKUP(C469,Pricing!A:D,4,FALSE), \"\")","v":""},null,null,null,"",null,null,""]
[null,null,null,null,{"$f":"_xlfn.IFNA(VLOOKUP(C470,Pricing!A:D,4,FALSE), \"\")","v":""},null,null,null,"",null,null,""]
[null,null,null,null,{"$f":"_xlfn.IFNA(VLOOKUP(C471,Pricing!A:D,4,FALSE), \"\")","v":""},null,null,null,"",null,null,""]
[null,null,null,null,{"$f":"_xlfn.IFNA(VLOOKUP(C472,Pricing!A:D,4,FALSE), \"\")","v":""},null,null,null,"",null,null,""]
[null,null,null,null,{"$f":"_xlfn.IFNA(VLOOKUP(C473,Pricing!A:D,4,FALSE), \"\")","v":""},null,null,null,"",null,null,""]
[null,null,null,null,{"$f":"_xlfn.IFNA(VLOOKUP(C474,Pricing!A:D,4,FALSE), \"\")","v":""},null,null,null,"",null,null,""]
[null,null,null,null,{"$f":"_xlfn.IFNA(VLOOKUP(C475,Pricing!A:D,4,FALSE), \"\")","v":""},null,null,null,"",null,null,""]
[null,null,null,null,{"$f":"_xlfn.IFNA(VLOOKUP(C476,Pricing!A:D,4,FALSE), \"\")","v":""},null,null,null,"",null,null,""]
[null,null,null,null,{"$f":"_xlfn.IFNA(VLOOKUP(C477,Pricing!A:D,4,FALSE), \"\")","v":""},null,null,null,"",null,null,""]
[null,null,null,null,{"$f":"_xlfn.IFNA(VLOOKUP(C478,Pricing!A:D,4,FALSE), \"\")","v":""},null,null,null,{"$f":"IFERROR(IF(H478=\"\", \"\", H478*E478), \"\")","v":""},null,null,{"$f":"IFERROR(I478/($H$4-$H$6), \"\")","v":""}]
[null,null,null,null,{"$f":"_xlfn.IFNA(VLOOKUP(C479,Pricing!A:D,4,FALSE), \"\")","v":""},null,null,null,"",null,null,""]
[null,null,null,null,{"$f":"_xlfn.IFNA(VLOOKUP(C480,Pricing!A:D,4,FALSE), \"\")","v":""},null,null,null,"",null,null,""]
[null,null,null,null,{"$f":"_xlfn.IFNA(VLOOKUP(C481,Pricing!A:D,4,FALSE), \"\")","v":""},null,null,null,"",null,null,""]
[null,null,null,null,{"$f":"_xlfn.IFNA(VLOOKUP(C482,Pricing!A:D,4,FALSE), \"\")","v":""},null,null,null,"",null,null,""]
[null,null,null,null,{"$f":"_xlfn.IFNA(VLOOKUP(C483,Pricing!A:D,4,FALSE), \"\")","v":""},null,null,null,"",null,null,""]
[null,null,null,null,{"$f":"_xlfn.IFNA(VLOOKUP(C484,Pricing!A:D,4,FALSE), \"\")","v":""},null,null,null,"",null,null,""]
[null,null,null,null,{"$f":"_xlfn.IFNA(VLOOKUP(C485,Pricing!A:D,4,FALSE), \"\")","v":""},null,null,null,"",null,null,""]
[null,null,null,null,{"$f":"_xlfn.IFNA(VLOOKUP(C486,Pricing!A:D,4,FALSE), \"\")","v":""},null,null,null,"",null,null,""]
[null,null,null,null,{"$f":"_xlfn.IFNA(VLOOKUP(C487,Pricing!A:D,4,FALSE), \"\")","v":""},null,null,null,"",null,null,""]
[null,null,null,null,{"$f":"_xlfn.IFNA(VLOOKUP(C488,Pricing!A:D,4,FALSE), \"\")","v":""},null,null,null,"",null,null,""]
[null,null,null,null,{"$f":"_xlfn.IFNA(VLOOKUP(C489,Pricing!A:D,4,FALSE), \"\")","v":""},null,null,null,"",null,null,""]
[null,null,null,null,{"$f":"_xlfn.IFNA(VLOOKUP(C490,Pricing!A:D,4,FALSE), \"\")","v":""},null,null,null,"",null,null,""]
[null,null,null,null,{"$f":"_xlfn.IFNA(VLOOKUP(C491,Pricing!A:D,4,FALSE), \"\")","v":""},null,null,null,"",null,null,""]
[null,null,null,null,{"$f":"_xlfn.IFNA(VLOOKUP(C492,Pricing!A:D,4,FALSE), \"\")","v":""},null,null,null,"",null,null,""]
[null,null,null,null,{"$f":"_xlfn.IFNA(VLOOKUP(C493,Pricing!A:D,4,FALSE), \"\")","v":""},null,null,null,"",null,null,""]
[null,null,null,null,{"$f":"_xlfn.IFNA(VLOOKUP(C494,Pricing!A:D,4,FALSE), \"\")","v":""},null,null,null,"",null,null,""]
[null,null,null,null,{"$f":"_xlfn.IFNA(VLOOKUP(C495,Pricing!A:D,4,FALSE), \"\")","v":""},null,null,null,"",null,null,""]
[null,null,null,null,{"$f":"_xlfn.IFNA(VLOOKUP(C496,Pricing!A:D,4,FALSE), \"\")","v":""},null,null,null,"",null,null,""]
[null,null,null,null,{"$f":"_xlfn.IFNA(VLOOKUP(C497,Pricing!A:D,4,FALSE), \"\")","v":""},null,null,null,"",null,null,""]
[null,null,null,null,{"$f":"_xlfn.IFNA(VLOOKUP(C498,Pricing!A:D,4,FALSE), \"\")","v":""},null,null,null,"",null,null,""]
[null,null,null,null,{"$f":"_xlfn.IFNA(VLOOKUP(C499,Pricing!A:D,4,FALSE), \"\")","v":""},null,null,null,"",null,null,""]
[null,null,null,null,{"$f":"_xlfn.IFNA(VLOOKUP(C500,Pricing!A:D,4,FALSE), \"\")","v":""},null,null,null,"",null,null,""]
[null,null,null,null,{"$f":"_xlfn.IFNA(VLOOKUP(C501,Pricing!A:D,4,FALSE), \"\")","v":""},null,null,null,"",null,null,""]
[null,null,null,null,{"$f":"_xlfn.IFNA(VLOOKUP(C502,Pricing!A:D,4,FALSE), \"\")","v":""},null,null,null,"",null,null,""]
[null,null,null,null,{"$f":"_xlfn.IFNA(VLOOKUP(C503,Pricing!A:D,4,FALSE), \"\")","v":""},null,null,null,"",null,null,""]
[null,null,null,null,{"$f":"_xlfn.IFNA(VLOOKUP(C504,Pricing!A:D,4,FALSE), \"\")","v":""},null,null,null,"",null,null,""]
[null,null,null,null,{"$f":"_xlfn.IFNA(VLOOKUP(C505,Pricing!A:D,4,FALSE), \"\")","v":""},null,null,null,"",null,null,""]
[null,null,null,null,{"$f":"_xlfn.IFNA(VLOOKUP(C506,Pricing!A:D,4,FALSE), \"\")","v":""},null,null,null,"",null,null,""]
[null,null,null,null,{"$f":"_xlfn.IFNA(VLOOKUP(C507,Pricing!A:D,4,FALSE), \"\")","v":""},null,null,null,"",null,null,""]
[null,null,null,null,{"$f":"_xlfn.IFNA(VLOOKUP(C508,Pricing!A:D,4,FALSE), \"\")","v":""},null,null,null,"",null,null,""]
[null,null,null,null,{"$f":"_xlfn.IFNA(VLOOKUP(C509,Pricing!A:D,4,FALSE), \"\")","v":""},null,null,null,"",null,null,""]
[null,null,null,null,{"$f":"_xlfn.IFNA(VLOOKUP(C510,Pricing!A:D,4,FALSE), \"\")","v":""},null,null,null,"",null,null,""]
[null,null,null,null,{"$f":"_xlfn.IFNA(VLOOKUP(C511,Pricing!A:D,4,FALSE), \"\")","v":""},null,null,null,"",null,null,""]
[null,null,null,null,{"$f":"_xlfn.IFNA(VLOOKUP(C512,Pricing!A:D,4,FALSE), \"\")","v":""},null,null,null,"",null,null,""]
[null,null,null,null,{"$f":"_xlfn.IFNA(VLOOKUP(C513,Pricing!A:D,4,FALSE), \"\")","v":""},null,null,null,"",null,null,""]
[null,null,null,null,{"$f":"_xlfn.IFNA(VLOOKUP(C514,Pricing!A:D,4,FALSE), \"\")","v":""},null,null,null,"",null,null,""]
[null,null,null,null,{"$f":"_xlfn.IFNA(VLOOKUP(C515,Pricing!A:D,4,FALSE), \"\")","v":""},null,null,null,"",null,null,""]
[null,null,null,null,{"$f":"_xlfn.IFNA(VLOOKUP(C516,Pricing!A:D,4,FALSE), \"\")","v":""},null,null,null,"",null,null,""]
[null,null,null,null,{"$f":"_xlfn.IFNA(VLOOKUP(C517,Pricing!A:D,4,FALSE), \"\")","v":""},null,null,null,"",null,null,""]
[null,null,null,null,{"$f":"_xlfn.IFNA(VLOOKUP(C518,Pricing!A:D,4,FALSE), \"\")","v":""},null,null,null,"",null,null,""]
[null,null,null,null,{"$f":"_xlfn.IFNA(VLOOKUP(C519,Pricing!A:D,4,FALSE), \"\")","v":""},null,null,null,"",null,null,""]
[null,null,null,null,{"$f":"_xlfn.IFNA(VLOOKUP(C520,Pricing!A:D,4,FALSE), \"\")","v":""},null,null,null,"",null,null,""]
[null,null,null,null,{"$f":"_xlfn.IFNA(VLOOKUP(C521,Pricing!A:D,4,FALSE), \"\")","v":""},null,null,null,"",null,null,""]
[null,null,null,null,{"$f":"_xlfn.IFNA(VLOOKUP(C522,Pricing!A:D,4,FALSE), \"\")","v":""},null,null,null,"",null,null,""]
[null,null,null,null,{"$f":"_xlfn.IFNA(VLOOKUP(C523,Pricing!A:D,4,FALSE), \"\")","v":""},null,null,null,"",null,null,""]
[null,null,null,null,{"$f":"_xlfn.IFNA(VLOOKUP(C524,Pricing!A:D,4,FALSE), \"\")","v":""},null,null,null,"",null,null,""]
[null,null,null,null,{"$f":"_xlfn.IFNA(VLOOKUP(C525,Pricing!A:D,4,FALSE), \"\")","v":""},null,null,null,"",null,null,""]
[null,null,null,null,{"$f":"_xlfn.IFNA(VLOOKUP(C526,Pricing!A:D,4,FALSE), \"\")","v":""},null,null,null,"",null,null,""]
[null,null,null,null,{"$f":"_xlfn.IFNA(VLOOKUP(C527,Pricing!A:D,4,FALSE), \"\")","v":""},null,null,null,"",null,null,""]
[null,null,null,null,{"$f":"_xlfn.IFNA(VLOOKUP(C528,Pricing!A:D,4,FALSE), \"\")","v":""},null,null,null,"",null,null,""]
[null,null,null,null,{"$f":"_xlfn.IFNA(VLOOKUP(C529,Pricing!A:D,4,FALSE), \"\")","v":""},null,null,null,"",null,null,""]
[null,null,null,null,{"$f":"_xlfn.IFNA(VLOOKUP(C530,Pricing!A:D,4,FALSE), \"\")","v":""},null,null,null,"",null,null,""]
[null,null,null,null,{"$f":"_xlfn.IFNA(VLOOKUP(C531,Pricing!A:D,4,FALSE), \"\")","v":""},null,null,null,"",null,null,""]
[null,null,null,null,{"$f":"_xlfn.IFNA(VLOOKUP(C532,Pricing!A:D,4,FALSE), \"\")","v":""},null,null,null,"",null,null,""]
[null,null,null,null,{"$f":"_xlfn.IFNA(VLOOKUP(C533,Pricing!A:D,4,FALSE), \"\")","v":""},null,null,null,"",null,null,""]
[null,null,null,null,{"$f":"_xlfn.IFNA(VLOOKUP(C534,Pricing!A:D,4,FALSE), \"\")","v":""},null,null,null,"",null,null,""]
[null,null,null,null,{"$f":"_xlfn.IFNA(VLOOKUP(C535,Pricing!A:D,4,FALSE), \"\")","v":""},null,null,null,"",null,null,""]
[null,null,null,null,{"$f":"_xlfn.IFNA(VLOOKUP(C536,Pricing!A:D,4,FALSE), \"\")","v":""},null,null,null,"",null,null,""]
[null,null,null,null,{"$f":"_xlfn.IFNA(VLOOKUP(C537,Pricing!A:D,4,FALSE), \"\")","v":""},null,null,null,"",null,null,""]
[null,null,null,null,{"$f":"_xlfn.IFNA(VLOOKUP(C538,Pricing!A:D,4,FALSE), \"\")","v":""},null,null,null,"",null,null,""]
[null,null,null,null,{"$f":"_xlfn.IFNA(VLOOKUP(C539,Pricing!A:D,4,FALSE), \"\")","v":""},null,null,null,"",null,null,""]
[null,null,null,null,{"$f":"_xlfn.IFNA(VLOOKUP(C540,Pricing!A:D,4,FALSE), \"\")","v":""},null,null,null,"",null,null,""]
[null,null,null,null,{"$f":"_xlfn.IFNA(VLOOKUP(C541,Pricing!A:D,4,FALSE), \"\")","v":""},null,null,null,"",null,null,""]
[null,null,null,null,{"$f":"_xlfn.IFNA(VLOOKUP(C542,Pricing!A:D,4,FALSE), \"\")","v":""},null,null,null,{"$f":"IFERROR(IF(H542=\"\", \"\", H542*E542), \"\")","v":""},null,null,{"$f":"IFERROR(I542/($H$4-$H$6), \"\")","v":""}]
[null,null,null,null,{"$f":"_xlfn.IFNA(VLOOKUP(C543,Pricing!A:D,4,FALSE), \"\")","v":""},null,null,null,"",null,null,""]
[null,null,null,null,{"$f":"_xlfn.IFNA(VLOOKUP(C544,Pricing!A:D,4,FALSE), \"\")","v":""},null,null,null,"",null,null,""]
[null,null,null,null,{"$f":"_xlfn.IFNA(VLOOKUP(C545,Pricing!A:D,4,FALSE), \"\")","v":""},null,null,null,"",null,null,""]
[null,null,null,null,{"$f":"_xlfn.IFNA(VLOOKUP(C546,Pricing!A:D,4,FALSE), \"\")","v":""},null,null,null,"",null,null,""]
[null,null,null,null,{"$f":"_xlfn.IFNA(VLOOKUP(C547,Pricing!A:D,4,FALSE), \"\")","v":""},null,null,null,"",null,null,""]
[null,null,null,null,{"$f":"_xlfn.IFNA(VLOOKUP(C548,Pricing!A:D,4,FALSE), \"\")","v":""},null,null,null,"",null,null,""]
[null,null,null,null,{"$f":"_xlfn.IFNA(VLOOKUP(C549,Pricing!A:D,4,FALSE), \"\")","v":""},null,null,null,"",null,null,""]
[null,null,null,null,{"$f":"_xlfn.IFNA(VLOOKUP(C550,Pricing!A:D,4,FALSE), \"\")","v":""},null,null,null,"",null,null,""]
[null,null,null,null,{"$f":"_xlfn.IFNA(VLOOKUP(C551,Pricing!A:D,4,FALSE), \"\")","v":""},null,null,null,"",null,null,""]
[null,null,null,null,{"$f":"_xlfn.IFNA(VLOOKUP(C552,Pricing!A:D,4,FALSE), \"\")","v":""},null,null,null,"",null,null,""]
[null,null,null,null,{"$f":"_xlfn.IFNA(VLOOKUP(C553,Pricing!A:D,4,FALSE), \"\")","v":""},null,null,null,"",null,null,""]
[null,null,null,null,{"$f":"_xlfn.IFNA(VLOOKUP(C554,Pricing!A:D,4,FALSE), \"\")","v":""},null,null,null,"",null,null,""]
[null,null,null,null,{"$f":"_xlfn.IFNA(VLOOKUP(C555,Pricing!A:D,4,FALSE), \"\")","v":""},null,null,null,"",null,null,""]
[null,null,null,null,{"$f":"_xlfn.IFNA(VLOOKUP(C556,Pricing!A:D,4,FALSE), \"\")","v":""},null,null,null,"",null,null,""]
[null,null,null,null,{"$f":"_xlfn.IFNA(VLOOKUP(C557,Pricing!A:D,4,FALSE), \"\")","v":""},null,null,null,"",null,null,""]
[null,null,null,null,{"$f":"_xlfn.IFNA(VLOOKUP(C558,Pricing!A:D,4,FALSE), \"\")","v":""},null,null,null,"",null,null,""]
[null,null,null,null,{"$f":"_xlfn.IFNA(VLOOKUP(C559,Pricing!A:D,4,FALSE), \"\")","v":""},null,null,null,"",null,null,""]
[null,null,null,null,{"$f":"_xlfn.IFNA(VLOOKUP(C560,Pricing!A:D,4,FALSE), \"\")","v":""},null,null,null,"",null,null,""]
[null,null,null,null,{"$f":"_xlfn.IFNA(VLOOKUP(C561,Pricing!A:D,4,FALSE), \"\")","v":""},null,null,null,"",null,null,""]
[null,null,null,null,{"$f":"_xlfn.IFNA(VLOOKUP(C562,Pricing!A:D,4,FALSE), \"\")","v":""},null,null,null,"",null,null,""]
[null,null,null,null,{"$f":"_xlfn.IFNA(VLOOKUP(C563,Pricing!A:D,4,FALSE), \"\")","v":""},null,null,null,"",null,null,""]
[null,null,null,null,{"$f":"_xlfn.IFNA(VLOOKUP(C564,Pricing!A:D,4,FALSE), \"\")","v":""},null,null,null,"",null,null,""]
[null,null,null,null,{"$f":"_xlfn.IFNA(VLOOKUP(C565,Pricing!A:D,4,FALSE), \"\")","v":""},null,null,null,"",null,null,""]
[null,null,null,null,{"$f":"_xlfn.IFNA(VLOOKUP(C566,Pricing!A:D,4,FALSE), \"\")","v":""},null,null,null,"",null,null,""]
[null,null,null,null,{"$f":"_xlfn.IFNA(VLOOKUP(C567,Pricing!A:D,4,FALSE), \"\")","v":""},null,null,null,"",null,null,""]
[null,null,null,null,{"$f":"_xlfn.IFNA(VLOOKUP(C568,Pricing!A:D,4,FALSE), \"\")","v":""},null,null,null,"",null,null,""]
[null,null,null,null,{"$f":"_xlfn.IFNA(VLOOKUP(C569,Pricing!A:D,4,FALSE), \"\")","v":""},null,null,null,"",null,null,""]
[null,null,null,null,{"$f":"_xlfn.IFNA(VLOOKUP(C570,Pricing!A:D,4,FALSE), \"\")","v":""},null,null,null,"",null,null,""]
[null,null,null,null,{"$f":"_xlfn.IFNA(VLOOKUP(C571,Pricing!A:D,4,FALSE), \"\")","v":""},null,null,null,"",null,null,""]
[null,null,null,null,{"$f":"_xlfn.IFNA(VLOOKUP(C572,Pricing!A:D,4,FALSE), \"\")","v":""},null,null,null,"",null,null,""]
[null,null,null,null,{"$f":"_xlfn.IFNA(VLOOKUP(C573,Pricing!A:D,4,FALSE), \"\")","v":""},null,null,null,"",null,null,""]
[null,null,null,null,{"$f":"_xlfn.IFNA(VLOOKUP(C574,Pricing!A:D,4,FALSE), \"\")","v":""},null,null,null,"",null,null,""]
[null,null,null,null,{"$f":"_xlfn.IFNA(VLOOKUP(C575,Pricing!A:D,4,FALSE), \"\")","v":""},null,null,null,"",null,null,""]
[null,null,null,null,{"$f":"_xlfn.IFNA(VLOOKUP(C576,Pricing!A:D,4,FALSE), \"\")","v":""},null,null,null,"",null,null,""]
[null,null,null,null,{"$f":"_xlfn.IFNA(VLOOKUP(C577,Pricing!A:D,4,FALSE), \"\")","v":""},null,null,null,"",null,null,""]
[null,null,null,null,{"$f":"_xlfn.IFNA(VLOOKUP(C578,Pricing!A:D,4,FALSE), \"\")","v":""},null,null,null,"",null,null,""]
[null,null,null,null,{"$f":"_xlfn.IFNA(VLOOKUP(C579,Pricing!A:D,4,FALSE), \"\")","v":""},null,null,null,"",null,null,""]
[null,null,null,null,{"$f":"_xlfn.IFNA(VLOOKUP(C580,Pricing!A:D,4,FALSE), \"\")","v":""},null,null,null,"",null,null,""]
[null,null,null,null,{"$f":"_xlfn.IFNA(VLOOKUP(C581,Pricing!A:D,4,FALSE), \"\")","v":""},null,null,null,"",null,null,""]
[null,null,null,null,{"$f":"_xlfn.IFNA(VLOOKUP(C582,Pricing!A:D,4,FALSE), \"\")","v":""},null,null,null,"",null,null,""]

{"sheet":"Pricing","index":3,"n_rows":332,"n_cols":4,"rows_kept":332,"cut":false,"hidden":true,"merged":[]}
["PSM SKU Reference","Commodity Description",null,"Estimated Price"]
["104406XUZ09C","(COVID-19) Bag, Biohazard, Printed, Red,122 x 94 cm, Autoclavable, 2 mil, 100 Each",null,33.650600000000004]
["104407XUZ09C","(COVID-19) Bag, Biohazard, Printed, Red, 38 x 48 cm, Autoclavable, 2 mil, 100 Each",null,21.7]
["104410XUZ01S","(COVID-19) Cardiac Monitor, Battery Backup, NIBP/NP/PR, Adult/Pediatric Modes, Attached Leads, 115 V, 1 Each",null,946.68999999999994]
["104411XUZ01S","(COVID-19) Cardiac Monitor, Battery Backup, NIBP/NP/PR, Adult/Pediatric Modes, Attached Leads, 230 V, 1 Each",null,946.68999999999994]
["104412XUZ0AC","(COVID-19) Nasal Catheter, Flexible, 6-12 Lateral Eyes, Sterile, Single Use, 8 FR, 40 cm, 200 Each",null,40.520000000000003]
["104413XUZ01S","(COVID-19) Non-Rebreath O2 Mask w/ Reservoir, 2 m Tube, Non-Sterile, Single Use, Elastic Strap, Adult, 1 Each",null,1.52]
["104414XUZ01S","(COVID-19) Non-Rebreath O2 Mask w/ Reservoir, 2 m Tube, Non-Sterile, Single Use, Elastic Strap, Pediatric, 1 Each",null,1.52]
["104415XUZ01S","(COVID-19) Mask, Venturi, Oxygen Percentage Lock, w/ Tubing, Non-Sterile, Single Use, Adult, 1 Each",null,0.83419999999999994]
["104416XUZ01S","(COVID-19) Mask, Venturi, Oxygen Percentage Lock, w/ Tubing, Non-Sterile, Single Use, Pediatric, 1 Each",null,2.02]
["104417XUZ0AC","(COVID-19) Nasal Cannula, Non-Sterile, Dual Prong, Flexible Anti-Kink Tubing, Adult , 200 Each",null,56.6]
["104418XUZ0AC","(COVID-19) Nasal Cannula, Non-Sterile, Dual Prong, Flexible Anti-Kink Tubing, Pediatric, 200 Each",null,145.82000000000002]
["104419XUZ0AC","(COVID-19) Nasal Cannula, Non-Sterile, Dual Prong, Flexible Anti-Kink Tubing, Neonatal, 200 Each",null,63.914000000000001]
["104420XUZ01S","(COVID-19) Nebulizer, Max 10 L/Min, Nebulisation Rate 0.1 L/min, 22 PSI, Disp. Mouthpiece, 220 V, 1 Each",null,23.02]
["104422XUZ01S","(COVID-19) O2 Concentrator, 1-10 L/Min Output, Adj. Flowmeter, 0.5 L/Min Interval, 6 mm Connector, 230 V, 1 Each",null,995]
["104423XUZ01S","(COVID-19) Pulse Oximeter, Finger Clip, Pediatric, Battery Powered, Resolution 1 bpm and 1% SpO2, 1 Each",null,153.14000000000001]
["104423XUZ09C","(COVID-19) Pulse Oximeter, Finger Clip, Pediatric, Battery Powered, Resolution 1 bpm and 1% SpO2, 100 Each",null,915.02]
["104424XUZ01S","(COVID-19) Pulse Oximeter, Finger Clip, Adult, Battery Powered, Resolution 1 bpm and 1% SpO2, 1 Each",null,149.31]
["104425XUZ01S","(COVID-19) Bag Valve Mask, Adult, 1475-2000 mL Vent. Bag, O2 Reservoir Bag, POP Valve, S/M/L Adult Mask, 1 Each",null,45.220000000000006]
["104426XUZ01S","(COVID-19) Bag Valve Mask, Pediatric, 500-700 mL Vent. Bag, O2 Reservoir Bag, POP Valve, Pediatric Mask, 1 Each",null,12.07]
["104427XUZ01S","(COVID-19) O2 Connector, Y-Type, Standard, 1 Each",null,3.72]
["104428XUZ01S","(COVID-19) O2 Connector, Male/Female, Standard, 1 Each",null,3.02]
["104429XUZ01S","(COVID-19) O2 Connector, Swivel, Standard, 1 Each",null,3.9049759999999996]
["104431XUZ01S","(COVID-19) O2 Tubing, Standard Oxygen Connector, 2.1 m, 1 Each",null,0.42000000000000004]
["104432XUZ01S","(COVID-19) O2 Tubing, Standard Oxygen Connector, 7.6 m, 1 Each",null,1.62]
["104433XUZ01S","(COVID-19) O2 Tubing, Standard Oxygen Connector, 15 m, 1 Each",null,3.1249999999999996]
["104437XUZ01S","(COVID-19) Flowmeter, High Flow Oxygen, and Accessories for Ventilator, 1 Each",null,93.52]
["104438XUZ0B7","(COVID-19) ECG Electrodes, Conductive, Skin-Adherent, Disposable, Snap-Type, 50 Each",null,4.8499999999999996]
["104439XUZ01S","(COVID-19) ECG Lead Wire, Snap Type, 5-Lead, AHA, 1 and 1.6 m, Reusable, 1 Each",null,27.02]
["104584XUZ09C","(COVID-19) Alcohol Prep Pads, 70% Isopropyl Alcohol, Non-Sterile, 100 Each",null,0.82000000000000006]
["104585XUZ01S","(COVID-19) Cadaver Bag, Adult, 250 x 120 cm, White, Linear Enfored PE, 300 microns, 6 Handles, 1 Each",null,27.419999999999998]
["104603XUZ01S","(COVID-19) Sealing Film, 100 mm x 75 m, 1 Each",null,81.11999999999999]
["104605XUZ0DB","(COVID-19) Cuff Tape, White, 10 yd x 1 in, 144 Each",null,82.42]
["104612XUZ01S","(COVID-19) Apron, Heavy Duty, Non-Woven, Non-Medical, 1 Each",null,0.84799999999999998]
["104613XUZ01S","(COVID-19) Apron, Plastic, 80 x 120 cm, Washable, PVC, Non-Medical, 1 Each",null,2.72]
["104616XUZ0L9","(COVID-19) Eyewash Solution, Sterile, Isotonic, Nozzle Applicator, 8 oz",null,12.77]
["104617XUZ0HN","(COVID-19) Gloves, Heavy Duty, Medium, Rubber, Non-Medical, 1 Pair",null,0.91699999999999993]
["104618XUZ0B7","(COVID-19) Surgical Gown, Medium, Sterile, 50 Each",null,303.77]
["104618XUZ0HT","(COVID-19) Surgical Gown, Medium, Sterile, 56 Each",null,77.319999999999993]
["104618XUZ0HX","(COVID-19) Surgical Gown, Medium, Sterile, 40 Each",null,60.690000000000005]
["104619XUZ0AO","(COVID-19) Surgical Gown, Large, Sterile, 30 Each",null,131.55000000000001]
["104619XUZ0B7","(COVID-19) Surgical Gown, Large, Sterile, 50 Each",null,303.77]
["104619XUZ0HX","(COVID-19) Surgical Gown, Large, Sterile, 40 Each",null,175.39333333333335]
["104620XUZ0AO","(COVID-19) Surgical Gown, Extra Large, Sterile, 30 Each",null,138.76000000000002]
["104620XUZ0B7","(COVID-19) Surgical Gown, Extra Large, Sterile, 50 Each",null,249.8]
["104620XUZ0HX","(COVID-19) Surgical Gown, Extra Large, Sterile, 40 Each",null,71.779999999999987]
["104621XUZ09C","(COVID-19) Barrier Gown, Disposable, Blue, Elastic Cuffs, Neck and Waist Ties, Universal Fit, 100 Each",null,150.44]
["104621XUZ0AE","(COVID-19) Barrier Gown, Disposable, Blue, Elastic Cuffs, Neck and Waist Ties, Universal Fit, 10 Each",null,15.061999999999999]
["104621XUZ0HX","(COVID-19) Barrier Gown, Disposable, Blue, Elastic Cuffs, Neck and Waist Ties, Universal Fit, 40 Each",null,60.188000000000002]
["104625XUZ01S","(COVID-19) Surgical Scrub Pants, Woven, EN 13795, 1 Each",null,19.13]
["104625XUZ0HX","(COVID-19) Surgical Scrub Pants, Woven, EN 13795, 40 Each",null,270.02]
["104626XUZ0AL","(COVID-19) Hand Soap, Anti-Bacterial, Multi-Use, 1 L",null,5.72]
["104636XUZ0EJ","(COVID-19) Paper Towel, 2 Ply, All Purpose, 12 Each",null,32.520000000000003]
["104647XUZ0HN","(COVID-19) Boots, PVC, Size 42, Anti-Slip Profile, Knee-High, Black, 1 Pair",null,7.55]
["104648XUZ0HN","(COVID-19) Boots, PVC, Size 43, Anti-Slip Profile, Knee-High, Black, 1 Pair",null,7.55]
["104649XUZ0HN","(COVID-19) Boots, PVC, Size 44, Anti-Slip Profile, Knee-High, Black, 1 Pair",null,7.55]
["104650XUZ09C","(COVID-19) Bouffant Cap, Latex-Free, White, 100 Each",null,5.52]
["104650XUZ0AB","(COVID-19) Bouffant Cap, Latex-Free, White, 1000 Each",null,20.02]
["104651XUZ0AZ","(COVID-19) Surgical Cap, Protective, Blue, Universal Size, 500 Each",null,43.620000000000005]
["104652XUZ0B7","(COVID-19) Coverall, Nonwoven, Laminated Fabric Extra Large, w/ Elastic Wrists/Ankles/Hood, Hidden Zipper, Disp., 50 Each",null,398.82]
["104652XUZ0HU","(COVID-19) Coverall, Nonwoven, Laminated Fabric Extra Large, w/ Elastic Wrists/Ankles/Hood, Hidden Zipper, Disp., 25 Each",null,103.02]
["104653XUZ0B7","(COVID-19) Coverall, Nonwoven, Laminated Fabric Large, w/ Elastic Wrists/Ankles/Hood, Hidden Zipper, Disp., 50 Each",null,398.82]
["104653XUZ0HU","(COVID-19) Coverall, Nonwoven, Laminated Fabric Large, w/ Elastic Wrists/Ankles/Hood, Hidden Zipper, Disp., 25 Each",null,120.76999999999998]
["104654XUZ0B7","(COVID-19) Coverall, Nonwoven, Laminated Fabric Medium, w/ Elastic Wrists/Ankles/Hood, Hidden Zipper, Disp., 50 Each",null,348.02]
["104654XUZ0HU","(COVID-19) Coverall, Nonwoven, Laminated Fabric Medium, w/ Elastic Wrists/Ankles/Hood, Hidden Zipper, Disp., 25 Each",null,120.76999999999998]
["104655XUZ01S","(COVID-19) Protective Goggles, Clear Lens, Indirect Vent, Anti-Fog Coating, Adjustable Strap, 1 Each",null,1.7587999999999999]
["104655XUZ0DB","(COVID-19) Protective Goggles, Clear Lens, Indirect Vent, Anti-Fog Coating, Adjustable Strap, 144 Each",null,250.40720000000002]
["104656XUZ0GS","(COVID-19) Surgical Hood, White, Universal Fit, Disposable, 100 Pieces",null,5.6199999999999992]
["104657XUZ09C","(COVID-19) Protective Hood, Tyvek, Disposable, Universal Size, 100 Each",null,171.42000000000002]
["104658XUZ09C","(COVID-19) Shoe Cover, Latex-Free, Blue, Disposable, Universal Size, 100 Each",null,14.02]
["104658XUZ0AC","(COVID-19) Shoe Cover, Latex-Free, Blue, Disposable, Universal Size, 200 Each",null,15.699999999999998]
["104659XUZ0AZ","(COVID-19) Boot Cover, High, 33 cm, Universal, White, SMS, 500 Each",null,141.82000000000002]
["104659XUZ0EQ","(COVID-19) Boot Cover, High, 33 cm, Universal, White, SMS, 300 Each",null,5.8699999999999992]
["104660XUZ0AC","(COVID-19) Sleeve Cover, Tyvek, Universal Fit, Elastic Shoulder/Wrist, 200 Each",null,16.579999999999998]
["104661XUZ01S","(COVID-19) Protective Suit, Tyvek, Extra Large, Front Zipper, Open Wrist/Ankle, 1 Each",null,4.8499999999999996]
["104661XUZ09C","(COVID-19) Protective Suit, Tyvek, Extra Large, Front Zipper, Open Wrist/Ankle, 100 Each",null,483.01999999999992]
["104662XUZ01S","(COVID-19) Protective Suit, Tyvek, Large, Front Zipper, Open Wrist/Ankle, 1 Each",null,4.8499999999999996]
["104662XUZ09C","(COVID-19) Protective Suit, Tyvek, Large, Front Zipper, Open Wrist/Ankle, 100 Each",null,483.01999999999992]
["104663XUZ01S","(COVID-19) Protective Suit, Tyvek, Medium, Front Zipper, Open Wrist/Ankle, 1 Each",null,4.8499999999999996]
["104663XUZ09C","(COVID-19) Protective Suit, Tyvek, Medium, Front Zipper, Open Wrist/Ankle, 100 Each",null,483.01999999999992]
["104664XUZ01S","(COVID-19) Vital Sign Monitor, Pulse/Blood Pressure/SpO2, Ped/Adult/Obese BP Cuffs, Battery, 220-240V, 1 Each",null,838.77]
["104679XUZ01S","(COVID-19) Flow Splitter for Oxygen Concentrator, Y Style, 50-350 kPa Input Pressure, 1 Each",null,121.52]
["104680XUZ01S","(COVID-19) Flow Splitter for Oxygen Concentrator, 5 Outlets and 1 Inlet, Independent Flowmeters, 1 Each",null,104.02]
["104681XUZ01S","(COVID-19) Bubble Humidifier, High Flow, Non-Heated, Pressure-Relief Valve, Standard O2 Connections, 1 Each",null,2.7109999999999999]
["104688XUZ01S","(COVID-19) Laryngoscope, Adult, 28 mm Handle, Battery Operated, Integrated Light Source, Battery Operated, 1 Each",null,272.65999999999997]
["104689XUZ01S","(COVID-19) Laryngoscope, Video Guided, Battery Operated, Integrated LED and Screen, Adult/Pediatric Blades, 1 Each",null,675.02]
["104690XUZ01S","(COVID-19) Laryngoscope, Neonatal, 19 mm Handle, Integrated Light Source, Battery Operated, 1 Each",null,264.97999999999996]
["104702XUZ01S","(COVID-19) Oxygen Cylinder, Medical-Use, 830 Regulator, 1470 L, 1 Each",null,202.82000000000002]
["104703XUZ01S","(COVID-19) Oxygen Analyzer, Measures O2 Purity, Flow Rate, and Patient Outlet Pressure, Portable, 1 Each",null,640.77]
["104704XUZ01S","(COVID-19) Pulse Oximeter Finger Probe, Adult, 1 m Cable, 1 Each",null,36.590000000000003]
["104705XUZ01S","(COVID-19) Pulse Oximeter Finger Probe, Pediatric, 1 m Cable, 1 Each",null,50.620000000000005]
["104706XUZ01S","(COVID-19) Respirator Qualitative Fit Test Kit, 1 Each",null,267.32]
["104707XUZ01S","(COVID-19) Suction Bulb, Newborn, Reusable, Autoclavable, 1 Each",null,24.02]
["104708XUZ01S","(COVID-19) Suction Pump, Electric, Portable, with Suction Tip, Canister, and Tubing, 1 Each",null,347.32]
["104709XUZ01S","(COVID-19) Suction Pump, Manual, Hand-Operated, Single Use Canister, Disposable Tubing, 1 Each",null,23.617999999999999]
["104712XUZ01S","(COVID-19) ICU Bed, Powered, Side Rails, Wheels w/ Brake, Motorized Adjustable Sections, 1 Each",null,1080.02]
["104728XUZ01S","(COVID-19) Suction Tube, Yankauer, w/ Removable Tip, Tubing Connection, Stainless Steel, 1 Each",null,8.42]
["104744XUZ0B5","(COVID-19) PCR Tube Rack, 96-Well, 0.2 mL Tubes, Assorted Colors, Snap Lid, 5 Each",null,58.92]
["104758XUZ01S","(COVID-19) Pipette, Single Channel, Manual, Adjustable Volume, 5-50 uL, 1 Each",null,58.06]
["104759XUZ01S","(COVID-19) Pipette, 8 Channel, Manual, Adjustable Volume, 30-300 uL, 1 Each",null,276.71999999999997]
["104760XUZ01S","(COVID-19) Thermal Scan Camera, LCD Screen, -20 to 400 C Range, 0.5 C Accuracy, 1 Each",null,3714.62]
["104761XUZ01S","(COVID-19) Infrared Thermometer, Handheld, Body Temp Range, 1 Each",null,15.67]
["104762XUZ0AC","(COVID-19) Specimen Bag, Biohazard, 19 x 23 cm, 200 Each",null,11.44]
["104763XUZ09C","(COVID-19) Applicator Stick, Sterile, Cotton Tip Wood, 15 cm, 6 in, 100 Each",null,4.0633999999999997]
["104765XUZ0AB","(COVID-19) Applicator Stick, Cotton Tip Wood, 15 cm, 6 in, Plain, Sterile, Individual Peel Pouch, 1000 Each",null,103.89999999999999]
["104766XUZ0EC","(COVID-19) Specimen Container, Sputum, 60 mL, Plastic, w/ Lid, 400 Each",null,63.820000000000007]
["104768XUZ0B7","(COVID-19) Transport Swab, Sterile, With Transport Media, 50 Each",null,92.039999999999992]
["104782XUZ03C","(COVID-19) Oxygen w/ BS31#3 Valve and Collar Protector, 5 L",null,58.5]
["104866XUZ01S","(COVID-19) CPAP Helmet, 1 Each",null,142.52000000000001]
["104931XUZ09C","(COVID-19) Examination Gloves (Nitrile) Large, Powder-Free, Non-Sterile, 100 Each",null,9.98]
["104931XUZ0AB","(COVID-19) Examination Gloves (Nitrile) Large, Powder-Free, Non-Sterile, 1000 Each",null,31.52]
["104932XUZ09C","(COVID-19) Examination Gloves (Nitrile) Medium, Powder-Free, Non-Sterile, 100 Each",null,9.98]
["104932XUZ0AB","(COVID-19) Examination Gloves (Nitrile) Medium, Powder-Free, Non-Sterile, 1000 Each",null,31.52]
["104933XUZ09C","(COVID-19) Examination Gloves (Nitrile) Small, Powder-Free, Non-Sterile, 100 Each",null,9.98]
["104933XUZ0AB","(COVID-19) Examination Gloves (Nitrile) Small, Powder-Free, Non-Sterile, 1000 Each",null,31.52]
["104934XUZ01S","(COVID-19) Face Mask, Respiratory N95 Nose Mask, Adjustable Straps, Medical, Without Valve, 1 Each",null,0.503]
["104934XUZ0AB","(COVID-19) Face Mask, Respiratory N95 Nose Mask, Adjustable Straps, Medical, Without Valve, 1000 Each",null,0.66]
["104934XUZ0AE","(COVID-19) Face Mask, Respiratory N95 Nose Mask, Adjustable Straps, Medical, Without Valve, 10 Each",null,6.42]
["104934XUZ0BK","(COVID-19) Face Mask, Respiratory N95 Nose Mask, Adjustable Straps, Medical, Without Valve, 20 Each",null,16.571999999999999]
["104934XUZ0M7","(COVID-19) Face Mask, Respiratory N95 Nose Mask, Adjustable Straps, Medical, Without Valve, 240 Each",null,331.76857142857142]
["104935XUZ0B7","(COVID-19) Face Mask, Surgical 3-Ply, w/ Metal Nose-Clip, Fluid Resistant, 50 Each",null,3.056]
["104935XUZ0GD","(COVID-19) Face Mask, Surgical 3-Ply, w/ Metal Nose-Clip, Fluid Resistant, 2000 Each",null,121.46]
["104935XUZ0LP","(COVID-19) Face Mask, Surgical 3-Ply, w/ Metal Nose-Clip, Fluid Resistant, 1200 Each",null,72.883999999999986]
["104936XUZ0B7","(COVID-19) Face Mask, Surgical With Ear Loops, Fluid Resistant, 50 Each",null,2.2279999999999998]
["104936XUZ0GD","(COVID-19) Face Mask, Surgical With Ear Loops, Fluid Resistant, 2000 Each",null,43.620000000000005]
["104936XUZ0LP","(COVID-19) Face Mask, Surgical With Ear Loops, Fluid Resistant, 1200 Each",null,53.012]
["104938XUZ01S","(COVID-19) Face Shield Plastic, Clear, Fog Resistant, Full Face Length, Disposable, Medical, 1 Each",null,1.052]
["104938XUZ0AC","(COVID-19) Face Shield Plastic, Clear, Fog Resistant, Full Face Length, Disposable, Medical, 200 Each",null,110.41999999999999]
["104938XUZ0AE","(COVID-19) Face Shield Plastic, Clear, Fog Resistant, Full Face Length, Disposable, Medical, 10 Each",null,143.02000000000001]
["104940XUZ09C","(COVID-19) Surgical Gloves (Latex) Size 6.5, Powder-Free, Sterile, Single Use, 100 Each",null,67.11999999999999]
["104941XUZ09C","(COVID-19) Surgical Gloves (Latex) Size 7, Powder-Free, Sterile, Single Use, 100 Each",null,27.62]
["104942XUZ09C","(COVID-19) Surgical Gloves (Latex) Size 7.5, Powder-Free, Sterile, Single Use, 100 Each",null,27.62]
["104943XUZ09C","(COVID-19) Surgical Gloves (Latex) Size 8, Powder-Free, Sterile, Single Use, 100 Each",null,75.11999999999999]
["104944XUZ09C","(COVID-19) Surgical Gloves (Latex) Size 8.5, Powder-Free, Sterile, Single Use, 100 Each",null,47.74]
["104945XUZ09C","(COVID-19) Surgical Gloves (Nitrile) Size 6.5, Powder-Free, Sterile, Single Use, 100 Each",null,145.42000000000002]
["104946XUZ09C","(COVID-19) Surgical Gloves (Nitrile) Size 7, Powder-Free, Sterile, Single Use, 100 Each",null,145.42000000000002]
["104947XUZ09C","(COVID-19) Surgical Gloves (Nitrile) Size 7.5, Powder-Free, Sterile, Single Use, 100 Each",null,145.42000000000002]
["104948XUZ09C","(COVID-19) Surgical Gloves (Nitrile) Size 8, Powder-Free, Sterile, Single Use, 100 Each",null,145.42000000000002]
["104989XUZ0AC","(COVID-19) Bag, Biohazard, Printed, Red, 31 x 66 cm, Autoclavable, 2 mil, 200 Each",null,52.48]
["104990XUZ0AC","(COVID-19) Bag, Biohazard, Printed, Red, 51 x 81 cm, Autoclavable, 2 mil, 200 Each",null,26.033000000000001]
["104992XUZ0AC","(COVID-19) Specimen Bag, Biohazard, 31 x 66 cm, 200 Each",null,52.2]
["104995XUZ01S","(COVID-19) Face Mask, Respiratory N95 Nose Mask, Adjustable Straps, Non-Medical, 1 Each",null,0.84760000000000002]
["104995XUZ0M7","(COVID-19) Face Mask, Respiratory N95 Nose Mask, Adjustable Straps, Non-Medical, 240 Each",null,198.64400000000001]
["104996XUZ0B7","(COVID-19) Face Mask, Medical With Ear Loops, 50 Each",null,2.2279999999999998]
["104996XUZ0GD","(COVID-19) Face Mask, Medical With Ear Loops, 2000 Each",null,88.339999999999989]
["104997XUZ0B7","(COVID-19) Face Mask, Medical 3-Ply, w/ Metal Nose-Clip, 50 Each",null,2.2279999999999998]
["104997XUZ0GD","(COVID-19) Face Mask, Medical 3-Ply, w/ Metal Nose-Clip, 2000 Each",null,88.339999999999989]
["104998XUZ01S","(COVID-19) Face Shield Plastic, Clear, Fog Resistant, Full Face Length, Disposable, Non-Medical, 1 Each",null,1.052]
["104998XUZ0AC","(COVID-19) Face Shield Plastic, Clear, Fog Resistant, Full Face Length, Disposable, Non-Medical, 200 Each",null,206.42000000000002]
["104999XUZ01S","(COVID-19) Elastometric Respirator, Half-Face, Flexible, Reusable, Small, 1 Each",null,39.32]
["105000XUZ01S","(COVID-19) Filters for Elastometric Respirator Disposable, P100, 1 Each",null,5.92]
["105000XUZ0DS","(COVID-19) Filters for Elastometric Respirator Disposable, P100, 2 Each",null,3.14]
["105001XUZ01S","(COVID-19) Elastometric Respirator, Half-Face, Flexible, Reusable, Medium, 1 Each",null,39.32]
["105002XUZ01S","(COVID-19) Elastometric Respirator, Half-Face, Flexible, Reusable, Large, 1 Each",null,39.32]
["105045XUZ01S","(COVID-19) Apron, 90 x 71 cm, Non-Woven, Non-Medical, 1 Each",null,0.64100000000000001]
["105046XUZ01S","(COVID-19) Oxygen Analyzer, Measures O2 Purity, Flow Rate, and Temperature, Portable, 1 Each",null,302.23999999999995]
["105047XUZ01S","(COVID-19) Pulse Oximeter Finger Probe, Adult, for X10 Monitor, 1 Each",null,54.230000000000004]
["105048XUZ01S","(COVID-19) Pulse Oximeter Finger Probe, Pediatric, for X10 Monitor, 1 Each",null,54.230000000000004]
["105051XUZ0HX","(COVID-19) Apron, Heavy Duty, 130 x 90 cm, Reusable, Non-Medical, 40 Each",null,151.62]
["105055XUZ09C","(COVID-19) Surgical Gown, Extra Large, Non-Sterile, 100 Each",null,151.82]
["105056XUZ09C","(COVID-19) Surgical Gown, Large, Non-Sterile, 100 Each",null,151.82]
["105057XUZ09C","(COVID-19) Surgical Gown, Medium, Non-Sterile, 100 Each",null,151.82]
["105113XUZ0EJ","(COVID-19) Filter, Bottle Top, 250 mL, Sterile, PES Filter, 0.2 um pore size, 50 mm diameter, 12 Each",null,174.52]
["105124XUZ0AM","(COVID-19) Pipette Tips, Filter Tip, 10 uL, Sterile, Hinged Rack, 10 Racks of 96 Tips",null,54.87833333333333]
["105125XUZ0AM","(COVID-19) Pipette Tips, Filter Tip, 20 uL, Sterile, Hinged Rack, 10 Racks of 96 Tips",null,65.47]
["105127XUZ0BT","(COVID-19) Pipette Tips, Filter Tip, 1000 uL, Sterile, Hinged Rack, 8 Racks of 96 Tips",null,71.993333333333325]
["105128XUZ0LU","(COVID-19) Lab Wipe 2-Ply, 30 x 30 cm, 1785 Each",null,110.82]
["105132XUZ0LX","(COVID-19) TaqPath COVID-19 CE-IVD PCR Kit, 1000 Tests",null,10510.02]
["105137XUZ01S","(COVID-19) Face Mask, Cloth 3-Ply, Muslin, 3D Stitching Pattern, Washable, 1 Each",null,0.52]
["105141XUZ09C","(COVID-19) Specimen Bag, Biohazard, 15 x 23 cm, 100 Each",null,6.9099999999999993]
["105280XUZ0AC","(COVID-19) Boot Cover, High, 42 cm, Universal, White, SMS, 200 Each",null,218.7]
["105281XUZ01S","(COVID-19) Surgical Scrub Pants, Unisex, Small, Green, Reusable, 1 Each",null,9.17]
["105282XUZ01S","(COVID-19) Surgical Scrub Pants, Unisex, Medium, Green, Reusable, 1 Each",null,9.17]
["105283XUZ01S","(COVID-19) Surgical Scrub Pants, Unisex, Large, Green, Reusable, 1 Each",null,9.17]
["105358XUZ09C","(COVID-19) Examination Gloves (Nitrile) Mixed Sizes (10% S, 40% M, 40% L, 10% XL), Non-Sterile, Powder Free, 100 Each",null,5.1259999999999994]
["105490XUZ01S","(COVID-19) Penta Flow Flow Splitter for use with Nuvo 10 and Max 30 [6500-4616], 1 Each",null,650.02]
["105491XUZ02X","(COVID-19) Nuvo 10 Level 2 Spare Parts Kit, 1 Kit",null,415.02]
["105492XUZ02X","(COVID-19) Max 30 Level 1 Spare Parts Kit, 1 Kit",null,180.02]
["105493XUZ02X","(COVID-19) Max 30 Level 2 Spare Parts Kit, 1 Kit",null,1575.02]
["105598XUZ02X","(COVID-19) Nuvo 10 Level 1 Spare Parts Kit, 1 Kit",null,65.02]
["105600XUZ01S","(COVID-19) Nuvo 10 Model 1005, UK Plug/G, 10 L, 230V/50 hz [1005UK], 1 Each",null,1000.02]
["105601XUZ01S","(COVID-19) Nuvo 10 Model 1005, Euro Plug/C/F, 10 L, 230V/50 hz [1005], 1 Each",null,1000.02]
["105602XUZ01S","(COVID-19) Nuvo 10 Model 595, 10 L, 115V/60 hz, Plug Type: A [595], 1 Each",null,1000.02]
["105603XUZ01S","(COVID-19) Max 30 Model 3005, 30 L, 50 PSI, 230V/50hz, Plug Type: C or F [3005], 1 Each",null,14000.02]
["105604XUZ01S","(COVID-19) Max 30 Model 3005, 30 L, 50 PSI, 230V/50hz, UK Plug/G [3005UK], 1 Each",null,14000.02]
["105605XUZ01S","(COVID-19) Max 30 Model 3010, 30 L, 50 PSI, 115V/60hz, Plug Type: A [3010], 1 Each",null,14000.02]
["105656XUZ01S","(COVID-19) Resuscitation Mask, Infant, Open Cuff, Latex Free, Size 2, 1 Each",null,8.1067999999999998]
["105656XUZ0M9","(COVID-19) Resuscitation Mask, Infant, Open Cuff, Latex Free, Size 2, 20 Pieces",null,154.52000000000001]
["105657XUZ01S","(COVID-19) Resuscitation Mask, Infant, Open Cuff, Latex Free, Size 1, 1 Each",null,8.1067999999999998]
["105657XUZ0M9","(COVID-19) Resuscitation Mask, Infant, Open Cuff, Latex Free, Size 1, 20 Pieces",null,154.52000000000001]
["105658XUZ01S","(COVID-19) Resuscitation Mask, Infant, Open Cuff, Latex Free, Size 0, 1 Each",null,8.1067999999999998]
["105658XUZ0BK","(COVID-19) Resuscitation Mask, Infant, Open Cuff, Latex Free, Size 0, 20 Pieces",null,154.52000000000001]
["105659XUZ0E5","(COVID-19) Feeding Tube, Nasogastric, CH 12, 92 cm, Sterile, 150 Each",null,496.52]
["105660XUZ0EC","(COVID-19) Feeding Tube, Nasogastric, CH 6, 125 cm, Sterile, 400 Each",null,705.42]
["105661XUZ0E5","(COVID-19) Feeding Tube, Nasogastric, CH 10, 92 cm, Sterile, 150 Each",null,602.52]
["105662XUZ0E5","(COVID-19) Feeding Tube, Nasogastric, CH 8, 120 cm, Sterile, 150 Each",null,636.31999999999994]
["105663XUZ0E5","(COVID-19) Feeding Tube, Nasogastric, CH 6, 50 cm, Sterile, 150 Each",null,590.72]
["105664XUZ0E5","(COVID-19) Feeding Tube, Nasogastric, CH 8, 50 cm, Sterile, 150 Each",null,18.511999999999997]
["105665XUZ01S","(COVID-19) Nasogastric Tube Holder, Latex-free, Dual Interlocking Tabs, Universal Size, 1 Each",null,6.06]
["105665XUZ0AC","(COVID-19) Nasogastric Tube Holder, Latex-free, Dual Interlocking Tabs, Universal Size, 200 Each",null,560.02]
["105665XUZ0PA","(COVID-19) Nasogastric Tube Holder, Latex-free, Dual Interlocking Tabs, Universal Size, 20 Tubes",null,56.02]
["105666XUZ01S","(COVID-19) Bag Valve Mask, Pediatric, 550 mL Vent. Bag, O2 Reservoir Bag, POP Valve, Size 1 Mask, 1 Each",null,26.52]
["105666XUZ0B5","(COVID-19) Bag Valve Mask, Pediatric, 550 mL Vent. Bag, O2 Reservoir Bag, POP Valve, Size 1 Mask, 5 Each",null,67.459999999999994]
["105667XUZ01S","(COVID-19) O2 Tubing, Clear, Crush Resistant, Universal Connector, 7 ft, 1 Each",null,0.62]
["105667XUZ0B7","(COVID-19) O2 Tubing, Clear, Crush Resistant, Universal Connector, 7 ft, 50 Each",null,18.649999999999999]
["105668XUZ01S","(COVID-19) O2 Tubing, Clear, Crush Resistant, Universal Connector, 14 ft, 1 Each",null,0.92]
["105668XUZ0B7","(COVID-19) O2 Tubing, Clear, Crush Resistant, Universal Connector, 14 ft, 50 Each",null,31.069999999999997]
["105669XUZ0B5","(COVID-19) O2 Tubing, Clear, Crush Resistant, Universal Connector, 25 ft, 5 Each",null,6.0229999999999988]
["105669XUZ0HU","(COVID-19) O2 Tubing, Clear, Crush Resistant, Universal Connector, 25 ft, 25 Each",null,30.034999999999997]
["105670XUZ0AE","(COVID-19) O2 Tubing, Clear, Crush Resistant, Universal Connector, 50 ft, 10 Each",null,31.069999999999997]
["105671XUZ01S","(COVID-19) Pulse Oximeter Finger Probe, Infant, 1 m, Soft Tip, 7-Pin Nellcor Compatible, 1 Each",null,256.52]
["105671XUZ0BL","(COVID-19) Pulse Oximeter Finger Probe, Infant, 1 m, Soft Tip, 7-Pin Nellcor Compatible, 24 Each",null,1161.02]
["105673XUZ01S","(COVID-19) Oxygen Analyzer, O2 Range 21-95.6%, Flow Range 0-10 LPM, Pressure Range: 0.5-60 PSI, Batt Op, 1 Each",null,302.23999999999995]
["105675XUZ0BK","(COVID-19) Suction Canister Holder, 20 Each",null,82.92]
["105676XUZ0HX","(COVID-19) Suction Canister, Rigid, 1200 cc, 40 Each",null,82.61999999999999]
["105680XUZ01S","(COVID-19) Flowmeter, Low Flow Oxygen, Wall Type, No Adapter, Max 1 L/min, 1 Each",null,50.02]
["105683XUZ0E7","(COVID-19) O2 Tubing, Green, Crush Resistant, Universal Connector, 25 ft, 25 Pieces",null,23.919999999999998]
["105684XUZ01S","(COVID-19) Oxygen Connection Adaptor, Quick Connect, DISS Male x Ohemda, 1 Each",null,9.1279999999999983]
["105685XUZ0B7","(COVID-19) Oxygen Connection Adaptor, Nut Nipple, Christmas Tree, Green, 50 Each",null,16.12]
["105686XUZ01S","(COVID-19) Oxygen Regulator, Diaphragm-Type, Includes Flowmeter, CGA540 Nut and Nipple Inlet, 1 Each",null,114.91]
["105689XUZ01S","(COVID-19) Feeding Tube, Nasogastric, CH 16, 125 cm, Sterile, 1 Each",null,0.22]
["105690XUZ01S","(COVID-19) Feeding Tube, Nasogastric, CH 18, 125 cm, Sterile, 1 Each",null,0.26839999999999997]
["105691XUZ01S","(COVID-19) Feeding Tube, Nasogastric, CH 16, 40 cm, Sterile, 1 Each",null,0.22699999999999998]
["105692XUZ01S","(COVID-19) Feeding Tube, Nasogastric, CH 18, 40 cm, Sterile, 1 Each",null,0.26839999999999997]
["105693XUZ01S","(COVID-19) Oxygen Cylinder, Medical Use, Type H, 7079 L, 1 Each",null,356.71999999999997]
["105694XUZ01S","(COVID-19) Surge Protector, Combination Arrestor V50, 3-pole + NPE 280 V, 1 Each",null,423.02]
["105695XUZ01S","(COVID-19) Surge Protector, Fuse for surge protection xlp00, 1 Each",null,136.62]
["105697XUZ01S","(COVID-19) Flowmeter, Low Flow Oxygen, Direct Probe, Oxyll NF Fitting, 1 Each",null,53.06]
["105698XUZ01S","(COVID-19) Flowmeter, Low Flow Oxygen, Direct Probe, Oxyll Ohmeda Fitting, 1 Each",null,57.230000000000004]
["105699XUZ01S","(COVID-19) Flowmeter, 0-15 lpm, No Fitting, 1 Each",null,9.9559999999999995]
["105700XUZ01S","(COVID-19) Flowmeter, Direct Probe, 0-15 lpm, NF 90-116 Fitting, 1 Each",null,54.82]
["105701XUZ01S","(COVID-19) Flowmeter, Direct Probe, 0-15 lpm, Ohmeda Fitting, 1 Each",null,62.33]
["105702XUZ0BK","(COVID-19) Resuscitation Mask, Infant, Latex Free, Size 0A, 20 Each",null,231.82000000000002]
["105703XUZ09C","(COVID-19) Feeding Tube, Nasogastric, CH 10, 40 cm, Sterile, 100 Each",null,15.2]
["105704XUZ09C","(COVID-19) Feeding Tube, Nasogastric, CH 8, 40 cm, Sterile, 100 Each",null,12.44]
["105710XUZ01S","(COVID-19) Flowmeter, Low Flow Oxygen, Wall Type, No Adapter, 150 mm Scale, Max 200 mL/min, 1 Each",null,305.96999999999997]
["105711XUZ0BL","(COVID-19) Flowmeter, Low Flow Oxygen, 150-200 mL/min, 24 Each",null,22.54]
["105712XUZ01S","(COVID-19) Oxygen Cylinder Cart, Fits H-Type Cylinders, 1 Each",null,66.259999999999991]
["105713XUZ01S","(COVID-19) Oxygen Regulator, Diaphragm Type, 0-100 lpm, Bullnose BSP 341 #3, 1 Each",null,100.42]
["105714XUZ01S","(COVID-19) Oxygen Regulator, Diaphragm Type, Pin Index CGA 540, 1 Each",null,123.32]
["105715XUZ01S","(COVID-19) Oxygen Cylinder Stand, Fits H, T and M Size Cylinders, 1 Each",null,80.11999999999999]
["105716XUZ01S","(COVID-19) Oxygen Cylinder Mount, Wall Mount Bracket, Fits 2 H Type Cylinders, Lock Chain, Steel, 1 Each",null,68.22]
["105717XUZ01S","(COVID-19) Oxygen Cylinder Wrench, Universal Fit for H and E Type Cylinders, Non-Magnetic, 1 Each",null,15.32]
["105718XUZ01S","(COVID-19) Surge Protector, 6 Universal Outlets, 220V/240V AC, 13A, 50Hz/60Hz, 1 Each",null,29.919999999999998]
["105719XUZ0M9","(COVID-19) Resuscitation Mask, Infant, Latex Free, Size 0, 20 Pieces",null,231.82000000000002]
["105720XUZ0M9","(COVID-19) Resuscitation Mask, Infant, Latex Free, Size 2, 20 Pieces",null,231.82000000000002]
["105721XUZ01S","(COVID-19) Air-Oxygen Blender, Oxygen Concentration 21-100% Continuous Adjustable, Max 18 L/min Flow Rate, 1 Each",null,1222.8399999999999]
["105724XUZ01S","(COVID-19) Pulse Oximeter Finger Probe, SpO2 Silicone Soft-tip Sensor, Pediatric, 1m, Reusable, 1 Each",null,50.620000000000005]
["105725XUZ01S","(COVID-19) Pulse Oximeter Finger Probe, Neonatal, Wrap Type, 1 m, Soft Tip, 7-Pin Nellcor Compatible, 1 Each",null,39.660000000000004]
["105796XUZ0HX","(COVID-19) Feeding Tube, Nasogastric, CH 14, 125 cm, Sterile, 40 Each",null,6.52]
["105797XUZ09C","(COVID-19) Feeding Tube, Nasogastric, CH 14, 40 cm, Sterile, 100 Each",null,12.02]
["105799XUZ01S","(COVID-19) CPAP Harness, Universal Fit, 1 Each",null,3.93]
["105800XUZ01S","(COVID-19) CPAP Mask, Adult, Size 5, 1 Each",null,9]
["105801XUZ01S","(COVID-19) CPAP Mask, Child, Size 4, 1 Each",null,8.9]
["105811XUZ01S","(COVID-19) NewLife Intensity 10 120 V/60 Hz, American Plug, O2 MON, SINGLE [AS099-101], 1 Each",null,1089.02]
["105812XUZ01S","(COVID-19) NewLife Intensity 10 230 V/50 Hz UK Plug, O2 MON, SINGLE [AS099-210], 1 Each",null,1089.02]
["105813XUZ01S","(COVID-19) NewLife Intensity 10 230 V/50 Hz, EU Plug, O2 MON, SINGLE [AS099-103], 1 Each",null,1089.02]
["105814XUZ01S","(COVID-19) NewLife Intensity 10 230 V/50 Hz, EU Plug, O2 MON, DUAL [AS099-10], 1 Each",null,1245.02]
["105815XUZ01S","(COVID-19) NewLife Intensity 10 230 V/50 Hz UK Plug, O2 MON, DUAL [AS099-201], 1 Each",null,1245.02]
["105816XUZ01S","(COVID-19) NewLife Intensity 10 120 V/60 Hz, American Plug, O2 MON, DUAL [AS099-4], 1 Each",null,1245.02]
["105824XUZ0B5","(COVID-19) Feeding Tube, Nasogastric, CH 14, 120 cm, Sterile, 5 Each",null,18.22]
["105839XUZ01S","(COVID-19) Oxygen Regulator, Diaphragm Type, 1-15 lpm, Bullnose BSP 341 #3, 1 Each",null,140.42000000000002]
["105862XUZ0B7","(COVID-19) CPAP Mask, with Harness, Adult Large #6 [712-0003-50], 50 Each",null,1048.1500000000001]
["105863XUZ0B7","(COVID-19) CPAP Mask, with Harness, Adult Regular #5 [712-0002-50], 50 Each",null,1048.1500000000001]
["105895XUZ01S","(COVID-19) Oxygen Cylinder, Medical-Use, H-Type, 250 CF, w/ BSP341#3 Valve and Cap, 1 Each",null,356.71999999999997]
["105896XUZ01S","(COVID-19) Oxygen Cylinder, Medical-Use, H-Type, 250 CF, w/ CGA540 Valve and Cap, 1 Each",null,356.71999999999997]
["105926XUZ01S","(COVID-19) Oxygen Cylinder Wrench, Universal Fit for H and E Type Cylinders, Steel, Heavy Duty, 1 Each",null,19.52]
["105943XUZ01S","(COVID-19) Oxygen Cylinder, Medical-Use, 250 CF, w/ BS341 #3 Valve and Collar Protector, 1 Each",null,641.86]
["105951XUZ08D","(COVID-19) Standard Q COVID-19 Ag Test Kit, 25 Tests",null,75.02]
["105952XUZ0B7","(COVID-19) CPAP Mask, with Harness, Child #4 [712-0004-50], 50 Each",null,1048.1500000000001]
["105954XUZ08D","(COVID-19) Panbio COVID-19 Ag Rapid Test Kit (Nasal), 25 Tests",null,75.02]
["105955XUZ08D","(COVID-19) Panbio COVID-19 Ag Rapid Test Kit (Nasopharyngeal), 25 Tests",null,75.02]
["105969XUZ01S","(COVID-19) Oxygen Cylinder, Medical-Use, 7.5 Cubic Meter, 1 Each",null,293.02]
["105982XUZ01S","(COVID-19) Oxygen Cylinder Stand, Fits H, K and M Size Cylinders, 1 Each",null,82.82]
["106119XUZ08T","(COVID-19) Cepheid Xpert Xpress SARS-CoV-2, 10 Tests",null,149.02000000000001]
["106258XUZ01S","(COVID-19) Oxygen Cylinder Wrench, Open End Spanner, Steel, 15 Degree Angle, 30 mm, 1 Each",null,27.19]
["106259XUZ01S","(COVID-19) Oxygen Regulator, With Flowmeter Adapter, 0 - 15 LPM, 3000 psi Max, CGA992 Inlet Connection, 1 Each",null,260.27999999999997]
["106276XUZ09C","(COVID-19) Examination Gloves (Nitrile) Extra Large, Powder-Free, Non-Sterile, 100 Each",null,31.52]
["106276XUZ0AB","(COVID-19) Examination Gloves (Nitrile) Extra Large, Powder-Free, Non-Sterile, 1000 Each",null,31.52]
["106281XUZ01S","(COVID-19) Flowmeter Adapter, AFROX to DISS Connection, G1/8M Thread, 1 Each",null,7.13]
["106282XUZ01S","(COVID-19) Oxygen Regulator, Diaphragm Type, Bullnose BSP 341 #3 (without flow meter), 1 Each",null,112.44]
["106285XUZ01S","(COVID-19) Flowmeter Adapter, DISS Male to DINN Standard Connector, 9/16-18UNF Thread, 1 Each",null,4.6399999999999997]
["106288XUZ01S","(COVID-19) Oxygen Cylinder Wrench, BS341 Fit for H and E Type Cylinders, Non-Magnetic, 1 Each",null,4.5599999999999996]
["106289XUZ01S","(COVID-19) Oxygen Cylinder Wrench, Adjustable, Universal Fit for H and E Type Cylinders, Non-Magnetic, 1 Each",null,4.5599999999999996]
["106290XUZ01S","(COVID-19) Oxygen Regulator, Single-Stage, 1-15 LPM Flowmeter, w/ Humidifier and Tree Outlet, BS341 #3 Bullnose Inlet, 1 Each",null,23.68]
["106291XUZ01S","(COVID-19) Pulse Oximeter, Portable, Handheld with Cables, Adult Sensor and Batteries Included, 1 Each",null,112.75999999999999]
["106292XUZ01S","(COVID-19) Blood Pressure Monitor Upper Arm, Small and Standard Adult Cuff, Carrying Case, AA Battery, 1 Each",null,22.73]
["106362XUZ01S","(COVID-19) Penta Flow Flow Splitter [Model 295], 1 Each",null,650.02]
["106366XUZ01S","(COVID-19) Cepheid PCK-COVMTB-120-L, 1 Each",null,17000.02]
["106388XUZ0HX","(COVID-19) Surgical Gown, Small, Sterile, 40 Each",null,67.52]
["106459ACA00T","(COVID-19) Molnupiravir, 200 mg Capsule, 40 Capsules",null,11.02]
["106459ACA0OA","(COVID-19) Molnupiravir, 200 mg Capsule, 40 Blister Pack Capsules",null,11.02]
["106471XUZ08D","(COVID-19) Sure Status COVID-19 Antigen Card Test, 25 Tests",null,37.520000000000003]
["106541AAZ0OE","(COVID-19) Nirmatrelvir 150 mg + Ritonavir 100 mg Combo Pack Tablets, 5 x 4 Nirmatrelvir + 2 Ritonavir Co-Blister Tablets",null,24.22]
["TBD1","(COVID-19) Infant CPAP - Diamedica-UK Baby CPAP-10  (NEST360 Qualified)",null,3627.35]
["TBD2","(COVID-19) Infant CPAP - Phoenix N-300 (NEST360 Qualified)",null,5480.02]
["TBD3","(COVID-19) Vayu CPAP ",null,548.02]
["TBD4","(COVID-19) Infant Radiant Warmer - Phoenix NWS-101  (NEST360 Qualified)",null,1548.92]
["TBD5","(COVID-19) Infant Radiant Warmer - MTTS Wallaby Warmer (NEST360 Qualified)",null,3082.52]
["TBD6","(COVID-19) Bag Valve-mask for newborns (200-320 ml)",null,218.82000000000002]
["TBD7","(COVID-19) Reusable Suction Device (Penguin Type)",null,368.54999999999995]
["TBD8","(COVID-19) Pulse Oximeter - BISTOS BT-710 Oximeter (NEST360 Qualified) ",null,45.230000000000004]
["TBD9","(COVID-19) Embrace Infant Warmer-Phoenix Medical Systems",null,685.02]
["TBD10","(COVID-19) Incublanket Series and Wipeable transport",null,749.41]
["TBD11","(COVID-19) Dream-Warmer Solution",null,81.539999999999992]
["TBD12","(COVID-19) CPAP MTTS Dolphin",null,5069.0200000000004]
["TBD13","(COVID-19) Saan Cpap",null,4384.0200000000004]
["TBD14","(COVID-19) Vayu OBS",null,102.77]
["TBD15","(COVID-19) Feeding tubes 6, 8 French (Pack of 200)",null,282.41999999999996]
["TBD16","(COVID-19) Oxygen Cylinder, Medical Use-Type D with Valve and Cap",null,146.95000000000002]
["TBD17","(COVID-19) Flowmeter, Ultra Low Flow Oxygen, 1 Each. 0-3 LPM",null,803.11]
["TBD18","(COVID-19) Multiparameter monitor; Patient vital signs monitor, 6 physiological parameters",null,2153.42]
["TBD19","(COVID-19) v1000 Backup power supply.",null,473.12]
["TBD20","(COVID-19) v1500 Backup power supply.",null,832.72]
["TBD21","(COVID-19) v2200 Backup power supply.",null,1221.02]
["TBD22","(COVID-19) Lifebox Pulse oximeter",null,272.52]
["TBD23","(COVID 19) Voltage stabilizer, Electronic, microprocessor-controlled voltage stabilizer, solid-state tap-switching technology  (1 KvA)",null,216.81]
["TBD24","(COVID 19) Voltage stabilizer, Electronic, microprocessor-controlled voltage stabilizer, solid-state tap-switching technology  (2 KvA)",null,171.10000000000002]
["TBD25","(COVID 19) Voltage stabilizer, Electronic, microprocessor-controlled voltage stabilizer, solid-state tap-switching technology  (3 KvA)",null,510.28999999999996]
["TBD26","(COVID 19) Surge suppressor; Solid-state electronic",null,83.47]
["TBD27","(COVID 19) Incubator, neonatal  (newborn)",null,6388.2900000000009]
["TBD28","(COVID 19) Blood Gas Machine, ABL90 FLEX",null,54739.42]
["TBD29","(COVID 19) Blood Gas Machine,  Blood gas analyzer ABL825 including AutoCheck, blood gas, electrolytes, metabolite and oximetry analyzer ",null,109252.39]
["TBD30","(COVID 19) Vayu bCPAP Consumables Pack",null,295.25809523809522]
["TBD31","(COVID 19) MTTS CPAP, 1 Each",null,4893.7700000000004]
["TBD32","(COVID 19) Diamedica CPAP Baby CPAP 10, 1 Each",null,4674.2060000000001]
["TBD33","(COVID 19) Vayu bCPAP Consumables Pack (Tubings, Interface, filter paper for Vayu CPAP), 1 Each",null,272.52]
["TBD34","(COVID 19) Uninterrupted power supply (UPS) C400 2000VA Online Double Conversion, pure sine wave 40cm x 33cm x 19cm, weight 17kg Wide tolerance for frequency and voltage fluctuation, 1 Each",null,597.9]
["106791XUZ01S","(COVID-19) Bag Valve Mask, Adult, 1500 mL Vent. Bag, O2 Reservoir Bag, POP Valve, 1 Each ",null,6.88]
["106792XUZ01S","(COVID-19) Anesthesia Mask, Infant, Open Cuff, Latex Free, Size 2, 1 Each ",null,0.8]
["106793XUZ01S","(COVID-19) Anesthesia Mask, Infant, Open Cuff, Latex Free, Size 1, 1 Each ",null,0.8]
["106794XUZ01S","(COVID-19) Anesthesia Mask, Infant, Open Cuff, Latex Free, Size 0, 1 Each ",null,0.8]

{"sheet":"Config","index":4,"n_rows":3,"n_cols":1,"rows_kept":3,"cut":false,"hidden":true,"merged":[]}
["Select Product Options"]
[]
["Yes"]

{"sheet":"Sheet2","index":5,"n_rows":3,"n_cols":2,"rows_kept":3,"cut":false,"hidden":true,"merged":[]}
[]
[null,"Implementing Partner"]
[null,"Beneficiary"]